{"text_format":"1","workbook":"xlsx","n_sheets":4,"sheets":["Denver","Mountain","Sheet2","Sheet3"],"not_rendered":{"charts":0,"images":0,"macros":1,"external_links":1,"defined_names":2,"comments":0,"pivot_tables":0},"unopened":[],"bounds":{"document_bytes":16777216,"sheet_cells":100000,"rows_first":2000,"rows_last":500,"rows_between":2000,"halvings":0,"cell_chars":16384,"cell_head_chars":4096},"cells_cut":0,"cells_raw":0,"read":"whole","date_system":"1900"}

{"sheet":"Denver","index":0,"n_rows":591,"n_cols":13,"rows_kept":591,"cut":false,"hidden":false,"merged":[[5,3,6,7]]}
[null,null,"Account # ",{"$f":"IF(D2=\"\",\"\",VLOOKUP(D2,Sheet2!G:K,2,FALSE))","v":""},null,null,null,null,null,null,null,{"$f":"Sheet2!G:G","v":"626 On Rood"},{"$f":"Sheet2!A:A","v":0}]
[null,null,"Account Name:",null,null,null,null,null,null,null,null,{"$f":"Sheet2!G:G","v":"7 Hermits Brewing Co"},{"$f":"Sheet2!A:A","v":1000}]
[null,null,"Address:",{"$f":"IF(D2=\"\",\"\",VLOOKUP(D2,Sheet2!G:K,3,FALSE))","v":""},null,null,null,null,null,null,null,{"$f":"Sheet2!G:G","v":"All Pro Liquors"},{"$f":"Sheet2!A:A","v":1001}]
[null,null,"City:",{"$f":"IF(D2=\"\",\"\",VLOOKUP(D2,Sheet2!G:K,5,FALSE))","v":""},null,null,null,null,null,null,null,{"$f":"Sheet2!G:G","v":"Allegria"},{"$f":"Sheet2!A:A","v":1002}]
[null,null,"Delivery Date:",null,null,null,null,null,null,null,null,{"$f":"Sheet2!G:G","v":"Alpine Wine & Spirit"},{"$f":"Sheet2!A:A","v":1003}]
[null,null,"Comments:",null,null,null,null,null,null,null,null,{"$f":"Sheet2!G:G","v":"Andy's Liquor Mart"},{"$f":"Sheet2!A:A","v":1004}]
[null,null,null,null,null,null,null,null,null,null,null,{"$f":"Sheet2!G:G","v":"Antlers Discount Liquors"},{"$f":"Sheet2!A:A","v":1005}]
["CASES","BOTTLES","ITEM # ","DESCRIPTION","FRONT LINE","CASE DISCOUNT","CASE PRICE","BOTTLE PRICE","NET",null,null,{"$f":"Sheet2!G:G","v":"Apres"},{"$f":"Sheet2!A:A","v":1007}]
[null,null,null,{"$f":"IF(C9=\"\",\"\",VLOOKUP(C9,Sheet2!A:E,2,FALSE))","v":""},{"$f":"IF(C9=\"\",\"\",VLOOKUP(C9,Sheet2!A:C,3,FALSE))","v":""},null,{"$f":"IF(C9=\"\",\"\",E9-F9)","v":""},{"$f":"IF(C9=\"\",\"\",G9/VLOOKUP(C9,Sheet2!A:E,5,FALSE))","v":""},{"$f":"IF(C9=\"\",\"\",(A9*G9)+(B9*H9))","v":""},null,null,{"$f":"Sheet2!G:G","v":"Arapahoe Basin Ski Area"},{"$f":"Sheet2!A:A","v":1008}]
[null,null,null,{"$f":"IF(C10=\"\",\"\",VLOOKUP(C10,Sheet2!A:E,2,FALSE))","v":""},{"$f":"IF(C10=\"\",\"\",VLOOKUP(C10,Sheet2!A:C,3,FALSE))","v":""},null,{"$f":"IF(C10=\"\",\"\",E10-F10)","v":""},{"$f":"IF(C10=\"\",\"\",G10/VLOOKUP(C10,Sheet2!A:E,5,FALSE))","v":""},{"$f":"IF(C10=\"\",\"\",(A10*G10)+(B10*H10))","v":""},null,null,{"$f":"Sheet2!G:G","v":"Arctic Liquors"},{"$f":"Sheet2!A:A","v":1009}]
[null,null,null,{"$f":"IF(C11=\"\",\"\",VLOOKUP(C11,Sheet2!A:E,2,FALSE))","v":""},{"$f":"IF(C11=\"\",\"\",VLOOKUP(C11,Sheet2!A:C,3,FALSE))","v":""},null,"",{"$f":"IF(C11=\"\",\"\",G11/VLOOKUP(C11,Sheet2!A:E,5,FALSE))","v":""},"",null,null,{"$f":"Sheet2!G:G","v":"Aspen Wine and Spirits"},{"$f":"Sheet2!A:A","v":1010}]
[null,null,null,{"$f":"IF(C12=\"\",\"\",VLOOKUP(C12,Sheet2!A:E,2,FALSE))","v":""},{"$f":"IF(C12=\"\",\"\",VLOOKUP(C12,Sheet2!A:C,3,FALSE))","v":""},null,"",{"$f":"IF(C12=\"\",\"\",G12/VLOOKUP(C12,Sheet2!A:E,5,FALSE))","v":""},"",null,null,{"$f":"Sheet2!G:G","v":"Aspen Wine Guild"},{"$f":"Sheet2!A:A","v":1020}]
[null,null,null,{"$f":"IF(C13=\"\",\"\",VLOOKUP(C13,Sheet2!A:E,2,FALSE))","v":""},{"$f":"IF(C13=\"\",\"\",VLOOKUP(C13,Sheet2!A:C,3,FALSE))","v":""},null,"",{"$f":"IF(C13=\"\",\"\",G13/VLOOKUP(C13,Sheet2!A:E,5,FALSE))","v":""},"",null,null,{"$f":"Sheet2!G:G","v":"Avon Liquors"},{"$f":"Sheet2!A:A","v":1021}]
[null,null,null,{"$f":"IF(C14=\"\",\"\",VLOOKUP(C14,Sheet2!A:E,2,FALSE))","v":""},{"$f":"IF(C14=\"\",\"\",VLOOKUP(C14,Sheet2!A:C,3,FALSE))","v":""},null,"",{"$f":"IF(C14=\"\",\"\",G14/VLOOKUP(C14,Sheet2!A:E,5,FALSE))","v":""},"",null,null,{"$f":"Sheet2!G:G","v":"Barley, The"},{"$f":"Sheet2!A:A","v":1022}]
[null,null,null,{"$f":"IF(C15=\"\",\"\",VLOOKUP(C15,Sheet2!A:E,2,FALSE))","v":""},{"$f":"IF(C15=\"\",\"\",VLOOKUP(C15,Sheet2!A:C,3,FALSE))","v":""},null,"",{"$f":"IF(C15=\"\",\"\",G15/VLOOKUP(C15,Sheet2!A:E,5,FALSE))","v":""},"",null,null,{"$f":"Sheet2!G:G","v":"Bart & Yeti's"},{"$f":"Sheet2!A:A","v":1023}]
[null,null,null,{"$f":"IF(C16=\"\",\"\",VLOOKUP(C16,Sheet2!A:E,2,FALSE))","v":""},{"$f":"IF(C16=\"\",\"\",VLOOKUP(C16,Sheet2!A:C,3,FALSE))","v":""},null,"",{"$f":"IF(C16=\"\",\"\",G16/VLOOKUP(C16,Sheet2!A:E,5,FALSE))","v":""},"",null,null,{"$f":"Sheet2!G:G","v":"Beaver Liquors"},{"$f":"Sheet2!A:A","v":1024}]
[null,null,null,{"$f":"IF(C17=\"\",\"\",VLOOKUP(C17,Sheet2!A:E,2,FALSE))","v":""},{"$f":"IF(C17=\"\",\"\",VLOOKUP(C17,Sheet2!A:C,3,FALSE))","v":""},null,"",{"$f":"IF(C17=\"\",\"\",G17/VLOOKUP(C17,Sheet2!A:E,5,FALSE))","v":""},"",null,null,{"$f":"Sheet2!G:G","v":"Big House Burgers"},{"$f":"Sheet2!A:A","v":1109}]
[null,null,null,{"$f":"IF(C18=\"\",\"\",VLOOKUP(C18,Sheet2!A:E,2,FALSE))","v":""},{"$f":"IF(C18=\"\",\"\",VLOOKUP(C18,Sheet2!A:C,3,FALSE))","v":""},null,"",{"$f":"IF(C18=\"\",\"\",G18/VLOOKUP(C18,Sheet2!A:E,5,FALSE))","v":""},"",null,null,{"$f":"Sheet2!G:G","v":"Bistro CV"},{"$f":"Sheet2!A:A","v":1209}]
[null,null,null,{"$f":"IF(C19=\"\",\"\",VLOOKUP(C19,Sheet2!A:E,2,FALSE))","v":""},{"$f":"IF(C19=\"\",\"\",VLOOKUP(C19,Sheet2!A:C,3,FALSE))","v":""},null,"",{"$f":"IF(C19=\"\",\"\",G19/VLOOKUP(C19,Sheet2!A:E,5,FALSE))","v":""},"",null,null,{"$f":"Sheet2!G:G","v":"Black Diamond Bistro"},{"$f":"Sheet2!A:A","v":1220}]
[null,null,null,{"$f":"IF(C20=\"\",\"\",VLOOKUP(C20,Sheet2!A:E,2,FALSE))","v":""},{"$f":"IF(C20=\"\",\"\",VLOOKUP(C20,Sheet2!A:C,3,FALSE))","v":""},null,"",{"$f":"IF(C20=\"\",\"\",G20/VLOOKUP(C20,Sheet2!A:E,5,FALSE))","v":""},"",null,null,{"$f":"Sheet2!G:G","v":"Blu's"},{"$f":"Sheet2!A:A","v":1406}]
[null,null,null,{"$f":"IF(C21=\"\",\"\",VLOOKUP(C21,Sheet2!A:E,2,FALSE))","v":""},{"$f":"IF(C21=\"\",\"\",VLOOKUP(C21,Sheet2!A:C,3,FALSE))","v":""},null,"",{"$f":"IF(C21=\"\",\"\",G21/VLOOKUP(C21,Sheet2!A:E,5,FALSE))","v":""},"",null,null,{"$f":"Sheet2!G:G","v":"Bookcliff Country Club"},{"$f":"Sheet2!A:A","v":1450}]
[null,null,null,{"$f":"IF(C22=\"\",\"\",VLOOKUP(C22,Sheet2!A:E,2,FALSE))","v":""},{"$f":"IF(C22=\"\",\"\",VLOOKUP(C22,Sheet2!A:C,3,FALSE))","v":""},null,"",{"$f":"IF(C22=\"\",\"\",G22/VLOOKUP(C22,Sheet2!A:E,5,FALSE))","v":""},"",null,null,{"$f":"Sheet2!G:G","v":"Bookcliff Liquors"},{"$f":"Sheet2!A:A","v":1510}]
[null,null,null,{"$f":"IF(C23=\"\",\"\",VLOOKUP(C23,Sheet2!A:E,2,FALSE))","v":""},{"$f":"IF(C23=\"\",\"\",VLOOKUP(C23,Sheet2!A:C,3,FALSE))","v":""},null,"",{"$f":"IF(C23=\"\",\"\",G23/VLOOKUP(C23,Sheet2!A:E,5,FALSE))","v":""},"",null,null,{"$f":"Sheet2!G:G","v":"Bottle Pass Liquors"},{"$f":"Sheet2!A:A","v":1515}]
[null,null,null,{"$f":"IF(C24=\"\",\"\",VLOOKUP(C24,Sheet2!A:E,2,FALSE))","v":""},{"$f":"IF(C24=\"\",\"\",VLOOKUP(C24,Sheet2!A:C,3,FALSE))","v":""},null,"",{"$f":"IF(C24=\"\",\"\",G24/VLOOKUP(C24,Sheet2!A:E,5,FALSE))","v":""},"",null,null,{"$f":"Sheet2!G:G","v":"Bottle Shop Liquor"},{"$f":"Sheet2!A:A","v":1550}]
[null,null,null,{"$f":"IF(C25=\"\",\"\",VLOOKUP(C25,Sheet2!A:E,2,FALSE))","v":""},{"$f":"IF(C25=\"\",\"\",VLOOKUP(C25,Sheet2!A:C,3,FALSE))","v":""},null,"",{"$f":"IF(C25=\"\",\"\",G25/VLOOKUP(C25,Sheet2!A:E,5,FALSE))","v":""},"",null,null,{"$f":"Sheet2!G:G","v":"Breckenridge Ale House"},{"$f":"Sheet2!A:A","v":1551}]
[null,null,null,{"$f":"IF(C26=\"\",\"\",VLOOKUP(C26,Sheet2!A:E,2,FALSE))","v":""},{"$f":"IF(C26=\"\",\"\",VLOOKUP(C26,Sheet2!A:C,3,FALSE))","v":""},null,"",{"$f":"IF(C26=\"\",\"\",G26/VLOOKUP(C26,Sheet2!A:E,5,FALSE))","v":""},"",null,null,{"$f":"Sheet2!G:G","v":"Broadway Liquors"},{"$f":"Sheet2!A:A","v":2006}]
[null,null,null,{"$f":"IF(C27=\"\",\"\",VLOOKUP(C27,Sheet2!A:E,2,FALSE))","v":""},{"$f":"IF(C27=\"\",\"\",VLOOKUP(C27,Sheet2!A:C,3,FALSE))","v":""},null,"",{"$f":"IF(C27=\"\",\"\",G27/VLOOKUP(C27,Sheet2!A:E,5,FALSE))","v":""},"",null,null,{"$f":"Sheet2!G:G","v":"C&H Spirit Solutions"},{"$f":"Sheet2!A:A","v":2058}]
[null,null,null,{"$f":"IF(C28=\"\",\"\",VLOOKUP(C28,Sheet2!A:E,2,FALSE))","v":""},{"$f":"IF(C28=\"\",\"\",VLOOKUP(C28,Sheet2!A:C,3,FALSE))","v":""},null,"",{"$f":"IF(C28=\"\",\"\",G28/VLOOKUP(C28,Sheet2!A:E,5,FALSE))","v":""},"",null,null,{"$f":"Sheet2!G:G","v":"Carelli's Pizzeria"},{"$f":"Sheet2!A:A","v":3008}]
[null,null,null,{"$f":"IF(C29=\"\",\"\",VLOOKUP(C29,Sheet2!A:E,2,FALSE))","v":""},{"$f":"IF(C29=\"\",\"\",VLOOKUP(C29,Sheet2!A:C,3,FALSE))","v":""},null,"",{"$f":"IF(C29=\"\",\"\",G29/VLOOKUP(C29,Sheet2!A:E,5,FALSE))","v":""},"",null,null,{"$f":"Sheet2!G:G","v":"Carl's Pharmacy"},{"$f":"Sheet2!A:A","v":3081}]
[null,null,null,null,null,null,null,"Total:",{"$f":"SUM(I9:I29)","v":0},null,null,{"$f":"Sheet2!G:G","v":"Carl's Tavern"},{"$f":"Sheet2!A:A","v":3082}]
[null,null,null,null,null,null,null,null,null,null,null,{"$f":"Sheet2!G:G","v":"Cellar Liquors"},{"$f":"Sheet2!A:A","v":3083}]
[null,null,null,null,null,null,null,null,null,null,null,{"$f":"Sheet2!G:G","v":"Center Town Liquors"},{"$f":"Sheet2!A:A","v":3091}]
[null,null,null,null,null,null,null,null,null,null,null,{"$f":"Sheet2!G:G","v":"Central Park Liquors"},{"$f":"Sheet2!A:A","v":3092}]
[null,null,null,null,null,null,null,null,null,null,null,{"$f":"Sheet2!G:G","v":"Cheeky Monk"},{"$f":"Sheet2!A:A","v":3093}]
[null,null,null,null,null,null,null,null,null,null,null,{"$f":"Sheet2!G:G","v":"Choice Liquor"},{"$f":"Sheet2!A:A","v":4001}]
[null,null,null,null,null,null,null,null,null,null,null,{"$f":"Sheet2!G:G","v":"Circle R Bar"},{"$f":"Sheet2!A:A","v":4002}]
[null,null,null,null,null,null,null,null,null,null,null,{"$f":"Sheet2!G:G","v":"Citrolas Italian Grill & Bar"},{"$f":"Sheet2!A:A","v":4003}]
[null,null,null,null,null,null,null,null,null,null,null,{"$f":"Sheet2!G:G","v":"City Liquors"},{"$f":"Sheet2!A:A","v":4025}]
[null,null,null,null,null,null,null,null,null,null,null,{"$f":"Sheet2!G:G","v":"Clifton Liquors"},{"$f":"Sheet2!A:A","v":4051}]
[null,null,null,null,null,null,null,null,null,null,null,{"$f":"Sheet2!G:G","v":"College Liquors"},{"$f":"Sheet2!A:A","v":4052}]
[null,null,null,null,null,null,null,null,null,null,null,{"$f":"Sheet2!G:G","v":"Cooper Wine & Spirits"},{"$f":"Sheet2!A:A","v":4053}]
[null,null,null,null,null,null,null,null,null,null,null,{"$f":"Sheet2!G:G","v":"Cork's Fine Wines"},{"$f":"Sheet2!A:A","v":4055}]
[null,null,null,null,null,null,null,null,null,null,null,{"$f":"Sheet2!G:G","v":"Coronado Liquors"},{"$f":"Sheet2!A:A","v":4056}]
[null,null,null,null,null,null,null,null,null,null,null,{"$f":"Sheet2!G:G","v":"Cottonwood Liquors"},{"$f":"Sheet2!A:A","v":4057}]
[null,null,null,null,null,null,null,null,null,null,null,{"$f":"Sheet2!G:G","v":"Country Club liquors"},{"$f":"Sheet2!A:A","v":4058}]
[null,null,null,null,null,null,null,null,null,null,null,{"$f":"Sheet2!G:G","v":"Coyote Café"},{"$f":"Sheet2!A:A","v":4059}]
[null,null,null,null,null,null,null,null,null,null,null,{"$f":"Sheet2!G:G","v":"Crossroads Wine & Spirit"},{"$f":"Sheet2!A:A","v":4060}]
[null,null,null,null,null,null,null,null,null,null,null,{"$f":"Sheet2!G:G","v":"Davetos Italian Restaurant"},{"$f":"Sheet2!A:A","v":4061}]
[null,null,null,null,null,null,null,null,null,null,null,{"$f":"Sheet2!G:G","v":"Devil's Thumb Ranch"},{"$f":"Sheet2!A:A","v":4062}]
[null,null,null,null,null,null,null,null,null,null,null,{"$f":"Sheet2!G:G","v":"Dillon Ridge Liquors"},{"$f":"Sheet2!A:A","v":4063}]
[null,null,null,null,null,null,null,null,null,null,null,{"$f":"Sheet2!G:G","v":"Dolce Vita"},{"$f":"Sheet2!A:A","v":4064}]
[null,null,null,null,null,null,null,null,null,null,null,{"$f":"Sheet2!G:G","v":"Double Diamonds Bar"},{"$f":"Sheet2!A:A","v":4065}]
[null,null,null,null,null,null,null,null,null,null,null,{"$f":"Sheet2!G:G","v":"Eagle liiquor Mart"},{"$f":"Sheet2!A:A","v":4090}]
[null,null,null,null,null,null,null,null,null,null,null,{"$f":"Sheet2!G:G","v":"Eagle Ranch Wine & Spirits"},{"$f":"Sheet2!A:A","v":4091}]
[null,null,null,null,null,null,null,null,null,null,null,{"$f":"Sheet2!G:G","v":"East Valley Liquors"},{"$f":"Sheet2!A:A","v":4092}]
[null,null,null,null,null,null,null,null,null,null,null,{"$f":"Sheet2!G:G","v":"Eastside Liquor"},{"$f":"Sheet2!A:A","v":4095}]
[null,null,null,null,null,null,null,null,null,null,null,{"$f":"Sheet2!G:G","v":"El Horizonte"},{"$f":"Sheet2!A:A","v":5000}]
[null,null,null,null,null,null,null,null,null,null,null,{"$f":"Sheet2!G:G","v":"El Jebeverage"},{"$f":"Sheet2!A:A","v":5001}]
[null,null,null,null,null,null,null,null,null,null,null,{"$f":"Sheet2!G:G","v":"Elk Camp Restaurant"},{"$f":"Sheet2!A:A","v":5002}]
[null,null,null,null,null,null,null,null,null,null,null,{"$f":"Sheet2!G:G","v":"Elmer Suds Liquor"},{"$f":"Sheet2!A:A","v":5003}]
[null,null,null,null,null,null,null,null,null,null,null,{"$f":"Sheet2!G:G","v":"Elway's"},{"$f":"Sheet2!A:A","v":5004}]
[null,null,null,null,null,null,null,null,null,null,null,{"$f":"Sheet2!G:G","v":"Ember"},{"$f":"Sheet2!A:A","v":5009}]
[null,null,null,null,null,null,null,null,null,null,null,{"$f":"Sheet2!G:G","v":"Enterprize Liquor"},{"$f":"Sheet2!A:A","v":5040}]
[null,null,null,null,null,null,null,null,null,null,null,{"$f":"Sheet2!G:G","v":"Enzo's"},{"$f":"Sheet2!A:A","v":5041}]
[null,null,null,null,null,null,null,null,null,null,null,{"$f":"Sheet2!G:G","v":"Enzo's Pizza Shack"},{"$f":"Sheet2!A:A","v":5051}]
[null,null,null,null,null,null,null,null,null,null,null,{"$f":"Sheet2!G:G","v":"Eureka Mediterranean Street Food"},{"$f":"Sheet2!A:A","v":5052}]
[null,null,null,null,null,null,null,null,null,null,null,{"$f":"Sheet2!G:G","v":"Fariground Wine & Liquor"},{"$f":"Sheet2!A:A","v":5053}]
[null,null,null,null,null,null,null,null,null,null,null,{"$f":"Sheet2!G:G","v":"Finbarr's"},{"$f":"Sheet2!A:A","v":5054}]
[null,null,null,null,null,null,null,null,null,null,null,{"$f":"Sheet2!G:G","v":"Finbarr's Irish Pub and Kitchen"},{"$f":"Sheet2!A:A","v":5055}]
[null,null,null,null,null,null,null,null,null,null,null,{"$f":"Sheet2!G:G","v":"Fisher's Liquor Barn"},{"$f":"Sheet2!A:A","v":5056}]
[null,null,null,null,null,null,null,null,null,null,null,{"$f":"Sheet2!G:G","v":"Flights & Pints Tasting Room"},{"$f":"Sheet2!A:A","v":5057}]
[null,null,null,null,null,null,null,null,null,null,null,{"$f":"Sheet2!G:G","v":"Fly-N-Roosters"},{"$f":"Sheet2!A:A","v":5058}]
[null,null,null,null,null,null,null,null,null,null,null,{"$f":"Sheet2!G:G","v":"Four Dogs Wine & Spirits"},{"$f":"Sheet2!A:A","v":5059}]
[null,null,null,null,null,null,null,null,null,null,null,{"$f":"Sheet2!G:G","v":"Four Seasons Vail"},{"$f":"Sheet2!A:A","v":5070}]
[null,null,null,null,null,null,null,null,null,null,null,{"$f":"Sheet2!G:G","v":"Frisco Liquors"},{"$f":"Sheet2!A:A","v":5071}]
[null,null,null,null,null,null,null,null,null,null,null,{"$f":"Sheet2!G:G","v":"Frisco Wine Merchant"},{"$f":"Sheet2!A:A","v":5072}]
[null,null,null,null,null,null,null,null,null,null,null,{"$f":"Sheet2!G:G","v":"Fruita Liquor Mart"},{"$f":"Sheet2!A:A","v":5076}]
[null,null,null,null,null,null,null,null,null,null,null,{"$f":"Sheet2!G:G","v":"Fun Junction Liquors"},{"$f":"Sheet2!A:A","v":5077}]
[null,null,null,null,null,null,null,null,null,null,null,{"$f":"Sheet2!G:G","v":"Geno's"},{"$f":"Sheet2!A:A","v":5078}]
[null,null,null,null,null,null,null,null,null,null,null,{"$f":"Sheet2!G:G","v":"Glenwood Canyon Brew Pub"},{"$f":"Sheet2!A:A","v":5079}]
[null,null,null,null,null,null,null,null,null,null,null,{"$f":"Sheet2!G:G","v":"Grand Avenue Liquors"},{"$f":"Sheet2!A:A","v":5080}]
[null,null,null,null,null,null,null,null,null,null,null,{"$f":"Sheet2!G:G","v":"Grappa"},{"$f":"Sheet2!A:A","v":5081}]
[null,null,null,null,null,null,null,null,null,null,null,{"$f":"Sheet2!G:G","v":"Great Western Grog Shop"},{"$f":"Sheet2!A:A","v":5082}]
[null,null,null,null,null,null,null,null,null,null,null,{"$f":"Sheet2!G:G","v":"Greco's"},{"$f":"Sheet2!A:A","v":5083}]
[null,null,null,null,null,null,null,null,null,null,null,{"$f":"Sheet2!G:G","v":"Grouse Montain Grill"},{"$f":"Sheet2!A:A","v":5084}]
[null,null,null,null,null,null,null,null,null,null,null,{"$f":"Sheet2!G:G","v":"Gypsum Liquors"},{"$f":"Sheet2!A:A","v":5086}]
[null,null,null,null,null,null,null,null,null,null,null,{"$f":"Sheet2!G:G","v":"Hooked"},{"$f":"Sheet2!A:A","v":5087}]
[null,null,null,null,null,null,null,null,null,null,null,{"$f":"Sheet2!G:G","v":"Hooters (Grand Jct.)"},{"$f":"Sheet2!A:A","v":5088}]
[null,null,null,null,null,null,null,null,null,null,null,{"$f":"Sheet2!G:G","v":"Hops Culture"},{"$f":"Sheet2!A:A","v":6000}]
[null,null,null,null,null,null,null,null,null,null,null,{"$f":"Sheet2!G:G","v":"Horizon Liquors"},{"$f":"Sheet2!A:A","v":6001}]
[null,null,null,null,null,null,null,null,null,null,null,{"$f":"Sheet2!G:G","v":"Hotel Jerome"},{"$f":"Sheet2!A:A","v":6002}]
[null,null,null,null,null,null,null,null,null,null,null,{"$f":"Sheet2!G:G","v":"In the Middle Liquors"},{"$f":"Sheet2!A:A","v":6003}]
[null,null,null,null,null,null,null,null,null,null,null,{"$f":"Sheet2!G:G","v":"Italian Underground"},{"$f":"Sheet2!A:A","v":6005}]
[null,null,null,null,null,null,null,null,null,null,null,{"$f":"Sheet2!G:G","v":"Jackalope Liquors"},{"$f":"Sheet2!A:A","v":6020}]
[null,null,null,null,null,null,null,null,null,null,null,{"$f":"Sheet2!G:G","v":"Jake's Liquor"},{"$f":"Sheet2!A:A","v":6021}]
[null,null,null,null,null,null,null,null,null,null,null,{"$f":"Sheet2!G:G","v":"Jimbo's Liquors"},{"$f":"Sheet2!A:A","v":6023}]
[null,null,null,null,null,null,null,null,null,null,null,{"$f":"Sheet2!G:G","v":"Jimmy's Resaturant"},{"$f":"Sheet2!A:A","v":6024}]
[null,null,null,null,null,null,null,null,null,null,null,{"$f":"Sheet2!G:G","v":"Joe's Liquors"},{"$f":"Sheet2!A:A","v":6048}]
[null,null,null,null,null,null,null,null,null,null,null,{"$f":"Sheet2!G:G","v":"Juniper"},{"$f":"Sheet2!A:A","v":6049}]
[null,null,null,null,null,null,null,null,null,null,null,{"$f":"Sheet2!G:G","v":"Karma Bar and Lounge"},{"$f":"Sheet2!A:A","v":6051}]
[null,null,null,null,null,null,null,null,null,null,null,{"$f":"Sheet2!G:G","v":"Kenosha Steakhouse"},{"$f":"Sheet2!A:A","v":6052}]
[null,null,null,null,null,null,null,null,null,null,null,{"$f":"Sheet2!G:G","v":"Kokopelli Liquor"},{"$f":"Sheet2!A:A","v":6053}]
[null,null,null,null,null,null,null,null,null,null,null,{"$f":"Sheet2!G:G","v":"L Apogee"},{"$f":"Sheet2!A:A","v":6054}]
[null,null,null,null,null,null,null,null,null,null,null,{"$f":"Sheet2!G:G","v":"La Tour Resturant"},{"$f":"Sheet2!A:A","v":6058}]
[null,null,null,null,null,null,null,null,null,null,null,{"$f":"Sheet2!G:G","v":"Lake Dillon Discount Liquors"},{"$f":"Sheet2!A:A","v":6071}]
[null,null,null,null,null,null,null,null,null,null,null,{"$f":"Sheet2!G:G","v":"Lakeside Bowl"},{"$f":"Sheet2!A:A","v":6073}]
[null,null,null,null,null,null,null,null,null,null,null,{"$f":"Sheet2!G:G","v":"Larkspur Restaurant"},{"$f":"Sheet2!A:A","v":6074}]
[null,null,null,null,null,null,null,null,null,null,null,{"$f":"Sheet2!G:G","v":"Laundry, The"},{"$f":"Sheet2!A:A","v":6075}]
[null,null,null,null,null,null,null,null,null,null,null,{"$f":"Sheet2!G:G","v":"Lionshead Liquor"},{"$f":"Sheet2!A:A","v":6077}]
[null,null,null,null,null,null,null,null,null,null,null,{"$f":"Sheet2!G:G","v":"Liquor Shed, The"},{"$f":"Sheet2!A:A","v":6078}]
[null,null,null,null,null,null,null,null,null,null,null,{"$f":"Sheet2!G:G","v":"Liquor Shop"},{"$f":"Sheet2!A:A","v":6079}]
[null,null,null,null,null,null,null,null,null,null,null,{"$f":"Sheet2!G:G","v":"Liquor Store, The"},{"$f":"Sheet2!A:A","v":6080}]
[null,null,null,null,null,null,null,null,null,null,null,{"$f":"Sheet2!G:G","v":"Little Nell"},{"$f":"Sheet2!A:A","v":6081}]
[null,null,null,null,null,null,null,null,null,null,null,{"$f":"Sheet2!G:G","v":"Loadout Liquors"},{"$f":"Sheet2!A:A","v":6082}]
[null,null,null,null,null,null,null,null,null,null,null,{"$f":"Sheet2!G:G","v":"Local Liquors"},{"$f":"Sheet2!A:A","v":6084}]
[null,null,null,null,null,null,null,null,null,null,null,{"$f":"Sheet2!G:G","v":"Local Spirits"},{"$f":"Sheet2!A:A","v":6085}]
[null,null,null,null,null,null,null,null,null,null,null,{"$f":"Sheet2!G:G","v":"Loveland Pass Liquors"},{"$f":"Sheet2!A:A","v":6086}]
[null,null,null,null,null,null,null,null,null,null,null,{"$f":"Sheet2!G:G","v":"Low Country Kitchen"},{"$f":"Sheet2!A:A","v":6087}]
[null,null,null,null,null,null,null,null,null,null,null,{"$f":"Sheet2!G:G","v":"Mac's Liquor"},{"$f":"Sheet2!A:A","v":6088}]
[null,null,null,null,null,null,null,null,null,null,null,{"$f":"Sheet2!G:G","v":"Marc's Chicago Pizza"},{"$f":"Sheet2!A:A","v":6089}]
[null,null,null,null,null,null,null,null,null,null,null,{"$f":"Sheet2!G:G","v":"Market Wine & Spirits"},{"$f":"Sheet2!A:A","v":6090}]
[null,null,null,null,null,null,null,null,null,null,null,{"$f":"Sheet2!G:G","v":"Mary's Main Street Spirits"},{"$f":"Sheet2!A:A","v":6091}]
[null,null,null,null,null,null,null,null,null,null,null,{"$f":"Sheet2!G:G","v":"Mazzola's Italian"},{"$f":"Sheet2!A:A","v":6091}]
[null,null,null,null,null,null,null,null,null,null,null,{"$f":"Sheet2!G:G","v":"Metropolitan, The"},{"$f":"Sheet2!A:A","v":7000}]
[null,null,null,null,null,null,null,null,null,null,null,{"$f":"Sheet2!G:G","v":"Minturn Mile"},{"$f":"Sheet2!A:A","v":7001}]
[null,null,null,null,null,null,null,null,null,null,null,{"$f":"Sheet2!G:G","v":"Moe's BBQ"},{"$f":"Sheet2!A:A","v":7002}]
[null,null,null,null,null,null,null,null,null,null,null,{"$f":"Sheet2!G:G","v":"Moe's Original - Breckenridge"},{"$f":"Sheet2!A:A","v":7003}]
[null,null,null,null,null,null,null,null,null,null,null,{"$f":"Sheet2!G:G","v":"Moe's Original BBQ"},{"$f":"Sheet2!A:A","v":7004}]
[null,null,null,null,null,null,null,null,null,null,null,{"$f":"Sheet2!G:G","v":"Montauk Seafood Grill"},{"$f":"Sheet2!A:A","v":7005}]
[null,null,null,null,null,null,null,null,null,null,null,{"$f":"Sheet2!G:G","v":"Monument Village Liquor"},{"$f":"Sheet2!A:A","v":7021}]
[null,null,null,null,null,null,null,null,null,null,null,{"$f":"Sheet2!G:G","v":"Moonshine Liquors"},{"$f":"Sheet2!A:A","v":7022}]
[null,null,null,null,null,null,null,null,null,null,null,{"$f":"Sheet2!G:G","v":"Nancy McGees Irish Pub"},{"$f":"Sheet2!A:A","v":7023}]
[null,null,null,null,null,null,null,null,null,null,null,{"$f":"Sheet2!G:G","v":"Northside"},{"$f":"Sheet2!A:A","v":7024}]
[null,null,null,null,null,null,null,null,null,null,null,{"$f":"Sheet2!G:G","v":"Old Chicago GJ"},{"$f":"Sheet2!A:A","v":7025}]
[null,null,null,null,null,null,null,null,null,null,null,{"$f":"Sheet2!G:G","v":"Old Chicago Silverthorne"},{"$f":"Sheet2!A:A","v":7026}]
[null,null,null,null,null,null,null,null,null,null,null,{"$f":"Sheet2!G:G","v":"Old Forge Pizza Co. -  Frontage"},{"$f":"Sheet2!A:A","v":7027}]
[null,null,null,null,null,null,null,null,null,null,null,{"$f":"Sheet2!G:G","v":"Old Forge Pizza Co. -  Lionshead"},{"$f":"Sheet2!A:A","v":7028}]
[null,null,null,null,null,null,null,null,null,null,null,{"$f":"Sheet2!G:G","v":"Old Forge Pizza Co. - Edwards"},{"$f":"Sheet2!A:A","v":7030}]
[null,null,null,null,null,null,null,null,null,null,null,{"$f":"Sheet2!G:G","v":"Old Town Pub"},{"$f":"Sheet2!A:A","v":7031}]
[null,null,null,null,null,null,null,null,null,null,null,{"$f":"Sheet2!G:G","v":"Ollie's Pub and Grub"},{"$f":"Sheet2!A:A","v":7032}]
[null,null,null,null,null,null,null,null,null,null,null,{"$f":"Sheet2!G:G","v":"One Ski Hill Place"},{"$f":"Sheet2!A:A","v":7033}]
[null,null,null,null,null,null,null,null,null,null,null,{"$f":"Sheet2!G:G","v":"Orehouse at the Pine Grove"},{"$f":"Sheet2!A:A","v":7034}]
[null,null,null,null,null,null,null,null,null,null,null,{"$f":"Sheet2!G:G","v":"Ouray Liquors"},{"$f":"Sheet2!A:A","v":7035}]
[null,null,null,null,null,null,null,null,null,null,null,{"$f":"Sheet2!G:G","v":"Pahgre's"},{"$f":"Sheet2!A:A","v":7036}]
[null,null,null,null,null,null,null,null,null,null,null,{"$f":"Sheet2!G:G","v":"Paonia Liquors"},{"$f":"Sheet2!A:A","v":7037}]
[null,null,null,null,null,null,null,null,null,null,null,{"$f":"Sheet2!G:G","v":"Pastatively Inc."},{"$f":"Sheet2!A:A","v":7038}]
[null,null,null,null,null,null,null,null,null,null,null,{"$f":"Sheet2!G:G","v":"Pazzo's Pizzeria"},{"$f":"Sheet2!A:A","v":7039}]
[null,null,null,null,null,null,null,null,null,null,null,{"$f":"Sheet2!G:G","v":"Peachwood Liquor"},{"$f":"Sheet2!A:A","v":7040}]
[null,null,null,null,null,null,null,null,null,null,null,{"$f":"Sheet2!G:G","v":"Peppinos Pizza of Carbondale"},{"$f":"Sheet2!A:A","v":7041}]
[null,null,null,null,null,null,null,null,null,null,null,{"$f":"Sheet2!G:G","v":"Pete's House Of Spirits"},{"$f":"Sheet2!A:A","v":7049}]
[null,null,null,null,null,null,null,null,null,null,null,{"$f":"Sheet2!G:G","v":"Phat Thai"},{"$f":"Sheet2!A:A","v":7050}]
[null,null,null,null,null,null,null,null,null,null,null,{"$f":"Sheet2!G:G","v":"Pier 13 Liquor"},{"$f":"Sheet2!A:A","v":7051}]
[null,null,null,null,null,null,null,null,null,null,null,{"$f":"Sheet2!G:G","v":"Pizza on the Plaza"},{"$f":"Sheet2!A:A","v":7052}]
[null,null,null,null,null,null,null,null,null,null,null,{"$f":"Sheet2!G:G","v":"Plaza Liquors"},{"$f":"Sheet2!A:A","v":7053}]
[null,null,null,null,null,null,null,null,null,null,null,{"$f":"Sheet2!G:G","v":"Primavera Liquors"},{"$f":"Sheet2!A:A","v":7054}]
[null,null,null,null,null,null,null,null,null,null,null,{"$f":"Sheet2!G:G","v":"Rasta Pasta"},{"$f":"Sheet2!A:A","v":7055}]
[null,null,null,null,null,null,null,null,null,null,null,{"$f":"Sheet2!G:G","v":"Red Mountain Grill Avon"},{"$f":"Sheet2!A:A","v":7056}]
[null,null,null,null,null,null,null,null,null,null,null,{"$f":"Sheet2!G:G","v":"Red Mountain Wine & Spirits"},{"$f":"Sheet2!A:A","v":7057}]
[null,null,null,null,null,null,null,null,null,null,null,{"$f":"Sheet2!G:G","v":"Redlands Liquor"},{"$f":"Sheet2!A:A","v":7058}]
[null,null,null,null,null,null,null,null,null,null,null,{"$f":"Sheet2!G:G","v":"Relish"},{"$f":"Sheet2!A:A","v":7059}]
[null,null,null,null,null,null,null,null,null,null,null,{"$f":"Sheet2!G:G","v":"Restarurant Kelly Liken"},{"$f":"Sheet2!A:A","v":7060}]
[null,null,null,null,null,null,null,null,null,null,null,{"$f":"Sheet2!G:G","v":"Rex's"},{"$f":"Sheet2!A:A","v":7061}]
[null,null,null,null,null,null,null,null,null,null,null,{"$f":"Sheet2!G:G","v":"Rhino Liquors"},{"$f":"Sheet2!A:A","v":7067}]
[null,null,null,null,null,null,null,null,null,null,null,{"$f":"Sheet2!G:G","v":"Rio Grande Mexican Restaurant"},{"$f":"Sheet2!A:A","v":7071}]
[null,null,null,null,null,null,null,null,null,null,null,{"$f":"Sheet2!G:G","v":"Ristorante Pantuso's"},{"$f":"Sheet2!A:A","v":7073}]
[null,null,null,null,null,null,null,null,null,null,null,{"$f":"Sheet2!G:G","v":"Ristorante Ti Amo"},{"$f":"Sheet2!A:A","v":7074}]
[null,null,null,null,null,null,null,null,null,null,null,{"$f":"Sheet2!G:G","v":"Riverside Spirits"},{"$f":"Sheet2!A:A","v":7075}]
[null,null,null,null,null,null,null,null,null,null,null,{"$f":"Sheet2!G:G","v":"Riverwalk Wine & Spirits"},{"$f":"Sheet2!A:A","v":7076}]
[null,null,null,null,null,null,null,null,null,null,null,{"$f":"Sheet2!G:G","v":"Roaring Fork Club"},{"$f":"Sheet2!A:A","v":7091}]
[null,null,null,null,null,null,null,null,null,null,null,{"$f":"Sheet2!G:G","v":"Roaring Fork Liquors"},{"$f":"Sheet2!A:A","v":7094}]
[null,null,null,null,null,null,null,null,null,null,null,{"$f":"Sheet2!G:G","v":"Rockin R Ranch"},{"$f":"Sheet2!A:A","v":7096}]
[null,null,null,null,null,null,null,null,null,null,null,{"$f":"Sheet2!G:G","v":"Rocky Mountain Liquors"},{"$f":"Sheet2!A:A","v":7098}]
[null,null,null,null,null,null,null,null,null,null,null,{"$f":"Sheet2!G:G","v":"Roosters"},{"$f":"Sheet2!A:A","v":7102}]
[null,null,null,null,null,null,null,null,null,null,null,{"$f":"Sheet2!G:G","v":"Russo's Pizza"},{"$f":"Sheet2!A:A","v":7103}]
[null,null,null,null,null,null,null,null,null,null,null,{"$f":"Sheet2!G:G","v":"Rusted Porch"},{"$f":"Sheet2!A:A","v":7204}]
[null,null,null,null,null,null,null,null,null,null,null,{"$f":"Sheet2!G:G","v":"Saketumi"},{"$f":"Sheet2!A:A","v":7227}]
[null,null,null,null,null,null,null,null,null,null,null,{"$f":"Sheet2!G:G","v":"Samples - Gerardo Castillo"},{"$f":"Sheet2!A:A","v":7230}]
[null,null,null,null,null,null,null,null,null,null,null,{"$f":"Sheet2!G:G","v":"Samples - JT Krizman"},{"$f":"Sheet2!A:A","v":7240}]
[null,null,null,null,null,null,null,null,null,null,null,{"$f":"Sheet2!G:G","v":"Samples - William Lodge"},{"$f":"Sheet2!A:A","v":7241}]
[null,null,null,null,null,null,null,null,null,null,null,{"$f":"Sheet2!G:G","v":"San Juan Liquors"},{"$f":"Sheet2!A:A","v":7242}]
[null,null,null,null,null,null,null,null,null,null,null,{"$f":"Sheet2!G:G","v":"Schmiggity's"},{"$f":"Sheet2!A:A","v":7243}]
[null,null,null,null,null,null,null,null,null,null,null,{"$f":"Sheet2!G:G","v":"Sevens Restaurant"},{"$f":"Sheet2!A:A","v":7244}]
[null,null,null,null,null,null,null,null,null,null,null,{"$f":"Sheet2!G:G","v":"Sheraton Steamboat Resort"},{"$f":"Sheet2!A:A","v":7245}]
[null,null,null,null,null,null,null,null,null,null,null,{"$f":"Sheet2!G:G","v":"Silt Disount Liquor"},{"$f":"Sheet2!A:A","v":7247}]
[null,null,null,null,null,null,null,null,null,null,null,{"$f":"Sheet2!G:G","v":"Silverthorne Liquors"},{"$f":"Sheet2!A:A","v":7248}]
[null,null,null,null,null,null,null,null,null,null,null,{"$f":"Sheet2!G:G","v":"Skee Vue Liquors"},{"$f":"Sheet2!A:A","v":7249}]
[null,null,null,null,null,null,null,null,null,null,null,{"$f":"Sheet2!G:G","v":"Ski Haus Liquors"},{"$f":"Sheet2!A:A","v":7250}]
[null,null,null,null,null,null,null,null,null,null,null,{"$f":"Sheet2!G:G","v":"Ski Town Liquor"},{"$f":"Sheet2!A:A","v":7300}]
[null,null,null,null,null,null,null,null,null,null,null,{"$f":"Sheet2!G:G","v":"Sky Hotel and 39 Degrees"},{"$f":"Sheet2!A:A","v":7301}]
[null,null,null,null,null,null,null,null,null,null,null,{"$f":"Sheet2!G:G","v":"Smoke"},{"$f":"Sheet2!A:A","v":7302}]
[null,null,null,null,null,null,null,null,null,null,null,{"$f":"Sheet2!G:G","v":"Smoke Modern BBQ"},{"$f":"Sheet2!A:A","v":7303}]
[null,null,null,null,null,null,null,null,null,null,null,{"$f":"Sheet2!G:G","v":"Sopris Liquors & Wine"},{"$f":"Sheet2!A:A","v":7304}]
[null,null,null,null,null,null,null,null,null,null,null,{"$f":"Sheet2!G:G","v":"South Ridge Seafood"},{"$f":"Sheet2!A:A","v":7400}]
[null,null,null,null,null,null,null,null,null,null,null,{"$f":"Sheet2!G:G","v":"South Side Liquors"},{"$f":"Sheet2!A:A","v":7401}]
[null,null,null,null,null,null,null,null,null,null,null,{"$f":"Sheet2!G:G","v":"Spike's Liquors"},{"$f":"Sheet2!A:A","v":7402}]
[null,null,null,null,null,null,null,null,null,null,null,{"$f":"Sheet2!G:G","v":"Spirits of Newcastle"},{"$f":"Sheet2!A:A","v":7403}]
[null,null,null,null,null,null,null,null,null,null,null,{"$f":"Sheet2!G:G","v":"Steamboat Golf Club"},{"$f":"Sheet2!A:A","v":7404}]
[null,null,null,null,null,null,null,null,null,null,null,{"$f":"Sheet2!G:G","v":"Steamboat Grand"},{"$f":"Sheet2!A:A","v":7405}]
[null,null,null,null,null,null,null,null,null,null,null,{"$f":"Sheet2!G:G","v":"Summit Liquors"},{"$f":"Sheet2!A:A","v":7406}]
[null,null,null,null,null,null,null,null,null,null,null,{"$f":"Sheet2!G:G","v":"Sundance"},{"$f":"Sheet2!A:A","v":7407}]
[null,null,null,null,null,null,null,null,null,null,null,{"$f":"Sheet2!G:G","v":"Sure Thing Burger"},{"$f":"Sheet2!A:A","v":7409}]
[null,null,null,null,null,null,null,null,null,null,null,{"$f":"Sheet2!G:G","v":"Sweet Basil & Mountain"},{"$f":"Sheet2!A:A","v":7410}]
[null,null,null,null,null,null,null,null,null,null,null,{"$f":"Sheet2!G:G","v":"Sweet Coloradough"},{"$f":"Sheet2!A:A","v":7427}]
[null,null,null,null,null,null,null,null,null,null,null,{"$f":"Sheet2!G:G","v":"Sweet Waters Liquor"},{"$f":"Sheet2!A:A","v":7428}]
[null,null,null,null,null,null,null,null,null,null,null,{"$f":"Sheet2!G:G","v":"Sweetwater Grill"},{"$f":"Sheet2!A:A","v":7429}]
[null,null,null,null,null,null,null,null,null,null,null,{"$f":"Sheet2!G:G","v":"Tap House Sports Grill"},{"$f":"Sheet2!A:A","v":7431}]
[null,null,null,null,null,null,null,null,null,null,null,{"$f":"Sheet2!G:G","v":"Taqueria El Nopal #1"},{"$f":"Sheet2!A:A","v":7444}]
[null,null,null,null,null,null,null,null,null,null,null,{"$f":"Sheet2!G:G","v":"Taqueria El Nopal #2"},{"$f":"Sheet2!A:A","v":7445}]
[null,null,null,null,null,null,null,null,null,null,null,{"$f":"Sheet2!G:G","v":"Teller Arms Liquor"},{"$f":"Sheet2!A:A","v":7446}]
[null,null,null,null,null,null,null,null,null,null,null,{"$f":"Sheet2!G:G","v":"Telluride Bottle Works"},{"$f":"Sheet2!A:A","v":7447}]
[null,null,null,null,null,null,null,null,null,null,null,{"$f":"Sheet2!G:G","v":"Terra Bistro"},{"$f":"Sheet2!A:A","v":7448}]
[null,null,null,null,null,null,null,null,null,null,null,{"$f":"Sheet2!G:G","v":"The Pullman"},{"$f":"Sheet2!A:A","v":7449}]
[null,null,null,null,null,null,null,null,null,null,null,{"$f":"Sheet2!G:G","v":"Three Peaks Grill"},{"$f":"Sheet2!A:A","v":7450}]
[null,null,null,null,null,null,null,null,null,null,null,{"$f":"Sheet2!G:G","v":"Ticino Italian"},{"$f":"Sheet2!A:A","v":7451}]
[null,null,null,null,null,null,null,null,null,null,null,{"$f":"Sheet2!G:G","v":"Town"},{"$f":"Sheet2!A:A","v":7452}]
[null,null,null,null,null,null,null,null,null,null,null,{"$f":"Sheet2!G:G","v":"Trattoria Dionisia"},{"$f":"Sheet2!A:A","v":7453}]
[null,null,null,null,null,null,null,null,null,null,null,{"$f":"Sheet2!G:G","v":"Tri R Liquors"},{"$f":"Sheet2!A:A","v":7454}]
[null,null,null,null,null,null,null,null,null,null,null,{"$f":"Sheet2!G:G","v":"Truffle Pig "},{"$f":"Sheet2!A:A","v":7455}]
[null,null,null,null,null,null,null,null,null,null,null,{"$f":"Sheet2!G:G","v":"Twist"},{"$f":"Sheet2!A:A","v":7456}]
[null,null,null,null,null,null,null,null,null,null,null,{"$f":"Sheet2!G:G","v":"Uncle Sid's Bottles"},{"$f":"Sheet2!A:A","v":7457}]
[null,null,null,null,null,null,null,null,null,null,null,{"$f":"Sheet2!G:G","v":"Vail Ale House"},{"$f":"Sheet2!A:A","v":7460}]
[null,null,null,null,null,null,null,null,null,null,null,{"$f":"Sheet2!G:G","v":"Vail Ampatheater Corp"},{"$f":"Sheet2!A:A","v":7462}]
[null,null,null,null,null,null,null,null,null,null,null,{"$f":"Sheet2!G:G","v":"Vail Cascade Resort"},{"$f":"Sheet2!A:A","v":7464}]
[null,null,null,null,null,null,null,null,null,null,null,{"$f":"Sheet2!G:G","v":"Vail Fine Wines"},{"$f":"Sheet2!A:A","v":7466}]
[null,null,null,null,null,null,null,null,null,null,null,{"$f":"Sheet2!G:G","v":"Vendetta"},{"$f":"Sheet2!A:A","v":7474}]
[null,null,null,null,null,null,null,null,null,null,null,{"$f":"Sheet2!G:G","v":"Village at Breckenridge Resort"},{"$f":"Sheet2!A:A","v":7475}]
[null,null,null,null,null,null,null,null,null,null,null,{"$f":"Sheet2!G:G","v":"Village Liquors"},{"$f":"Sheet2!A:A","v":7476}]
[null,null,null,null,null,null,null,null,null,null,null,{"$f":"Sheet2!G:G","v":"Village Warehouse Wine & Spirits"},{"$f":"Sheet2!A:A","v":7477}]
[null,null,null,null,null,null,null,null,null,null,null,{"$f":"Sheet2!G:G","v":"Vin 48"},{"$f":"Sheet2!A:A","v":7479}]
[null,null,null,null,null,null,null,null,null,null,null,{"$f":"Sheet2!G:G","v":"West End Liquor"},{"$f":"Sheet2!A:A","v":7480}]
[null,null,null,null,null,null,null,null,null,null,null,{"$f":"Sheet2!G:G","v":"West Side Café and Market"},{"$f":"Sheet2!A:A","v":7481}]
[null,null,null,null,null,null,null,null,null,null,null,{"$f":"Sheet2!G:G","v":"West Vail Liquors"},{"$f":"Sheet2!A:A","v":7482}]
[null,null,null,null,null,null,null,null,null,null,null,{"$f":"Sheet2!G:G","v":"Westin Riverfront Resort & Spa"},{"$f":"Sheet2!A:A","v":7483}]
[null,null,null,null,null,null,null,null,null,null,null,{"$f":"Sheet2!G:G","v":"White House Tavern"},{"$f":"Sheet2!A:A","v":7484}]
[null,null,null,null,null,null,null,null,null,null,null,{"$f":"Sheet2!G:G","v":"Wine Mine"},{"$f":"Sheet2!A:A","v":7485}]
[null,null,null,null,null,null,null,null,null,null,null,{"$f":"Sheet2!G:G","v":"Winery Restaurant, The"},{"$f":"Sheet2!A:A","v":7487}]
[null,null,null,null,null,null,null,null,null,null,null,{"$f":"Sheet2!G:G","v":"Winetime"},{"$f":"Sheet2!A:A","v":7489}]
[null,null,null,null,null,null,null,null,null,null,null,{"$f":"Sheet2!G:G","v":"Winter Park Wine & Spirits"},{"$f":"Sheet2!A:A","v":7498}]
[null,null,null,null,null,null,null,null,null,null,null,{"$f":"Sheet2!G:G","v":"WW Peppers"},{"$f":"Sheet2!A:A","v":7499}]
[null,null,null,null,null,null,null,null,null,null,null,{"$f":"Sheet2!G:G","v":"Yama"},{"$f":"Sheet2!A:A","v":7500}]
[null,null,null,null,null,null,null,null,null,null,null,{"$f":"Sheet2!G:G","v":0},{"$f":"Sheet2!A:A","v":8000}]
[null,null,null,null,null,null,null,null,null,null,null,{"$f":"Sheet2!G:G","v":0},{"$f":"Sheet2!A:A","v":8001}]
[null,null,null,null,null,null,null,null,null,null,null,{"$f":"Sheet2!G:G","v":0},{"$f":"Sheet2!A:A","v":8008}]
[null,null,null,null,null,null,null,null,null,null,null,{"$f":"Sheet2!G:G","v":0},{"$f":"Sheet2!A:A","v":8022}]
[null,null,null,null,null,null,null,null,null,null,null,{"$f":"Sheet2!G:G","v":0},{"$f":"Sheet2!A:A","v":8024}]
[null,null,null,null,null,null,null,null,null,null,null,{"$f":"Sheet2!G:G","v":0},{"$f":"Sheet2!A:A","v":8025}]
[null,null,null,null,null,null,null,null,null,null,null,{"$f":"Sheet2!G:G","v":0},{"$f":"Sheet2!A:A","v":8026}]
[null,null,null,null,null,null,null,null,null,null,null,{"$f":"Sheet2!G:G","v":0},{"$f":"Sheet2!A:A","v":8027}]
[null,null,null,null,null,null,null,null,null,null,null,{"$f":"Sheet2!G:G","v":0},{"$f":"Sheet2!A:A","v":8028}]
[null,null,null,null,null,null,null,null,null,null,null,{"$f":"Sheet2!G:G","v":0},{"$f":"Sheet2!A:A","v":8029}]
[null,null,null,null,null,null,null,null,null,null,null,{"$f":"Sheet2!G:G","v":0},{"$f":"Sheet2!A:A","v":8030}]
[null,null,null,null,null,null,null,null,null,null,null,{"$f":"Sheet2!G:G","v":0},{"$f":"Sheet2!A:A","v":8032}]
[null,null,null,null,null,null,null,null,null,null,null,{"$f":"Sheet2!G:G","v":0},{"$f":"Sheet2!A:A","v":8033}]
[null,null,null,null,null,null,null,null,null,null,null,{"$f":"Sheet2!G:G","v":0},{"$f":"Sheet2!A:A","v":8040}]
[null,null,null,null,null,null,null,null,null,null,null,{"$f":"Sheet2!G:G","v":0},{"$f":"Sheet2!A:A","v":8041}]
[null,null,null,null,null,null,null,null,null,null,null,{"$f":"Sheet2!G:G","v":0},{"$f":"Sheet2!A:A","v":8042}]
[null,null,null,null,null,null,null,null,null,null,null,{"$f":"Sheet2!G:G","v":0},{"$f":"Sheet2!A:A","v":8043}]
[null,null,null,null,null,null,null,null,null,null,null,{"$f":"Sheet2!G:G","v":0},{"$f":"Sheet2!A:A","v":8044}]
[null,null,null,null,null,null,null,null,null,null,null,{"$f":"Sheet2!G:G","v":0},{"$f":"Sheet2!A:A","v":8045}]
[null,null,null,null,null,null,null,null,null,null,null,{"$f":"Sheet2!G:G","v":0},{"$f":"Sheet2!A:A","v":8046}]
[null,null,null,null,null,null,null,null,null,null,null,{"$f":"Sheet2!G:G","v":0},{"$f":"Sheet2!A:A","v":8047}]
[null,null,null,null,null,null,null,null,null,null,null,{"$f":"Sheet2!G:G","v":0},{"$f":"Sheet2!A:A","v":8050}]
[null,null,null,null,null,null,null,null,null,null,null,{"$f":"Sheet2!G:G","v":0},{"$f":"Sheet2!A:A","v":8051}]
[null,null,null,null,null,null,null,null,null,null,null,{"$f":"Sheet2!G:G","v":0},{"$f":"Sheet2!A:A","v":8052}]
[null,null,null,null,null,null,null,null,null,null,null,{"$f":"Sheet2!G:G","v":0},{"$f":"Sheet2!A:A","v":8053}]
[null,null,null,null,null,null,null,null,null,null,null,{"$f":"Sheet2!G:G","v":0},{"$f":"Sheet2!A:A","v":9003}]
[null,null,null,null,null,null,null,null,null,null,null,{"$f":"Sheet2!G:G","v":0},{"$f":"Sheet2!A:A","v":9020}]
[null,null,null,null,null,null,null,null,null,null,null,{"$f":"Sheet2!G:G","v":0},{"$f":"Sheet2!A:A","v":9021}]
[null,null,null,null,null,null,null,null,null,null,null,{"$f":"Sheet2!G:G","v":0},{"$f":"Sheet2!A:A","v":9022}]
[null,null,null,null,null,null,null,null,null,null,null,{"$f":"Sheet2!G:G","v":0},{"$f":"Sheet2!A:A","v":9023}]
[null,null,null,null,null,null,null,null,null,null,null,{"$f":"Sheet2!G:G","v":0},{"$f":"Sheet2!A:A","v":9024}]
[null,null,null,null,null,null,null,null,null,null,null,{"$f":"Sheet2!G:G","v":0},{"$f":"Sheet2!A:A","v":9028}]
[null,null,null,null,null,null,null,null,null,null,null,{"$f":"Sheet2!G:G","v":0},{"$f":"Sheet2!A:A","v":9029}]
[null,null,null,null,null,null,null,null,null,null,null,{"$f":"Sheet2!G:G","v":0},{"$f":"Sheet2!A:A","v":9030}]
[null,null,null,null,null,null,null,null,null,null,null,{"$f":"Sheet2!G:G","v":0},{"$f":"Sheet2!A:A","v":9031}]
[null,null,null,null,null,null,null,null,null,null,null,{"$f":"Sheet2!G:G","v":0},{"$f":"Sheet2!A:A","v":9032}]
[null,null,null,null,null,null,null,null,null,null,null,{"$f":"Sheet2!G:G","v":0},{"$f":"Sheet2!A:A","v":9034}]
[null,null,null,null,null,null,null,null,null,null,null,{"$f":"Sheet2!G:G","v":0},{"$f":"Sheet2!A:A","v":9038}]
[null,null,null,null,null,null,null,null,null,null,null,{"$f":"Sheet2!G:G","v":0},{"$f":"Sheet2!A:A","v":9039}]
[null,null,null,null,null,null,null,null,null,null,null,{"$f":"Sheet2!G:G","v":0},{"$f":"Sheet2!A:A","v":9043}]
[null,null,null,null,null,null,null,null,null,null,null,{"$f":"Sheet2!G:G","v":0},{"$f":"Sheet2!A:A","v":9054}]
[null,null,null,null,null,null,null,null,null,null,null,{"$f":"Sheet2!G:G","v":0},{"$f":"Sheet2!A:A","v":9055}]
[null,null,null,null,null,null,null,null,null,null,null,{"$f":"Sheet2!G:G","v":0},{"$f":"Sheet2!A:A","v":9057}]
[null,null,null,null,null,null,null,null,null,null,null,{"$f":"Sheet2!G:G","v":0},{"$f":"Sheet2!A:A","v":9058}]
[null,null,null,null,null,null,null,null,null,null,null,{"$f":"Sheet2!G:G","v":0},{"$f":"Sheet2!A:A","v":9060}]
[null,null,null,null,null,null,null,null,null,null,null,{"$f":"Sheet2!G:G","v":0},{"$f":"Sheet2!A:A","v":9061}]
[null,null,null,null,null,null,null,null,null,null,null,{"$f":"Sheet2!G:G","v":0},{"$f":"Sheet2!A:A","v":9062}]
[null,null,null,null,null,null,null,null,null,null,null,{"$f":"Sheet2!G:G","v":0},{"$f":"Sheet2!A:A","v":9063}]
[null,null,null,null,null,null,null,null,null,null,null,{"$f":"Sheet2!G:G","v":0},{"$f":"Sheet2!A:A","v":9064}]
[null,null,null,null,null,null,null,null,null,null,null,{"$f":"Sheet2!G:G","v":0},{"$f":"Sheet2!A:A","v":9065}]
[null,null,null,null,null,null,null,null,null,null,null,{"$f":"Sheet2!G:G","v":0},{"$f":"Sheet2!A:A","v":9066}]
[null,null,null,null,null,null,null,null,null,null,null,{"$f":"Sheet2!G:G","v":0},{"$f":"Sheet2!A:A","v":9067}]
[null,null,null,null,null,null,null,null,null,null,null,{"$f":"Sheet2!G:G","v":0},{"$f":"Sheet2!A:A","v":9068}]
[null,null,null,null,null,null,null,null,null,null,null,{"$f":"Sheet2!G:G","v":0},{"$f":"Sheet2!A:A","v":9100}]
[null,null,null,null,null,null,null,null,null,null,null,{"$f":"Sheet2!G:G","v":0},{"$f":"Sheet2!A:A","v":9101}]
[null,null,null,null,null,null,null,null,null,null,null,{"$f":"Sheet2!G:G","v":0},{"$f":"Sheet2!A:A","v":9102}]
[null,null,null,null,null,null,null,null,null,null,null,{"$f":"Sheet2!G:G","v":0},{"$f":"Sheet2!A:A","v":9103}]
[null,null,null,null,null,null,null,null,null,null,null,{"$f":"Sheet2!G:G","v":0},{"$f":"Sheet2!A:A","v":9104}]
[null,null,null,null,null,null,null,null,null,null,null,{"$f":"Sheet2!G:G","v":0},{"$f":"Sheet2!A:A","v":9105}]
[null,null,null,null,null,null,null,null,null,null,null,{"$f":"Sheet2!G:G","v":0},{"$f":"Sheet2!A:A","v":9106}]
[null,null,null,null,null,null,null,null,null,null,null,{"$f":"Sheet2!G:G","v":0},{"$f":"Sheet2!A:A","v":9107}]
[null,null,null,null,null,null,null,null,null,null,null,{"$f":"Sheet2!G:G","v":0},{"$f":"Sheet2!A:A","v":9108}]
[null,null,null,null,null,null,null,null,null,null,null,{"$f":"Sheet2!G:G","v":0},{"$f":"Sheet2!A:A","v":9109}]
[null,null,null,null,null,null,null,null,null,null,null,{"$f":"Sheet2!G:G","v":0},{"$f":"Sheet2!A:A","v":9110}]
[null,null,null,null,null,null,null,null,null,null,null,{"$f":"Sheet2!G:G","v":0},{"$f":"Sheet2!A:A","v":9111}]
[null,null,null,null,null,null,null,null,null,null,null,{"$f":"Sheet2!G:G","v":0},{"$f":"Sheet2!A:A","v":9112}]
[null,null,null,null,null,null,null,null,null,null,null,{"$f":"Sheet2!G:G","v":0},{"$f":"Sheet2!A:A","v":9113}]
[null,null,null,null,null,null,null,null,null,null,null,{"$f":"Sheet2!G:G","v":0},{"$f":"Sheet2!A:A","v":9114}]
[null,null,null,null,null,null,null,null,null,null,null,{"$f":"Sheet2!G:G","v":0},{"$f":"Sheet2!A:A","v":9115}]
[null,null,null,null,null,null,null,null,null,null,null,{"$f":"Sheet2!G:G","v":0},{"$f":"Sheet2!A:A","v":9119}]
[null,null,null,null,null,null,null,null,null,null,null,{"$f":"Sheet2!G:G","v":0},{"$f":"Sheet2!A:A","v":9210}]
[null,null,null,null,null,null,null,null,null,null,null,{"$f":"Sheet2!G:G","v":0},{"$f":"Sheet2!A:A","v":9950}]
[null,null,null,null,null,null,null,null,null,null,null,{"$f":"Sheet2!G:G","v":0},{"$f":"Sheet2!A:A","v":9951}]
[null,null,null,null,null,null,null,null,null,null,null,{"$f":"Sheet2!G:G","v":0},{"$f":"Sheet2!A:A","v":9955}]
[null,null,null,null,null,null,null,null,null,null,null,{"$f":"Sheet2!G:G","v":0},{"$f":"Sheet2!A:A","v":9956}]
[null,null,null,null,null,null,null,null,null,null,null,{"$f":"Sheet2!G:G","v":0},{"$f":"Sheet2!A:A","v":9960}]
[null,null,null,null,null,null,null,null,null,null,null,{"$f":"Sheet2!G:G","v":0},{"$f":"Sheet2!A:A","v":9962}]
[null,null,null,null,null,null,null,null,null,null,null,{"$f":"Sheet2!G:G","v":0},{"$f":"Sheet2!A:A","v":9965}]
[null,null,null,null,null,null,null,null,null,null,null,{"$f":"Sheet2!G:G","v":0},{"$f":"Sheet2!A:A","v":9970}]
[null,null,null,null,null,null,null,null,null,null,null,{"$f":"Sheet2!G:G","v":0},{"$f":"Sheet2!A:A","v":9971}]
[null,null,null,null,null,null,null,null,null,null,null,{"$f":"Sheet2!G:G","v":0},{"$f":"Sheet2!A:A","v":9995}]
[null,null,null,null,null,null,null,null,null,null,null,{"$f":"Sheet2!G:G","v":0},{"$f":"Sheet2!A:A","v":0}]
[null,null,null,null,null,null,null,null,null,null,null,{"$f":"Sheet2!G:G","v":0},{"$f":"Sheet2!A:A","v":0}]
[null,null,null,null,null,null,null,null,null,null,null,{"$f":"Sheet2!G:G","v":0},{"$f":"Sheet2!A:A","v":0}]
[null,null,null,null,null,null,null,null,null,null,null,{"$f":"Sheet2!G:G","v":0},{"$f":"Sheet2!A:A","v":0}]
[null,null,null,null,null,null,null,null,null,null,null,{"$f":"Sheet2!G:G","v":0},{"$f":"Sheet2!A:A","v":0}]
[null,null,null,null,null,null,null,null,null,null,null,{"$f":"Sheet2!G:G","v":0},{"$f":"Sheet2!A:A","v":0}]
[null,null,null,null,null,null,null,null,null,null,null,{"$f":"Sheet2!G:G","v":0},{"$f":"Sheet2!A:A","v":0}]
[null,null,null,null,null,null,null,null,null,null,null,{"$f":"Sheet2!G:G","v":0},{"$f":"Sheet2!A:A","v":0}]
[null,null,null,null,null,null,null,null,null,null,null,{"$f":"Sheet2!G:G","v":0},{"$f":"Sheet2!A:A","v":0}]
[null,null,null,null,null,null,null,null,null,null,null,{"$f":"Sheet2!G:G","v":0},{"$f":"Sheet2!A:A","v":0}]
[null,null,null,null,null,null,null,null,null,null,null,{"$f":"Sheet2!G:G","v":0},{"$f":"Sheet2!A:A","v":0}]
[null,null,null,null,null,null,null,null,null,null,null,{"$f":"Sheet2!G:G","v":0},{"$f":"Sheet2!A:A","v":0}]
[null,null,null,null,null,null,null,null,null,null,null,{"$f":"Sheet2!G:G","v":0},{"$f":"Sheet2!A:A","v":0}]
[null,null,null,null,null,null,null,null,null,null,null,{"$f":"Sheet2!G:G","v":0},{"$f":"Sheet2!A:A","v":0}]
[null,null,null,null,null,null,null,null,null,null,null,{"$f":"Sheet2!G:G","v":0},{"$f":"Sheet2!A:A","v":0}]
[null,null,null,null,null,null,null,null,null,null,null,{"$f":"Sheet2!G:G","v":0},{"$f":"Sheet2!A:A","v":0}]
[null,null,null,null,null,null,null,null,null,null,null,{"$f":"Sheet2!G:G","v":0},{"$f":"Sheet2!A:A","v":0}]
[null,null,null,null,null,null,null,null,null,null,null,{"$f":"Sheet2!G:G","v":0},{"$f":"Sheet2!A:A","v":0}]
[null,null,null,null,null,null,null,null,null,null,null,{"$f":"Sheet2!G:G","v":0},{"$f":"Sheet2!A:A","v":0}]
[null,null,null,null,null,null,null,null,null,null,null,{"$f":"Sheet2!G:G","v":0},{"$f":"Sheet2!A:A","v":0}]
[null,null,null,null,null,null,null,null,null,null,null,{"$f":"Sheet2!G:G","v":0},{"$f":"Sheet2!A:A","v":0}]
[null,null,null,null,null,null,null,null,null,null,null,{"$f":"Sheet2!G:G","v":0},{"$f":"Sheet2!A:A","v":0}]
[null,null,null,null,null,null,null,null,null,null,null,{"$f":"Sheet2!G:G","v":0},{"$f":"Sheet2!A:A","v":0}]
[null,null,null,null,null,null,null,null,null,null,null,{"$f":"Sheet2!G:G","v":0},{"$f":"Sheet2!A:A","v":0}]
[null,null,null,null,null,null,null,null,null,null,null,{"$f":"Sheet2!G:G","v":0},{"$f":"Sheet2!A:A","v":0}]
[null,null,null,null,null,null,null,null,null,null,null,{"$f":"Sheet2!G:G","v":0},{"$f":"Sheet2!A:A","v":0}]
[null,null,null,null,null,null,null,null,null,null,null,{"$f":"Sheet2!G:G","v":0},{"$f":"Sheet2!A:A","v":0}]
[null,null,null,null,null,null,null,null,null,null,null,{"$f":"Sheet2!G:G","v":0},{"$f":"Sheet2!A:A","v":0}]
[null,null,null,null,null,null,null,null,null,null,null,{"$f":"Sheet2!G:G","v":0},{"$f":"Sheet2!A:A","v":0}]
[null,null,null,null,null,null,null,null,null,null,null,{"$f":"Sheet2!G:G","v":0},{"$f":"Sheet2!A:A","v":0}]
[null,null,null,null,null,null,null,null,null,null,null,{"$f":"Sheet2!G:G","v":0},{"$f":"Sheet2!A:A","v":0}]
[null,null,null,null,null,null,null,null,null,null,null,{"$f":"Sheet2!G:G","v":0},{"$f":"Sheet2!A:A","v":0}]
[null,null,null,null,null,null,null,null,null,null,null,{"$f":"Sheet2!G:G","v":0},{"$f":"Sheet2!A:A","v":0}]
[null,null,null,null,null,null,null,null,null,null,null,{"$f":"Sheet2!G:G","v":0},{"$f":"Sheet2!A:A","v":0}]
[null,null,null,null,null,null,null,null,null,null,null,{"$f":"Sheet2!G:G","v":0},{"$f":"Sheet2!A:A","v":0}]
[null,null,null,null,null,null,null,null,null,null,null,{"$f":"Sheet2!G:G","v":0},{"$f":"Sheet2!A:A","v":0}]
[null,null,null,null,null,null,null,null,null,null,null,{"$f":"Sheet2!G:G","v":0},{"$f":"Sheet2!A:A","v":0}]
[null,null,null,null,null,null,null,null,null,null,null,{"$f":"Sheet2!G:G","v":0},{"$f":"Sheet2!A:A","v":0}]
[null,null,null,null,null,null,null,null,null,null,null,{"$f":"Sheet2!G:G","v":0},{"$f":"Sheet2!A:A","v":0}]
[null,null,null,null,null,null,null,null,null,null,null,{"$f":"Sheet2!G:G","v":0},{"$f":"Sheet2!A:A","v":0}]
[null,null,null,null,null,null,null,null,null,null,null,{"$f":"Sheet2!G:G","v":0},{"$f":"Sheet2!A:A","v":0}]
[null,null,null,null,null,null,null,null,null,null,null,{"$f":"Sheet2!G:G","v":0},{"$f":"Sheet2!A:A","v":0}]
[null,null,null,null,null,null,null,null,null,null,null,{"$f":"Sheet2!G:G","v":0},{"$f":"Sheet2!A:A","v":0}]
[null,null,null,null,null,null,null,null,null,null,null,{"$f":"Sheet2!G:G","v":0},{"$f":"Sheet2!A:A","v":0}]
[null,null,null,null,null,null,null,null,null,null,null,{"$f":"Sheet2!G:G","v":0},{"$f":"Sheet2!A:A","v":0}]
[null,null,null,null,null,null,null,null,null,null,null,{"$f":"Sheet2!G:G","v":0},{"$f":"Sheet2!A:A","v":0}]
[null,null,null,null,null,null,null,null,null,null,null,{"$f":"Sheet2!G:G","v":0},{"$f":"Sheet2!A:A","v":0}]
[null,null,null,null,null,null,null,null,null,null,null,{"$f":"Sheet2!G:G","v":0},{"$f":"Sheet2!A:A","v":0}]
[null,null,null,null,null,null,null,null,null,null,null,{"$f":"Sheet2!G:G","v":0},{"$f":"Sheet2!A:A","v":0}]
[null,null,null,null,null,null,null,null,null,null,null,{"$f":"Sheet2!G:G","v":0},{"$f":"Sheet2!A:A","v":0}]
[null,null,null,null,null,null,null,null,null,null,null,{"$f":"Sheet2!G:G","v":0},{"$f":"Sheet2!A:A","v":0}]
[null,null,null,null,null,null,null,null,null,null,null,{"$f":"Sheet2!G:G","v":0},{"$f":"Sheet2!A:A","v":0}]
[null,null,null,null,null,null,null,null,null,null,null,{"$f":"Sheet2!G:G","v":0},{"$f":"Sheet2!A:A","v":0}]
[null,null,null,null,null,null,null,null,null,null,null,{"$f":"Sheet2!G:G","v":0},{"$f":"Sheet2!A:A","v":0}]
[null,null,null,null,null,null,null,null,null,null,null,{"$f":"Sheet2!G:G","v":0},{"$f":"Sheet2!A:A","v":0}]
[null,null,null,null,null,null,null,null,null,null,null,{"$f":"Sheet2!G:G","v":0},{"$f":"Sheet2!A:A","v":0}]
[null,null,null,null,null,null,null,null,null,null,null,{"$f":"Sheet2!G:G","v":0},{"$f":"Sheet2!A:A","v":0}]
[null,null,null,null,null,null,null,null,null,null,null,{"$f":"Sheet2!G:G","v":0},{"$f":"Sheet2!A:A","v":0}]
[null,null,null,null,null,null,null,null,null,null,null,{"$f":"Sheet2!G:G","v":0},{"$f":"Sheet2!A:A","v":0}]
[null,null,null,null,null,null,null,null,null,null,null,{"$f":"Sheet2!G:G","v":0},{"$f":"Sheet2!A:A","v":0}]
[null,null,null,null,null,null,null,null,null,null,null,{"$f":"Sheet2!G:G","v":0},{"$f":"Sheet2!A:A","v":0}]
[null,null,null,null,null,null,null,null,null,null,null,{"$f":"Sheet2!G:G","v":0},{"$f":"Sheet2!A:A","v":0}]
[null,null,null,null,null,null,null,null,null,null,null,{"$f":"Sheet2!G:G","v":0},{"$f":"Sheet2!A:A","v":0}]
[null,null,null,null,null,null,null,null,null,null,null,{"$f":"Sheet2!G:G","v":0},{"$f":"Sheet2!A:A","v":0}]
[null,null,null,null,null,null,null,null,null,null,null,{"$f":"Sheet2!G:G","v":0},{"$f":"Sheet2!A:A","v":0}]
[null,null,null,null,null,null,null,null,null,null,null,{"$f":"Sheet2!G:G","v":0},{"$f":"Sheet2!A:A","v":0}]
[null,null,null,null,null,null,null,null,null,null,null,{"$f":"Sheet2!G:G","v":0},{"$f":"Sheet2!A:A","v":0}]
[null,null,null,null,null,null,null,null,null,null,null,{"$f":"Sheet2!G:G","v":0},{"$f":"Sheet2!A:A","v":0}]
[null,null,null,null,null,null,null,null,null,null,null,{"$f":"Sheet2!G:G","v":0},{"$f":"Sheet2!A:A","v":0}]
[null,null,null,null,null,null,null,null,null,null,null,{"$f":"Sheet2!G:G","v":0},{"$f":"Sheet2!A:A","v":0}]
[null,null,null,null,null,null,null,null,null,null,null,{"$f":"Sheet2!G:G","v":0},{"$f":"Sheet2!A:A","v":0}]
[null,null,null,null,null,null,null,null,null,null,null,{"$f":"Sheet2!G:G","v":0},{"$f":"Sheet2!A:A","v":0}]
[null,null,null,null,null,null,null,null,null,null,null,{"$f":"Sheet2!G:G","v":0},{"$f":"Sheet2!A:A","v":0}]
[null,null,null,null,null,null,null,null,null,null,null,{"$f":"Sheet2!G:G","v":0},{"$f":"Sheet2!A:A","v":0}]
[null,null,null,null,null,null,null,null,null,null,null,{"$f":"Sheet2!G:G","v":0},{"$f":"Sheet2!A:A","v":0}]
[null,null,null,null,null,null,null,null,null,null,null,{"$f":"Sheet2!G:G","v":0},{"$f":"Sheet2!A:A","v":0}]
[null,null,null,null,null,null,null,null,null,null,null,{"$f":"Sheet2!G:G","v":0},{"$f":"Sheet2!A:A","v":0}]
[null,null,null,null,null,null,null,null,null,null,null,{"$f":"Sheet2!G:G","v":0},{"$f":"Sheet2!A:A","v":0}]
[null,null,null,null,null,null,null,null,null,null,null,{"$f":"Sheet2!G:G","v":0},{"$f":"Sheet2!A:A","v":0}]
[null,null,null,null,null,null,null,null,null,null,null,{"$f":"Sheet2!G:G","v":0},{"$f":"Sheet2!A:A","v":0}]
[null,null,null,null,null,null,null,null,null,null,null,{"$f":"Sheet2!G:G","v":0},{"$f":"Sheet2!A:A","v":0}]
[null,null,null,null,null,null,null,null,null,null,null,{"$f":"Sheet2!G:G","v":0},{"$f":"Sheet2!A:A","v":0}]
[null,null,null,null,null,null,null,null,null,null,null,{"$f":"Sheet2!G:G","v":0},{"$f":"Sheet2!A:A","v":0}]
[null,null,null,null,null,null,null,null,null,null,null,{"$f":"Sheet2!G:G","v":0},{"$f":"Sheet2!A:A","v":0}]
[null,null,null,null,null,null,null,null,null,null,null,{"$f":"Sheet2!G:G","v":0},{"$f":"Sheet2!A:A","v":0}]
[null,null,null,null,null,null,null,null,null,null,null,{"$f":"Sheet2!G:G","v":0},{"$f":"Sheet2!A:A","v":0}]
[null,null,null,null,null,null,null,null,null,null,null,{"$f":"Sheet2!G:G","v":0},{"$f":"Sheet2!A:A","v":0}]
[null,null,null,null,null,null,null,null,null,null,null,{"$f":"Sheet2!G:G","v":0},{"$f":"Sheet2!A:A","v":0}]
[null,null,null,null,null,null,null,null,null,null,null,{"$f":"Sheet2!G:G","v":0},{"$f":"Sheet2!A:A","v":0}]
[null,null,null,null,null,null,null,null,null,null,null,{"$f":"Sheet2!G:G","v":0},{"$f":"Sheet2!A:A","v":0}]
[null,null,null,null,null,null,null,null,null,null,null,{"$f":"Sheet2!G:G","v":0},{"$f":"Sheet2!A:A","v":0}]
[null,null,null,null,null,null,null,null,null,null,null,{"$f":"Sheet2!G:G","v":0},{"$f":"Sheet2!A:A","v":0}]
[null,null,null,null,null,null,null,null,null,null,null,{"$f":"Sheet2!G:G","v":0},{"$f":"Sheet2!A:A","v":0}]
[null,null,null,null,null,null,null,null,null,null,null,{"$f":"Sheet2!G:G","v":0},{"$f":"Sheet2!A:A","v":0}]
[null,null,null,null,null,null,null,null,null,null,null,{"$f":"Sheet2!G:G","v":0},{"$f":"Sheet2!A:A","v":0}]
[null,null,null,null,null,null,null,null,null,null,null,{"$f":"Sheet2!G:G","v":0},{"$f":"Sheet2!A:A","v":0}]
[null,null,null,null,null,null,null,null,null,null,null,{"$f":"Sheet2!G:G","v":0},{"$f":"Sheet2!A:A","v":0}]
[null,null,null,null,null,null,null,null,null,null,null,{"$f":"Sheet2!G:G","v":0},{"$f":"Sheet2!A:A","v":0}]
[null,null,null,null,null,null,null,null,null,null,null,{"$f":"Sheet2!G:G","v":0},{"$f":"Sheet2!A:A","v":0}]
[null,null,null,null,null,null,null,null,null,null,null,{"$f":"Sheet2!G:G","v":0},{"$f":"Sheet2!A:A","v":0}]
[null,null,null,null,null,null,null,null,null,null,null,{"$f":"Sheet2!G:G","v":0},{"$f":"Sheet2!A:A","v":0}]
[null,null,null,null,null,null,null,null,null,null,null,{"$f":"Sheet2!G:G","v":0},{"$f":"Sheet2!A:A","v":0}]
[null,null,null,null,null,null,null,null,null,null,null,{"$f":"Sheet2!G:G","v":0},{"$f":"Sheet2!A:A","v":0}]
[null,null,null,null,null,null,null,null,null,null,null,{"$f":"Sheet2!G:G","v":0},{"$f":"Sheet2!A:A","v":0}]
[null,null,null,null,null,null,null,null,null,null,null,{"$f":"Sheet2!G:G","v":0},{"$f":"Sheet2!A:A","v":0}]
[null,null,null,null,null,null,null,null,null,null,null,{"$f":"Sheet2!G:G","v":0},{"$f":"Sheet2!A:A","v":0}]
[null,null,null,null,null,null,null,null,null,null,null,{"$f":"Sheet2!G:G","v":0},{"$f":"Sheet2!A:A","v":0}]
[null,null,null,null,null,null,null,null,null,null,null,{"$f":"Sheet2!G:G","v":0},{"$f":"Sheet2!A:A","v":0}]
[null,null,null,null,null,null,null,null,null,null,null,{"$f":"Sheet2!G:G","v":0},{"$f":"Sheet2!A:A","v":0}]
[null,null,null,null,null,null,null,null,null,null,null,{"$f":"Sheet2!G:G","v":0},{"$f":"Sheet2!A:A","v":0}]
[null,null,null,null,null,null,null,null,null,null,null,{"$f":"Sheet2!G:G","v":0},{"$f":"Sheet2!A:A","v":0}]
[null,null,null,null,null,null,null,null,null,null,null,{"$f":"Sheet2!G:G","v":0},{"$f":"Sheet2!A:A","v":0}]
[null,null,null,null,null,null,null,null,null,null,null,{"$f":"Sheet2!G:G","v":0},{"$f":"Sheet2!A:A","v":0}]
[null,null,null,null,null,null,null,null,null,null,null,{"$f":"Sheet2!G:G","v":0},{"$f":"Sheet2!A:A","v":0}]
[null,null,null,null,null,null,null,null,null,null,null,{"$f":"Sheet2!G:G","v":0},{"$f":"Sheet2!A:A","v":0}]
[null,null,null,null,null,null,null,null,null,null,null,{"$f":"Sheet2!G:G","v":0},{"$f":"Sheet2!A:A","v":0}]
[null,null,null,null,null,null,null,null,null,null,null,{"$f":"Sheet2!G:G","v":0},{"$f":"Sheet2!A:A","v":0}]
[null,null,null,null,null,null,null,null,null,null,null,{"$f":"Sheet2!G:G","v":0},{"$f":"Sheet2!A:A","v":0}]
[null,null,null,null,null,null,null,null,null,null,null,{"$f":"Sheet2!G:G","v":0},{"$f":"Sheet2!A:A","v":0}]
[null,null,null,null,null,null,null,null,null,null,null,{"$f":"Sheet2!G:G","v":0},{"$f":"Sheet2!A:A","v":0}]
[null,null,null,null,null,null,null,null,null,null,null,{"$f":"Sheet2!G:G","v":0},{"$f":"Sheet2!A:A","v":0}]
[null,null,null,null,null,null,null,null,null,null,null,{"$f":"Sheet2!G:G","v":0},{"$f":"Sheet2!A:A","v":0}]
[null,null,null,null,null,null,null,null,null,null,null,{"$f":"Sheet2!G:G","v":0},{"$f":"Sheet2!A:A","v":0}]
[null,null,null,null,null,null,null,null,null,null,null,{"$f":"Sheet2!G:G","v":0},{"$f":"Sheet2!A:A","v":0}]
[null,null,null,null,null,null,null,null,null,null,null,{"$f":"Sheet2!G:G","v":0},{"$f":"Sheet2!A:A","v":0}]
[null,null,null,null,null,null,null,null,null,null,null,{"$f":"Sheet2!G:G","v":0},{"$f":"Sheet2!A:A","v":0}]
[null,null,null,null,null,null,null,null,null,null,null,{"$f":"Sheet2!G:G","v":0},{"$f":"Sheet2!A:A","v":0}]
[null,null,null,null,null,null,null,null,null,null,null,{"$f":"Sheet2!G:G","v":0},{"$f":"Sheet2!A:A","v":0}]
[null,null,null,null,null,null,null,null,null,null,null,{"$f":"Sheet2!G:G","v":0},{"$f":"Sheet2!A:A","v":0}]
[null,null,null,null,null,null,null,null,null,null,null,{"$f":"Sheet2!G:G","v":0},{"$f":"Sheet2!A:A","v":0}]
[null,null,null,null,null,null,null,null,null,null,null,{"$f":"Sheet2!G:G","v":0},{"$f":"Sheet2!A:A","v":0}]
[null,null,null,null,null,null,null,null,null,null,null,{"$f":"Sheet2!G:G","v":0},{"$f":"Sheet2!A:A","v":0}]
[null,null,null,null,null,null,null,null,null,null,null,{"$f":"Sheet2!G:G","v":0},{"$f":"Sheet2!A:A","v":0}]
[null,null,null,null,null,null,null,null,null,null,null,{"$f":"Sheet2!G:G","v":0},{"$f":"Sheet2!A:A","v":0}]
[null,null,null,null,null,null,null,null,null,null,null,{"$f":"Sheet2!G:G","v":0},{"$f":"Sheet2!A:A","v":0}]
[null,null,null,null,null,null,null,null,null,null,null,{"$f":"Sheet2!G:G","v":0},{"$f":"Sheet2!A:A","v":0}]
[null,null,null,null,null,null,null,null,null,null,null,{"$f":"Sheet2!G:G","v":0},{"$f":"Sheet2!A:A","v":0}]
[null,null,null,null,null,null,null,null,null,null,null,{"$f":"Sheet2!G:G","v":0},{"$f":"Sheet2!A:A","v":0}]
[null,null,null,null,null,null,null,null,null,null,null,{"$f":"Sheet2!G:G","v":0},{"$f":"Sheet2!A:A","v":0}]
[null,null,null,null,null,null,null,null,null,null,null,{"$f":"Sheet2!G:G","v":0},{"$f":"Sheet2!A:A","v":0}]
[null,null,null,null,null,null,null,null,null,null,null,{"$f":"Sheet2!G:G","v":0},{"$f":"Sheet2!A:A","v":0}]
[null,null,null,null,null,null,null,null,null,null,null,{"$f":"Sheet2!G:G","v":0},{"$f":"Sheet2!A:A","v":0}]
[null,null,null,null,null,null,null,null,null,null,null,{"$f":"Sheet2!G:G","v":0},{"$f":"Sheet2!A:A","v":0}]
[null,null,null,null,null,null,null,null,null,null,null,{"$f":"Sheet2!G:G","v":0},{"$f":"Sheet2!A:A","v":0}]
[null,null,null,null,null,null,null,null,null,null,null,{"$f":"Sheet2!G:G","v":0},{"$f":"Sheet2!A:A","v":0}]
[null,null,null,null,null,null,null,null,null,null,null,{"$f":"Sheet2!G:G","v":0},{"$f":"Sheet2!A:A","v":0}]
[null,null,null,null,null,null,null,null,null,null,null,{"$f":"Sheet2!G:G","v":0},{"$f":"Sheet2!A:A","v":0}]
[null,null,null,null,null,null,null,null,null,null,null,{"$f":"Sheet2!G:G","v":0},{"$f":"Sheet2!A:A","v":0}]
[null,null,null,null,null,null,null,null,null,null,null,{"$f":"Sheet2!G:G","v":0},{"$f":"Sheet2!A:A","v":0}]
[null,null,null,null,null,null,null,null,null,null,null,{"$f":"Sheet2!G:G","v":0},{"$f":"Sheet2!A:A","v":0}]
[null,null,null,null,null,null,null,null,null,null,null,{"$f":"Sheet2!G:G","v":0},{"$f":"Sheet2!A:A","v":0}]
[null,null,null,null,null,null,null,null,null,null,null,{"$f":"Sheet2!G:G","v":0},{"$f":"Sheet2!A:A","v":0}]
[null,null,null,null,null,null,null,null,null,null,null,{"$f":"Sheet2!G:G","v":0},{"$f":"Sheet2!A:A","v":0}]
[null,null,null,null,null,null,null,null,null,null,null,{"$f":"Sheet2!G:G","v":0},{"$f":"Sheet2!A:A","v":0}]
[null,null,null,null,null,null,null,null,null,null,null,{"$f":"Sheet2!G:G","v":0},{"$f":"Sheet2!A:A","v":0}]
[null,null,null,null,null,null,null,null,null,null,null,{"$f":"Sheet2!G:G","v":0},{"$f":"Sheet2!A:A","v":0}]
[null,null,null,null,null,null,null,null,null,null,null,{"$f":"Sheet2!G:G","v":0},{"$f":"Sheet2!A:A","v":0}]
[null,null,null,null,null,null,null,null,null,null,null,{"$f":"Sheet2!G:G","v":0},{"$f":"Sheet2!A:A","v":0}]
[null,null,null,null,null,null,null,null,null,null,null,{"$f":"Sheet2!G:G","v":0},{"$f":"Sheet2!A:A","v":0}]
[null,null,null,null,null,null,null,null,null,null,null,{"$f":"Sheet2!G:G","v":0},{"$f":"Sheet2!A:A","v":0}]
[null,null,null,null,null,null,null,null,null,null,null,{"$f":"Sheet2!G:G","v":0},{"$f":"Sheet2!A:A","v":0}]
[null,null,null,null,null,null,null,null,null,null,null,{"$f":"Sheet2!G:G","v":0},{"$f":"Sheet2!A:A","v":0}]
[null,null,null,null,null,null,null,null,null,null,null,{"$f":"Sheet2!G:G","v":0},{"$f":"Sheet2!A:A","v":0}]
[null,null,null,null,null,null,null,null,null,null,null,{"$f":"Sheet2!G:G","v":0},{"$f":"Sheet2!A:A","v":0}]
[null,null,null,null,null,null,null,null,null,null,null,{"$f":"Sheet2!G:G","v":0},{"$f":"Sheet2!A:A","v":0}]
[null,null,null,null,null,null,null,null,null,null,null,{"$f":"Sheet2!G:G","v":0},{"$f":"Sheet2!A:A","v":0}]
[null,null,null,null,null,null,null,null,null,null,null,{"$f":"Sheet2!G:G","v":0},{"$f":"Sheet2!A:A","v":0}]
[null,null,null,null,null,null,null,null,null,null,null,{"$f":"Sheet2!G:G","v":0},{"$f":"Sheet2!A:A","v":0}]
[null,null,null,null,null,null,null,null,null,null,null,{"$f":"Sheet2!G:G","v":0},{"$f":"Sheet2!A:A","v":0}]
[null,null,null,null,null,null,null,null,null,null,null,{"$f":"Sheet2!G:G","v":0},{"$f":"Sheet2!A:A","v":0}]
[null,null,null,null,null,null,null,null,null,null,null,{"$f":"Sheet2!G:G","v":0},{"$f":"Sheet2!A:A","v":0}]
[null,null,null,null,null,null,null,null,null,null,null,{"$f":"Sheet2!G:G","v":0},{"$f":"Sheet2!A:A","v":0}]
[null,null,null,null,null,null,null,null,null,null,null,{"$f":"Sheet2!G:G","v":0},{"$f":"Sheet2!A:A","v":0}]
[null,null,null,null,null,null,null,null,null,null,null,{"$f":"Sheet2!G:G","v":0},{"$f":"Sheet2!A:A","v":0}]
[null,null,null,null,null,null,null,null,null,null,null,{"$f":"Sheet2!G:G","v":0},{"$f":"Sheet2!A:A","v":0}]
[null,null,null,null,null,null,null,null,null,null,null,{"$f":"Sheet2!G:G","v":0},{"$f":"Sheet2!A:A","v":0}]
[null,null,null,null,null,null,null,null,null,null,null,{"$f":"Sheet2!G:G","v":0},{"$f":"Sheet2!A:A","v":0}]
[null,null,null,null,null,null,null,null,null,null,null,{"$f":"Sheet2!G:G","v":0},{"$f":"Sheet2!A:A","v":0}]
[null,null,null,null,null,null,null,null,null,null,null,{"$f":"Sheet2!G:G","v":0},{"$f":"Sheet2!A:A","v":0}]
[null,null,null,null,null,null,null,null,null,null,null,{"$f":"Sheet2!G:G","v":0},{"$f":"Sheet2!A:A","v":0}]
[null,null,null,null,null,null,null,null,null,null,null,{"$f":"Sheet2!G:G","v":0},{"$f":"Sheet2!A:A","v":0}]
[null,null,null,null,null,null,null,null,null,null,null,{"$f":"Sheet2!G:G","v":0},{"$f":"Sheet2!A:A","v":0}]
[null,null,null,null,null,null,null,null,null,null,null,{"$f":"Sheet2!G:G","v":0},{"$f":"Sheet2!A:A","v":0}]
[null,null,null,null,null,null,null,null,null,null,null,{"$f":"Sheet2!G:G","v":0},{"$f":"Sheet2!A:A","v":0}]
[null,null,null,null,null,null,null,null,null,null,null,{"$f":"Sheet2!G:G","v":0},{"$f":"Sheet2!A:A","v":0}]
[null,null,null,null,null,null,null,null,null,null,null,{"$f":"Sheet2!G:G","v":0},{"$f":"Sheet2!A:A","v":0}]
[null,null,null,null,null,null,null,null,null,null,null,{"$f":"Sheet2!G:G","v":0},{"$f":"Sheet2!A:A","v":0}]
[null,null,null,null,null,null,null,null,null,null,null,{"$f":"Sheet2!G:G","v":0},{"$f":"Sheet2!A:A","v":0}]
[null,null,null,null,null,null,null,null,null,null,null,{"$f":"Sheet2!G:G","v":0},{"$f":"Sheet2!A:A","v":0}]
[null,null,null,null,null,null,null,null,null,null,null,{"$f":"Sheet2!G:G","v":0},{"$f":"Sheet2!A:A","v":0}]
[null,null,null,null,null,null,null,null,null,null,null,{"$f":"Sheet2!G:G","v":0},{"$f":"Sheet2!A:A","v":0}]
[null,null,null,null,null,null,null,null,null,null,null,{"$f":"Sheet2!G:G","v":0},{"$f":"Sheet2!A:A","v":0}]
[null,null,null,null,null,null,null,null,null,null,null,{"$f":"Sheet2!G:G","v":0},{"$f":"Sheet2!A:A","v":0}]
[null,null,null,null,null,null,null,null,null,null,null,{"$f":"Sheet2!G:G","v":0},{"$f":"Sheet2!A:A","v":0}]
[null,null,null,null,null,null,null,null,null,null,null,{"$f":"Sheet2!G:G","v":0},{"$f":"Sheet2!A:A","v":0}]
[null,null,null,null,null,null,null,null,null,null,null,{"$f":"Sheet2!G:G","v":0},{"$f":"Sheet2!A:A","v":0}]
[null,null,null,null,null,null,null,null,null,null,null,{"$f":"Sheet2!G:G","v":0},{"$f":"Sheet2!A:A","v":0}]
[null,null,null,null,null,null,null,null,null,null,null,{"$f":"Sheet2!G:G","v":0},{"$f":"Sheet2!A:A","v":0}]
[null,null,null,null,null,null,null,null,null,null,null,{"$f":"Sheet2!G:G","v":0},{"$f":"Sheet2!A:A","v":0}]
[null,null,null,null,null,null,null,null,null,null,null,{"$f":"Sheet2!G:G","v":0},{"$f":"Sheet2!A:A","v":0}]
[null,null,null,null,null,null,null,null,null,null,null,{"$f":"Sheet2!G:G","v":0},{"$f":"Sheet2!A:A","v":0}]
[null,null,null,null,null,null,null,null,null,null,null,{"$f":"Sheet2!G:G","v":0},{"$f":"Sheet2!A:A","v":0}]
[null,null,null,null,null,null,null,null,null,null,null,{"$f":"Sheet2!G:G","v":0},{"$f":"Sheet2!A:A","v":0}]
[null,null,null,null,null,null,null,null,null,null,null,{"$f":"Sheet2!G:G","v":0},{"$f":"Sheet2!A:A","v":0}]
[null,null,null,null,null,null,null,null,null,null,null,{"$f":"Sheet2!G:G","v":0},{"$f":"Sheet2!A:A","v":0}]
[null,null,null,null,null,null,null,null,null,null,null,{"$f":"Sheet2!G:G","v":0},{"$f":"Sheet2!A:A","v":0}]
[null,null,null,null,null,null,null,null,null,null,null,{"$f":"Sheet2!G:G","v":0},{"$f":"Sheet2!A:A","v":0}]
[null,null,null,null,null,null,null,null,null,null,null,{"$f":"Sheet2!G:G","v":0},{"$f":"Sheet2!A:A","v":0}]
[null,null,null,null,null,null,null,null,null,null,null,{"$f":"Sheet2!G:G","v":0},{"$f":"Sheet2!A:A","v":0}]
[null,null,null,null,null,null,null,null,null,null,null,{"$f":"Sheet2!G:G","v":0},{"$f":"Sheet2!A:A","v":0}]
[null,null,null,null,null,null,null,null,null,null,null,{"$f":"Sheet2!G:G","v":0},{"$f":"Sheet2!A:A","v":0}]
[null,null,null,null,null,null,null,null,null,null,null,{"$f":"Sheet2!G:G","v":0},{"$f":"Sheet2!A:A","v":0}]
[null,null,null,null,null,null,null,null,null,null,null,{"$f":"Sheet2!G:G","v":0},{"$f":"Sheet2!A:A","v":0}]
[null,null,null,null,null,null,null,null,null,null,null,{"$f":"Sheet2!G:G","v":0},{"$f":"Sheet2!A:A","v":0}]
[null,null,null,null,null,null,null,null,null,null,null,{"$f":"Sheet2!G:G","v":0},{"$f":"Sheet2!A:A","v":0}]
[null,null,null,null,null,null,null,null,null,null,null,{"$f":"Sheet2!G:G","v":0},{"$f":"Sheet2!A:A","v":0}]
[null,null,null,null,null,null,null,null,null,null,null,{"$f":"Sheet2!G:G","v":0},{"$f":"Sheet2!A:A","v":0}]
[null,null,null,null,null,null,null,null,null,null,null,{"$f":"Sheet2!G:G","v":0},{"$f":"Sheet2!A:A","v":0}]
[null,null,null,null,null,null,null,null,null,null,null,{"$f":"Sheet2!G:G","v":0},{"$f":"Sheet2!A:A","v":0}]
[null,null,null,null,null,null,null,null,null,null,null,{"$f":"Sheet2!G:G","v":0},{"$f":"Sheet2!A:A","v":0}]
[null,null,null,null,null,null,null,null,null,null,null,{"$f":"Sheet2!G:G","v":0},{"$f":"Sheet2!A:A","v":0}]
[null,null,null,null,null,null,null,null,null,null,null,{"$f":"Sheet2!G:G","v":0},{"$f":"Sheet2!A:A","v":0}]
[null,null,null,null,null,null,null,null,null,null,null,{"$f":"Sheet2!G:G","v":0},{"$f":"Sheet2!A:A","v":0}]
[null,null,null,null,null,null,null,null,null,null,null,{"$f":"Sheet2!G:G","v":0},{"$f":"Sheet2!A:A","v":0}]
[null,null,null,null,null,null,null,null,null,null,null,{"$f":"Sheet2!G:G","v":0},{"$f":"Sheet2!A:A","v":0}]
[null,null,null,null,null,null,null,null,null,null,null,{"$f":"Sheet2!G:G","v":0},{"$f":"Sheet2!A:A","v":0}]
[null,null,null,null,null,null,null,null,null,null,null,{"$f":"Sheet2!G:G","v":0},{"$f":"Sheet2!A:A","v":0}]
[null,null,null,null,null,null,null,null,null,null,null,{"$f":"Sheet2!G:G","v":0},{"$f":"Sheet2!A:A","v":0}]
[null,null,null,null,null,null,null,null,null,null,null,{"$f":"Sheet2!G:G","v":0},{"$f":"Sheet2!A:A","v":0}]
[null,null,null,null,null,null,null,null,null,null,null,{"$f":"Sheet2!G:G","v":0},{"$f":"Sheet2!A:A","v":0}]
[null,null,null,null,null,null,null,null,null,null,null,{"$f":"Sheet2!G:G","v":0},{"$f":"Sheet2!A:A","v":0}]
[null,null,null,null,null,null,null,null,null,null,null,{"$f":"Sheet2!G:G","v":0},{"$f":"Sheet2!A:A","v":0}]
[null,null,null,null,null,null,null,null,null,null,null,{"$f":"Sheet2!G:G","v":0},{"$f":"Sheet2!A:A","v":0}]
[null,null,null,null,null,null,null,null,null,null,null,{"$f":"Sheet2!G:G","v":0},{"$f":"Sheet2!A:A","v":0}]
[null,null,null,null,null,null,null,null,null,null,null,{"$f":"Sheet2!G:G","v":0},{"$f":"Sheet2!A:A","v":0}]
[null,null,null,null,null,null,null,null,null,null,null,{"$f":"Sheet2!G:G","v":0},{"$f":"Sheet2!A:A","v":0}]
[null,null,null,null,null,null,null,null,null,null,null,{"$f":"Sheet2!G:G","v":0},{"$f":"Sheet2!A:A","v":0}]
[null,null,null,null,null,null,null,null,null,null,null,{"$f":"Sheet2!G:G","v":0},{"$f":"Sheet2!A:A","v":0}]
[null,null,null,null,null,null,null,null,null,null,null,{"$f":"Sheet2!G:G","v":0},{"$f":"Sheet2!A:A","v":0}]
[null,null,null,null,null,null,null,null,null,null,null,{"$f":"Sheet2!G:G","v":0},{"$f":"Sheet2!A:A","v":0}]
[null,null,null,null,null,null,null,null,null,null,null,{"$f":"Sheet2!G:G","v":0},{"$f":"Sheet2!A:A","v":0}]
[null,null,null,null,null,null,null,null,null,null,null,{"$f":"Sheet2!G:G","v":0},{"$f":"Sheet2!A:A","v":0}]
[null,null,null,null,null,null,null,null,null,null,null,{"$f":"Sheet2!G:G","v":0},{"$f":"Sheet2!A:A","v":0}]
[null,null,null,null,null,null,null,null,null,null,null,{"$f":"Sheet2!G:G","v":0},{"$f":"Sheet2!A:A","v":0}]
[null,null,null,null,null,null,null,null,null,null,null,{"$f":"Sheet2!G:G","v":0},{"$f":"Sheet2!A:A","v":0}]
[null,null,null,null,null,null,null,null,null,null,null,{"$f":"Sheet2!G:G","v":0},{"$f":"Sheet2!A:A","v":0}]
[null,null,null,null,null,null,null,null,null,null,null,{"$f":"Sheet2!G:G","v":0},{"$f":"Sheet2!A:A","v":0}]
[null,null,null,null,null,null,null,null,null,null,null,{"$f":"Sheet2!G:G","v":0},{"$f":"Sheet2!A:A","v":0}]
[null,null,null,null,null,null,null,null,null,null,null,{"$f":"Sheet2!G:G","v":0},{"$f":"Sheet2!A:A","v":0}]
[null,null,null,null,null,null,null,null,null,null,null,{"$f":"Sheet2!G:G","v":0},{"$f":"Sheet2!A:A","v":0}]
[null,null,null,null,null,null,null,null,null,null,null,{"$f":"Sheet2!G:G","v":0},{"$f":"Sheet2!A:A","v":0}]
[null,null,null,null,null,null,null,null,null,null,null,{"$f":"Sheet2!G:G","v":0},{"$f":"Sheet2!A:A","v":0}]
[null,null,null,null,null,null,null,null,null,null,null,{"$f":"Sheet2!G:G","v":0},{"$f":"Sheet2!A:A","v":0}]
[null,null,null,null,null,null,null,null,null,null,null,{"$f":"Sheet2!G:G","v":0},{"$f":"Sheet2!A:A","v":0}]
[null,null,null,null,null,null,null,null,null,null,null,{"$f":"Sheet2!G:G","v":0},{"$f":"Sheet2!A:A","v":0}]
[null,null,null,null,null,null,null,null,null,null,null,{"$f":"Sheet2!G:G","v":0},{"$f":"Sheet2!A:A","v":0}]
[null,null,null,null,null,null,null,null,null,null,null,{"$f":"Sheet2!G:G","v":0},{"$f":"Sheet2!A:A","v":0}]
[null,null,null,null,null,null,null,null,null,null,null,{"$f":"Sheet2!G:G","v":0},{"$f":"Sheet2!A:A","v":0}]
[null,null,null,null,null,null,null,null,null,null,null,{"$f":"Sheet2!G:G","v":0},{"$f":"Sheet2!A:A","v":0}]
[null,null,null,null,null,null,null,null,null,null,null,{"$f":"Sheet2!G:G","v":0},{"$f":"Sheet2!A:A","v":0}]
[null,null,null,null,null,null,null,null,null,null,null,{"$f":"Sheet2!G:G","v":0},{"$f":"Sheet2!A:A","v":0}]
[null,null,null,null,null,null,null,null,null,null,null,{"$f":"Sheet2!G:G","v":0},{"$f":"Sheet2!A:A","v":0}]
[null,null,null,null,null,null,null,null,null,null,null,{"$f":"Sheet2!G:G","v":0},{"$f":"Sheet2!A:A","v":0}]
[null,null,null,null,null,null,null,null,null,null,null,{"$f":"Sheet2!G:G","v":0},{"$f":"Sheet2!A:A","v":0}]
[null,null,null,null,null,null,null,null,null,null,null,{"$f":"Sheet2!G:G","v":0},{"$f":"Sheet2!A:A","v":0}]
[null,null,null,null,null,null,null,null,null,null,null,{"$f":"Sheet2!G:G","v":0},{"$f":"Sheet2!A:A","v":0}]
[null,null,null,null,null,null,null,null,null,null,null,{"$f":"Sheet2!G:G","v":0},{"$f":"Sheet2!A:A","v":0}]
[null,null,null,null,null,null,null,null,null,null,null,{"$f":"Sheet2!G:G","v":0},{"$f":"Sheet2!A:A","v":0}]
[null,null,null,null,null,null,null,null,null,null,null,{"$f":"Sheet2!G:G","v":0},{"$f":"Sheet2!A:A","v":0}]
[null,null,null,null,null,null,null,null,null,null,null,{"$f":"Sheet2!G:G","v":0},{"$f":"Sheet2!A:A","v":0}]

{"sheet":"Mountain","index":1,"n_rows":590,"n_cols":13,"rows_kept":590,"cut":false,"hidden":false,"merged":[[6,3,7,7]]}
[null,null,"Account # ",{"$f":"IF($D$2=\"\",\"\",VLOOKUP($D$2,Sheet2!G:K,2,FALSE))","v":""},null,null,null,null,null,null,null,{"$f":"Sheet2!G:G","v":"626 On Rood"},{"$f":"Sheet2!A:A","v":0}]
[null,null,"Account Name:",null,null,null,null,null,null,null,null,{"$f":"Sheet2!G:G","v":"7 Hermits Brewing Co"},{"$f":"Sheet2!A:A","v":1000}]
[null,null,"Address:",{"$f":"IF($D$2=\"\",\"\",VLOOKUP($D$2,Sheet2!G:K,3,FALSE))","v":""},null,null,null,null,null,null,null,{"$f":"Sheet2!G:G","v":"All Pro Liquors"},{"$f":"Sheet2!A:A","v":1001}]
[null,null,"Address 2:",{"$f":"IF($D$2=\"\",\"\",VLOOKUP($D$2,Sheet2!G:K,4,FALSE))","v":""},null,null,null,null,null,null,null,{"$f":"Sheet2!G:G","v":"Allegria"},{"$f":"Sheet2!A:A","v":1002}]
[null,null,"City:",{"$f":"IF($D$2=\"\",\"\",VLOOKUP($D$2,Sheet2!G:K,5,FALSE))","v":""},null,null,null,null,null,null,null,{"$f":"Sheet2!G:G","v":"Alpine Wine & Spirit"},{"$f":"Sheet2!A:A","v":1003}]
[null,null,"Delivery Date:",null,null,null,null,null,null,null,null,{"$f":"Sheet2!G:G","v":"Andy's Liquor Mart"},{"$f":"Sheet2!A:A","v":1004}]
[null,null,"Comments:",null,null,null,null,null,null,null,null,{"$f":"Sheet2!G:G","v":"Antlers Discount Liquors"},{"$f":"Sheet2!A:A","v":1005}]
[null,null,null,null,null,null,null,null,null,null,null,{"$f":"Sheet2!G:G","v":"Apres"},{"$f":"Sheet2!A:A","v":1007}]
["CASES","BOTTLES","ITEM # ","DESCRIPTION","FRONT LINE","CASE DISCOUNT","CASE PRICE","BOTTLE PRICE","NET",null,null,{"$f":"Sheet2!G:G","v":"Arapahoe Basin Ski Area"},{"$f":"Sheet2!A:A","v":1008}]
[null,null,null,{"$f":"IF(C10=\"\",\"\",VLOOKUP(C10,Sheet2!$A:$B,2,FALSE))","v":""},{"$f":"IF(C10=\"\",\"\",VLOOKUP(C10,Sheet2!$A:$D,4,FALSE))","v":""},null,{"$f":"IF(C10=\"\",\"\",E10-F10)","v":""},{"$f":"IF(C10=\"\",\"\",G10/VLOOKUP(C10,Sheet2!$A:$E,5,FALSE))","v":""},{"$f":"IF(C10=\"\",\"\",(A10*G10)+(B10*H10))","v":""},null,null,{"$f":"Sheet2!G:G","v":"Arctic Liquors"},{"$f":"Sheet2!A:A","v":1009}]
[null,null,null,{"$f":"IF(C11=\"\",\"\",VLOOKUP(C11,Sheet2!$A:$B,2,FALSE))","v":""},{"$f":"IF(C11=\"\",\"\",VLOOKUP(C11,Sheet2!$A:$D,4,FALSE))","v":""},null,{"$f":"IF(C11=\"\",\"\",E11-F11)","v":""},{"$f":"IF(C11=\"\",\"\",G11/VLOOKUP(C11,Sheet2!$A:$E,5,FALSE))","v":""},{"$f":"IF(C11=\"\",\"\",(A11*G11)+(B11*H11))","v":""},null,null,{"$f":"Sheet2!G:G","v":"Aspen Wine and Spirits"},{"$f":"Sheet2!A:A","v":1010}]
[null,null,null,{"$f":"IF(C12=\"\",\"\",VLOOKUP(C12,Sheet2!$A:$B,2,FALSE))","v":""},{"$f":"IF(C12=\"\",\"\",VLOOKUP(C12,Sheet2!$A:$D,4,FALSE))","v":""},null,"",{"$f":"IF(C12=\"\",\"\",G12/VLOOKUP(C12,Sheet2!$A:$E,5,FALSE))","v":""},"",null,null,{"$f":"Sheet2!G:G","v":"Aspen Wine Guild"},{"$f":"Sheet2!A:A","v":1020}]
[null,null,null,{"$f":"IF(C13=\"\",\"\",VLOOKUP(C13,Sheet2!$A:$B,2,FALSE))","v":""},{"$f":"IF(C13=\"\",\"\",VLOOKUP(C13,Sheet2!$A:$D,4,FALSE))","v":""},null,"",{"$f":"IF(C13=\"\",\"\",G13/VLOOKUP(C13,Sheet2!$A:$E,5,FALSE))","v":""},"",null,null,{"$f":"Sheet2!G:G","v":"Avon Liquors"},{"$f":"Sheet2!A:A","v":1021}]
[null,null,null,{"$f":"IF(C14=\"\",\"\",VLOOKUP(C14,Sheet2!$A:$B,2,FALSE))","v":""},{"$f":"IF(C14=\"\",\"\",VLOOKUP(C14,Sheet2!$A:$D,4,FALSE))","v":""},null,"",{"$f":"IF(C14=\"\",\"\",G14/VLOOKUP(C14,Sheet2!$A:$E,5,FALSE))","v":""},"",null,null,{"$f":"Sheet2!G:G","v":"Barley, The"},{"$f":"Sheet2!A:A","v":1022}]
[null,null,null,{"$f":"IF(C15=\"\",\"\",VLOOKUP(C15,Sheet2!$A:$B,2,FALSE))","v":""},{"$f":"IF(C15=\"\",\"\",VLOOKUP(C15,Sheet2!$A:$D,4,FALSE))","v":""},null,"",{"$f":"IF(C15=\"\",\"\",G15/VLOOKUP(C15,Sheet2!$A:$E,5,FALSE))","v":""},"",null,null,{"$f":"Sheet2!G:G","v":"Bart & Yeti's"},{"$f":"Sheet2!A:A","v":1023}]
[null,null,null,{"$f":"IF(C16=\"\",\"\",VLOOKUP(C16,Sheet2!$A:$B,2,FALSE))","v":""},{"$f":"IF(C16=\"\",\"\",VLOOKUP(C16,Sheet2!$A:$D,4,FALSE))","v":""},null,"",{"$f":"IF(C16=\"\",\"\",G16/VLOOKUP(C16,Sheet2!$A:$E,5,FALSE))","v":""},"",null,null,{"$f":"Sheet2!G:G","v":"Beaver Liquors"},{"$f":"Sheet2!A:A","v":1024}]
[null,null,null,{"$f":"IF(C17=\"\",\"\",VLOOKUP(C17,Sheet2!$A:$B,2,FALSE))","v":""},{"$f":"IF(C17=\"\",\"\",VLOOKUP(C17,Sheet2!$A:$D,4,FALSE))","v":""},null,"",{"$f":"IF(C17=\"\",\"\",G17/VLOOKUP(C17,Sheet2!$A:$E,5,FALSE))","v":""},"",null,null,{"$f":"Sheet2!G:G","v":"Big House Burgers"},{"$f":"Sheet2!A:A","v":1109}]
[null,null,null,{"$f":"IF(C18=\"\",\"\",VLOOKUP(C18,Sheet2!$A:$B,2,FALSE))","v":""},{"$f":"IF(C18=\"\",\"\",VLOOKUP(C18,Sheet2!$A:$D,4,FALSE))","v":""},null,"",{"$f":"IF(C18=\"\",\"\",G18/VLOOKUP(C18,Sheet2!$A:$E,5,FALSE))","v":""},"",null,null,{"$f":"Sheet2!G:G","v":"Bistro CV"},{"$f":"Sheet2!A:A","v":1209}]
[null,null,null,{"$f":"IF(C19=\"\",\"\",VLOOKUP(C19,Sheet2!$A:$B,2,FALSE))","v":""},{"$f":"IF(C19=\"\",\"\",VLOOKUP(C19,Sheet2!$A:$D,4,FALSE))","v":""},null,"",{"$f":"IF(C19=\"\",\"\",G19/VLOOKUP(C19,Sheet2!$A:$E,5,FALSE))","v":""},"",null,null,{"$f":"Sheet2!G:G","v":"Black Diamond Bistro"},{"$f":"Sheet2!A:A","v":1220}]
[null,null,null,{"$f":"IF(C20=\"\",\"\",VLOOKUP(C20,Sheet2!$A:$B,2,FALSE))","v":""},{"$f":"IF(C20=\"\",\"\",VLOOKUP(C20,Sheet2!$A:$D,4,FALSE))","v":""},null,"",{"$f":"IF(C20=\"\",\"\",G20/VLOOKUP(C20,Sheet2!$A:$E,5,FALSE))","v":""},"",null,null,{"$f":"Sheet2!G:G","v":"Blu's"},{"$f":"Sheet2!A:A","v":1406}]
[null,null,null,{"$f":"IF(C21=\"\",\"\",VLOOKUP(C21,Sheet2!$A:$B,2,FALSE))","v":""},{"$f":"IF(C21=\"\",\"\",VLOOKUP(C21,Sheet2!$A:$D,4,FALSE))","v":""},null,"",{"$f":"IF(C21=\"\",\"\",G21/VLOOKUP(C21,Sheet2!$A:$E,5,FALSE))","v":""},"",null,null,{"$f":"Sheet2!G:G","v":"Bookcliff Country Club"},{"$f":"Sheet2!A:A","v":1450}]
[null,null,null,{"$f":"IF(C22=\"\",\"\",VLOOKUP(C22,Sheet2!$A:$B,2,FALSE))","v":""},{"$f":"IF(C22=\"\",\"\",VLOOKUP(C22,Sheet2!$A:$D,4,FALSE))","v":""},null,"",{"$f":"IF(C22=\"\",\"\",G22/VLOOKUP(C22,Sheet2!$A:$E,5,FALSE))","v":""},"",null,null,{"$f":"Sheet2!G:G","v":"Bookcliff Liquors"},{"$f":"Sheet2!A:A","v":1510}]
[null,null,null,{"$f":"IF(C23=\"\",\"\",VLOOKUP(C23,Sheet2!$A:$B,2,FALSE))","v":""},{"$f":"IF(C23=\"\",\"\",VLOOKUP(C23,Sheet2!$A:$D,4,FALSE))","v":""},null,"",{"$f":"IF(C23=\"\",\"\",G23/VLOOKUP(C23,Sheet2!$A:$E,5,FALSE))","v":""},"",null,null,{"$f":"Sheet2!G:G","v":"Bottle Pass Liquors"},{"$f":"Sheet2!A:A","v":1515}]
[null,null,null,{"$f":"IF(C24=\"\",\"\",VLOOKUP(C24,Sheet2!$A:$B,2,FALSE))","v":""},{"$f":"IF(C24=\"\",\"\",VLOOKUP(C24,Sheet2!$A:$D,4,FALSE))","v":""},null,"",{"$f":"IF(C24=\"\",\"\",G24/VLOOKUP(C24,Sheet2!$A:$E,5,FALSE))","v":""},"",null,null,{"$f":"Sheet2!G:G","v":"Bottle Shop Liquor"},{"$f":"Sheet2!A:A","v":1550}]
[null,null,null,{"$f":"IF(C25=\"\",\"\",VLOOKUP(C25,Sheet2!$A:$B,2,FALSE))","v":""},{"$f":"IF(C25=\"\",\"\",VLOOKUP(C25,Sheet2!$A:$D,4,FALSE))","v":""},null,"",{"$f":"IF(C25=\"\",\"\",G25/VLOOKUP(C25,Sheet2!$A:$E,5,FALSE))","v":""},"",null,null,{"$f":"Sheet2!G:G","v":"Breckenridge Ale House"},{"$f":"Sheet2!A:A","v":1551}]
[null,null,null,{"$f":"IF(C26=\"\",\"\",VLOOKUP(C26,Sheet2!$A:$B,2,FALSE))","v":""},{"$f":"IF(C26=\"\",\"\",VLOOKUP(C26,Sheet2!$A:$D,4,FALSE))","v":""},null,"",{"$f":"IF(C26=\"\",\"\",G26/VLOOKUP(C26,Sheet2!$A:$E,5,FALSE))","v":""},"",null,null,{"$f":"Sheet2!G:G","v":"Broadway Liquors"},{"$f":"Sheet2!A:A","v":2006}]
[null,null,null,{"$f":"IF(C27=\"\",\"\",VLOOKUP(C27,Sheet2!$A:$B,2,FALSE))","v":""},{"$f":"IF(C27=\"\",\"\",VLOOKUP(C27,Sheet2!$A:$D,4,FALSE))","v":""},null,"",{"$f":"IF(C27=\"\",\"\",G27/VLOOKUP(C27,Sheet2!$A:$E,5,FALSE))","v":""},"",null,null,{"$f":"Sheet2!G:G","v":"C&H Spirit Solutions"},{"$f":"Sheet2!A:A","v":2058}]
[null,null,null,{"$f":"IF(C28=\"\",\"\",VLOOKUP(C28,Sheet2!$A:$B,2,FALSE))","v":""},{"$f":"IF(C28=\"\",\"\",VLOOKUP(C28,Sheet2!$A:$D,4,FALSE))","v":""},null,"",{"$f":"IF(C28=\"\",\"\",G28/VLOOKUP(C28,Sheet2!$A:$E,5,FALSE))","v":""},"",null,null,{"$f":"Sheet2!G:G","v":"Carelli's Pizzeria"},{"$f":"Sheet2!A:A","v":3008}]
[null,null,null,{"$f":"IF(C29=\"\",\"\",VLOOKUP(C29,Sheet2!$A:$B,2,FALSE))","v":""},{"$f":"IF(C29=\"\",\"\",VLOOKUP(C29,Sheet2!$A:$D,4,FALSE))","v":""},null,"",{"$f":"IF(C29=\"\",\"\",G29/VLOOKUP(C29,Sheet2!$A:$E,5,FALSE))","v":""},"",null,null,{"$f":"Sheet2!G:G","v":"Carl's Pharmacy"},{"$f":"Sheet2!A:A","v":3081}]
[null,null,null,null,null,null,null,"Total:",{"$f":"SUM(I10:I29)","v":0},null,null,{"$f":"Sheet2!G:G","v":"Carl's Tavern"},{"$f":"Sheet2!A:A","v":3082}]
[null,null,null,null,null,null,null,null,null,null,null,{"$f":"Sheet2!G:G","v":"Cellar Liquors"},{"$f":"Sheet2!A:A","v":3083}]
[null,null,null,null,null,null,null,null,null,null,null,{"$f":"Sheet2!G:G","v":"Center Town Liquors"},{"$f":"Sheet2!A:A","v":3091}]
[null,null,null,null,null,null,null,null,null,null,null,{"$f":"Sheet2!G:G","v":"Central Park Liquors"},{"$f":"Sheet2!A:A","v":3092}]
[null,null,null,null,null,null,null,null,null,null,null,{"$f":"Sheet2!G:G","v":"Cheeky Monk"},{"$f":"Sheet2!A:A","v":3093}]
[null,null,null,null,null,null,null,null,null,null,null,{"$f":"Sheet2!G:G","v":"Choice Liquor"},{"$f":"Sheet2!A:A","v":4001}]
[null,null,null,null,null,null,null,null,null,null,null,{"$f":"Sheet2!G:G","v":"Circle R Bar"},{"$f":"Sheet2!A:A","v":4002}]
[null,null,null,null,null,null,null,null,null,null,null,{"$f":"Sheet2!G:G","v":"Citrolas Italian Grill & Bar"},{"$f":"Sheet2!A:A","v":4003}]
[null,null,null,null,null,null,null,null,null,null,null,{"$f":"Sheet2!G:G","v":"City Liquors"},{"$f":"Sheet2!A:A","v":4025}]
[null,null,null,null,null,null,null,null,null,null,null,{"$f":"Sheet2!G:G","v":"Clifton Liquors"},{"$f":"Sheet2!A:A","v":4051}]
[null,null,null,null,null,null,null,null,null,null,null,{"$f":"Sheet2!G:G","v":"College Liquors"},{"$f":"Sheet2!A:A","v":4052}]
[null,null,null,null,null,null,null,null,null,null,null,{"$f":"Sheet2!G:G","v":"Cooper Wine & Spirits"},{"$f":"Sheet2!A:A","v":4053}]
[null,null,null,null,null,null,null,null,null,null,null,{"$f":"Sheet2!G:G","v":"Cork's Fine Wines"},{"$f":"Sheet2!A:A","v":4055}]
[null,null,null,null,null,null,null,null,null,null,null,{"$f":"Sheet2!G:G","v":"Coronado Liquors"},{"$f":"Sheet2!A:A","v":4056}]
[null,null,null,null,null,null,null,null,null,null,null,{"$f":"Sheet2!G:G","v":"Cottonwood Liquors"},{"$f":"Sheet2!A:A","v":4057}]
[null,null,null,null,null,null,null,null,null,null,null,{"$f":"Sheet2!G:G","v":"Country Club liquors"},{"$f":"Sheet2!A:A","v":4058}]
[null,null,null,null,null,null,null,null,null,null,null,{"$f":"Sheet2!G:G","v":"Coyote Café"},{"$f":"Sheet2!A:A","v":4059}]
[null,null,null,null,null,null,null,null,null,null,null,{"$f":"Sheet2!G:G","v":"Crossroads Wine & Spirit"},{"$f":"Sheet2!A:A","v":4060}]
[null,null,null,null,null,null,null,null,null,null,null,{"$f":"Sheet2!G:G","v":"Davetos Italian Restaurant"},{"$f":"Sheet2!A:A","v":4061}]
[null,null,null,null,null,null,null,null,null,null,null,{"$f":"Sheet2!G:G","v":"Devil's Thumb Ranch"},{"$f":"Sheet2!A:A","v":4062}]
[null,null,null,null,null,null,null,null,null,null,null,{"$f":"Sheet2!G:G","v":"Dillon Ridge Liquors"},{"$f":"Sheet2!A:A","v":4063}]
[null,null,null,null,null,null,null,null,null,null,null,{"$f":"Sheet2!G:G","v":"Dolce Vita"},{"$f":"Sheet2!A:A","v":4064}]
[null,null,null,null,null,null,null,null,null,null,null,{"$f":"Sheet2!G:G","v":"Double Diamonds Bar"},{"$f":"Sheet2!A:A","v":4065}]
[null,null,null,null,null,null,null,null,null,null,null,{"$f":"Sheet2!G:G","v":"Eagle liiquor Mart"},{"$f":"Sheet2!A:A","v":4090}]
[null,null,null,null,null,null,null,null,null,null,null,{"$f":"Sheet2!G:G","v":"Eagle Ranch Wine & Spirits"},{"$f":"Sheet2!A:A","v":4091}]
[null,null,null,null,null,null,null,null,null,null,null,{"$f":"Sheet2!G:G","v":"East Valley Liquors"},{"$f":"Sheet2!A:A","v":4092}]
[null,null,null,null,null,null,null,null,null,null,null,{"$f":"Sheet2!G:G","v":"Eastside Liquor"},{"$f":"Sheet2!A:A","v":4095}]
[null,null,null,null,null,null,null,null,null,null,null,{"$f":"Sheet2!G:G","v":"El Horizonte"},{"$f":"Sheet2!A:A","v":5000}]
[null,null,null,null,null,null,null,null,null,null,null,{"$f":"Sheet2!G:G","v":"El Jebeverage"},{"$f":"Sheet2!A:A","v":5001}]
[null,null,null,null,null,null,null,null,null,null,null,{"$f":"Sheet2!G:G","v":"Elk Camp Restaurant"},{"$f":"Sheet2!A:A","v":5002}]
[null,null,null,null,null,null,null,null,null,null,null,{"$f":"Sheet2!G:G","v":"Elmer Suds Liquor"},{"$f":"Sheet2!A:A","v":5003}]
[null,null,null,null,null,null,null,null,null,null,null,{"$f":"Sheet2!G:G","v":"Elway's"},{"$f":"Sheet2!A:A","v":5004}]
[null,null,null,null,null,null,null,null,null,null,null,{"$f":"Sheet2!G:G","v":"Ember"},{"$f":"Sheet2!A:A","v":5009}]
[null,null,null,null,null,null,null,null,null,null,null,{"$f":"Sheet2!G:G","v":"Enterprize Liquor"},{"$f":"Sheet2!A:A","v":5040}]
[null,null,null,null,null,null,null,null,null,null,null,{"$f":"Sheet2!G:G","v":"Enzo's"},{"$f":"Sheet2!A:A","v":5041}]
[null,null,null,null,null,null,null,null,null,null,null,{"$f":"Sheet2!G:G","v":"Enzo's Pizza Shack"},{"$f":"Sheet2!A:A","v":5051}]
[null,null,null,null,null,null,null,null,null,null,null,{"$f":"Sheet2!G:G","v":"Eureka Mediterranean Street Food"},{"$f":"Sheet2!A:A","v":5052}]
[null,null,null,null,null,null,null,null,null,null,null,{"$f":"Sheet2!G:G","v":"Fariground Wine & Liquor"},{"$f":"Sheet2!A:A","v":5053}]
[null,null,null,null,null,null,null,null,null,null,null,{"$f":"Sheet2!G:G","v":"Finbarr's"},{"$f":"Sheet2!A:A","v":5054}]
[null,null,null,null,null,null,null,null,null,null,null,{"$f":"Sheet2!G:G","v":"Finbarr's Irish Pub and Kitchen"},{"$f":"Sheet2!A:A","v":5055}]
[null,null,null,null,null,null,null,null,null,null,null,{"$f":"Sheet2!G:G","v":"Fisher's Liquor Barn"},{"$f":"Sheet2!A:A","v":5056}]
[null,null,null,null,null,null,null,null,null,null,null,{"$f":"Sheet2!G:G","v":"Flights & Pints Tasting Room"},{"$f":"Sheet2!A:A","v":5057}]
[null,null,null,null,null,null,null,null,null,null,null,{"$f":"Sheet2!G:G","v":"Fly-N-Roosters"},{"$f":"Sheet2!A:A","v":5058}]
[null,null,null,null,null,null,null,null,null,null,null,{"$f":"Sheet2!G:G","v":"Four Dogs Wine & Spirits"},{"$f":"Sheet2!A:A","v":5059}]
[null,null,null,null,null,null,null,null,null,null,null,{"$f":"Sheet2!G:G","v":"Four Seasons Vail"},{"$f":"Sheet2!A:A","v":5070}]
[null,null,null,null,null,null,null,null,null,null,null,{"$f":"Sheet2!G:G","v":"Frisco Liquors"},{"$f":"Sheet2!A:A","v":5071}]
[null,null,null,null,null,null,null,null,null,null,null,{"$f":"Sheet2!G:G","v":"Frisco Wine Merchant"},{"$f":"Sheet2!A:A","v":5072}]
[null,null,null,null,null,null,null,null,null,null,null,{"$f":"Sheet2!G:G","v":"Fruita Liquor Mart"},{"$f":"Sheet2!A:A","v":5076}]
[null,null,null,null,null,null,null,null,null,null,null,{"$f":"Sheet2!G:G","v":"Fun Junction Liquors"},{"$f":"Sheet2!A:A","v":5077}]
[null,null,null,null,null,null,null,null,null,null,null,{"$f":"Sheet2!G:G","v":"Geno's"},{"$f":"Sheet2!A:A","v":5078}]
[null,null,null,null,null,null,null,null,null,null,null,{"$f":"Sheet2!G:G","v":"Glenwood Canyon Brew Pub"},{"$f":"Sheet2!A:A","v":5079}]
[null,null,null,null,null,null,null,null,null,null,null,{"$f":"Sheet2!G:G","v":"Grand Avenue Liquors"},{"$f":"Sheet2!A:A","v":5080}]
[null,null,null,null,null,null,null,null,null,null,null,{"$f":"Sheet2!G:G","v":"Grappa"},{"$f":"Sheet2!A:A","v":5081}]
[null,null,null,null,null,null,null,null,null,null,null,{"$f":"Sheet2!G:G","v":"Great Western Grog Shop"},{"$f":"Sheet2!A:A","v":5082}]
[null,null,null,null,null,null,null,null,null,null,null,{"$f":"Sheet2!G:G","v":"Greco's"},{"$f":"Sheet2!A:A","v":5083}]
[null,null,null,null,null,null,null,null,null,null,null,{"$f":"Sheet2!G:G","v":"Grouse Montain Grill"},{"$f":"Sheet2!A:A","v":5084}]
[null,null,null,null,null,null,null,null,null,null,null,{"$f":"Sheet2!G:G","v":"Gypsum Liquors"},{"$f":"Sheet2!A:A","v":5086}]
[null,null,null,null,null,null,null,null,null,null,null,{"$f":"Sheet2!G:G","v":"Hooked"},{"$f":"Sheet2!A:A","v":5087}]
[null,null,null,null,null,null,null,null,null,null,null,{"$f":"Sheet2!G:G","v":"Hooters (Grand Jct.)"},{"$f":"Sheet2!A:A","v":5088}]
[null,null,null,null,null,null,null,null,null,null,null,{"$f":"Sheet2!G:G","v":"Hops Culture"},{"$f":"Sheet2!A:A","v":6000}]
[null,null,null,null,null,null,null,null,null,null,null,{"$f":"Sheet2!G:G","v":"Horizon Liquors"},{"$f":"Sheet2!A:A","v":6001}]
[null,null,null,null,null,null,null,null,null,null,null,{"$f":"Sheet2!G:G","v":"Hotel Jerome"},{"$f":"Sheet2!A:A","v":6002}]
[null,null,null,null,null,null,null,null,null,null,null,{"$f":"Sheet2!G:G","v":"In the Middle Liquors"},{"$f":"Sheet2!A:A","v":6003}]
[null,null,null,null,null,null,null,null,null,null,null,{"$f":"Sheet2!G:G","v":"Italian Underground"},{"$f":"Sheet2!A:A","v":6005}]
[null,null,null,null,null,null,null,null,null,null,null,{"$f":"Sheet2!G:G","v":"Jackalope Liquors"},{"$f":"Sheet2!A:A","v":6020}]
[null,null,null,null,null,null,null,null,null,null,null,{"$f":"Sheet2!G:G","v":"Jake's Liquor"},{"$f":"Sheet2!A:A","v":6021}]
[null,null,null,null,null,null,null,null,null,null,null,{"$f":"Sheet2!G:G","v":"Jimbo's Liquors"},{"$f":"Sheet2!A:A","v":6023}]
[null,null,null,null,null,null,null,null,null,null,null,{"$f":"Sheet2!G:G","v":"Jimmy's Resaturant"},{"$f":"Sheet2!A:A","v":6024}]
[null,null,null,null,null,null,null,null,null,null,null,{"$f":"Sheet2!G:G","v":"Joe's Liquors"},{"$f":"Sheet2!A:A","v":6048}]
[null,null,null,null,null,null,null,null,null,null,null,{"$f":"Sheet2!G:G","v":"Juniper"},{"$f":"Sheet2!A:A","v":6049}]
[null,null,null,null,null,null,null,null,null,null,null,{"$f":"Sheet2!G:G","v":"Karma Bar and Lounge"},{"$f":"Sheet2!A:A","v":6051}]
[null,null,null,null,null,null,null,null,null,null,null,{"$f":"Sheet2!G:G","v":"Kenosha Steakhouse"},{"$f":"Sheet2!A:A","v":6052}]
[null,null,null,null,null,null,null,null,null,null,null,{"$f":"Sheet2!G:G","v":"Kokopelli Liquor"},{"$f":"Sheet2!A:A","v":6053}]
[null,null,null,null,null,null,null,null,null,null,null,{"$f":"Sheet2!G:G","v":"L Apogee"},{"$f":"Sheet2!A:A","v":6054}]
[null,null,null,null,null,null,null,null,null,null,null,{"$f":"Sheet2!G:G","v":"La Tour Resturant"},{"$f":"Sheet2!A:A","v":6058}]
[null,null,null,null,null,null,null,null,null,null,null,{"$f":"Sheet2!G:G","v":"Lake Dillon Discount Liquors"},{"$f":"Sheet2!A:A","v":6071}]
[null,null,null,null,null,null,null,null,null,null,null,{"$f":"Sheet2!G:G","v":"Lakeside Bowl"},{"$f":"Sheet2!A:A","v":6073}]
[null,null,null,null,null,null,null,null,null,null,null,{"$f":"Sheet2!G:G","v":"Larkspur Restaurant"},{"$f":"Sheet2!A:A","v":6074}]
[null,null,null,null,null,null,null,null,null,null,null,{"$f":"Sheet2!G:G","v":"Laundry, The"},{"$f":"Sheet2!A:A","v":6075}]
[null,null,null,null,null,null,null,null,null,null,null,{"$f":"Sheet2!G:G","v":"Lionshead Liquor"},{"$f":"Sheet2!A:A","v":6077}]
[null,null,null,null,null,null,null,null,null,null,null,{"$f":"Sheet2!G:G","v":"Liquor Shed, The"},{"$f":"Sheet2!A:A","v":6078}]
[null,null,null,null,null,null,null,null,null,null,null,{"$f":"Sheet2!G:G","v":"Liquor Shop"},{"$f":"Sheet2!A:A","v":6079}]
[null,null,null,null,null,null,null,null,null,null,null,{"$f":"Sheet2!G:G","v":"Liquor Store, The"},{"$f":"Sheet2!A:A","v":6080}]
[null,null,null,null,null,null,null,null,null,null,null,{"$f":"Sheet2!G:G","v":"Little Nell"},{"$f":"Sheet2!A:A","v":6081}]
[null,null,null,null,null,null,null,null,null,null,null,{"$f":"Sheet2!G:G","v":"Loadout Liquors"},{"$f":"Sheet2!A:A","v":6082}]
[null,null,null,null,null,null,null,null,null,null,null,{"$f":"Sheet2!G:G","v":"Local Liquors"},{"$f":"Sheet2!A:A","v":6084}]
[null,null,null,null,null,null,null,null,null,null,null,{"$f":"Sheet2!G:G","v":"Local Spirits"},{"$f":"Sheet2!A:A","v":6085}]
[null,null,null,null,null,null,null,null,null,null,null,{"$f":"Sheet2!G:G","v":"Loveland Pass Liquors"},{"$f":"Sheet2!A:A","v":6086}]
[null,null,null,null,null,null,null,null,null,null,null,{"$f":"Sheet2!G:G","v":"Low Country Kitchen"},{"$f":"Sheet2!A:A","v":6087}]
[null,null,null,null,null,null,null,null,null,null,null,{"$f":"Sheet2!G:G","v":"Mac's Liquor"},{"$f":"Sheet2!A:A","v":6088}]
[null,null,null,null,null,null,null,null,null,null,null,{"$f":"Sheet2!G:G","v":"Marc's Chicago Pizza"},{"$f":"Sheet2!A:A","v":6089}]
[null,null,null,null,null,null,null,null,null,null,null,{"$f":"Sheet2!G:G","v":"Market Wine & Spirits"},{"$f":"Sheet2!A:A","v":6090}]
[null,null,null,null,null,null,null,null,null,null,null,{"$f":"Sheet2!G:G","v":"Mary's Main Street Spirits"},{"$f":"Sheet2!A:A","v":6091}]
[null,null,null,null,null,null,null,null,null,null,null,{"$f":"Sheet2!G:G","v":"Mazzola's Italian"},{"$f":"Sheet2!A:A","v":6091}]
[null,null,null,null,null,null,null,null,null,null,null,{"$f":"Sheet2!G:G","v":"Metropolitan, The"},{"$f":"Sheet2!A:A","v":7000}]
[null,null,null,null,null,null,null,null,null,null,null,{"$f":"Sheet2!G:G","v":"Minturn Mile"},{"$f":"Sheet2!A:A","v":7001}]
[null,null,null,null,null,null,null,null,null,null,null,{"$f":"Sheet2!G:G","v":"Moe's BBQ"},{"$f":"Sheet2!A:A","v":7002}]
[null,null,null,null,null,null,null,null,null,null,null,{"$f":"Sheet2!G:G","v":"Moe's Original - Breckenridge"},{"$f":"Sheet2!A:A","v":7003}]
[null,null,null,null,null,null,null,null,null,null,null,{"$f":"Sheet2!G:G","v":"Moe's Original BBQ"},{"$f":"Sheet2!A:A","v":7004}]
[null,null,null,null,null,null,null,null,null,null,null,{"$f":"Sheet2!G:G","v":"Montauk Seafood Grill"},{"$f":"Sheet2!A:A","v":7005}]
[null,null,null,null,null,null,null,null,null,null,null,{"$f":"Sheet2!G:G","v":"Monument Village Liquor"},{"$f":"Sheet2!A:A","v":7021}]
[null,null,null,null,null,null,null,null,null,null,null,{"$f":"Sheet2!G:G","v":"Moonshine Liquors"},{"$f":"Sheet2!A:A","v":7022}]
[null,null,null,null,null,null,null,null,null,null,null,{"$f":"Sheet2!G:G","v":"Nancy McGees Irish Pub"},{"$f":"Sheet2!A:A","v":7023}]
[null,null,null,null,null,null,null,null,null,null,null,{"$f":"Sheet2!G:G","v":"Northside"},{"$f":"Sheet2!A:A","v":7024}]
[null,null,null,null,null,null,null,null,null,null,null,{"$f":"Sheet2!G:G","v":"Old Chicago GJ"},{"$f":"Sheet2!A:A","v":7025}]
[null,null,null,null,null,null,null,null,null,null,null,{"$f":"Sheet2!G:G","v":"Old Chicago Silverthorne"},{"$f":"Sheet2!A:A","v":7026}]
[null,null,null,null,null,null,null,null,null,null,null,{"$f":"Sheet2!G:G","v":"Old Forge Pizza Co. -  Frontage"},{"$f":"Sheet2!A:A","v":7027}]
[null,null,null,null,null,null,null,null,null,null,null,{"$f":"Sheet2!G:G","v":"Old Forge Pizza Co. -  Lionshead"},{"$f":"Sheet2!A:A","v":7028}]
[null,null,null,null,null,null,null,null,null,null,null,{"$f":"Sheet2!G:G","v":"Old Forge Pizza Co. - Edwards"},{"$f":"Sheet2!A:A","v":7030}]
[null,null,null,null,null,null,null,null,null,null,null,{"$f":"Sheet2!G:G","v":"Old Town Pub"},{"$f":"Sheet2!A:A","v":7031}]
[null,null,null,null,null,null,null,null,null,null,null,{"$f":"Sheet2!G:G","v":"Ollie's Pub and Grub"},{"$f":"Sheet2!A:A","v":7032}]
[null,null,null,null,null,null,null,null,null,null,null,{"$f":"Sheet2!G:G","v":"One Ski Hill Place"},{"$f":"Sheet2!A:A","v":7033}]
[null,null,null,null,null,null,null,null,null,null,null,{"$f":"Sheet2!G:G","v":"Orehouse at the Pine Grove"},{"$f":"Sheet2!A:A","v":7034}]
[null,null,null,null,null,null,null,null,null,null,null,{"$f":"Sheet2!G:G","v":"Ouray Liquors"},{"$f":"Sheet2!A:A","v":7035}]
[null,null,null,null,null,null,null,null,null,null,null,{"$f":"Sheet2!G:G","v":"Pahgre's"},{"$f":"Sheet2!A:A","v":7036}]
[null,null,null,null,null,null,null,null,null,null,null,{"$f":"Sheet2!G:G","v":"Paonia Liquors"},{"$f":"Sheet2!A:A","v":7037}]
[null,null,null,null,null,null,null,null,null,null,null,{"$f":"Sheet2!G:G","v":"Pastatively Inc."},{"$f":"Sheet2!A:A","v":7038}]
[null,null,null,null,null,null,null,null,null,null,null,{"$f":"Sheet2!G:G","v":"Pazzo's Pizzeria"},{"$f":"Sheet2!A:A","v":7039}]
[null,null,null,null,null,null,null,null,null,null,null,{"$f":"Sheet2!G:G","v":"Peachwood Liquor"},{"$f":"Sheet2!A:A","v":7040}]
[null,null,null,null,null,null,null,null,null,null,null,{"$f":"Sheet2!G:G","v":"Peppinos Pizza of Carbondale"},{"$f":"Sheet2!A:A","v":7041}]
[null,null,null,null,null,null,null,null,null,null,null,{"$f":"Sheet2!G:G","v":"Pete's House Of Spirits"},{"$f":"Sheet2!A:A","v":7049}]
[null,null,null,null,null,null,null,null,null,null,null,{"$f":"Sheet2!G:G","v":"Phat Thai"},{"$f":"Sheet2!A:A","v":7050}]
[null,null,null,null,null,null,null,null,null,null,null,{"$f":"Sheet2!G:G","v":"Pier 13 Liquor"},{"$f":"Sheet2!A:A","v":7051}]
[null,null,null,null,null,null,null,null,null,null,null,{"$f":"Sheet2!G:G","v":"Pizza on the Plaza"},{"$f":"Sheet2!A:A","v":7052}]
[null,null,null,null,null,null,null,null,null,null,null,{"$f":"Sheet2!G:G","v":"Plaza Liquors"},{"$f":"Sheet2!A:A","v":7053}]
[null,null,null,null,null,null,null,null,null,null,null,{"$f":"Sheet2!G:G","v":"Primavera Liquors"},{"$f":"Sheet2!A:A","v":7054}]
[null,null,null,null,null,null,null,null,null,null,null,{"$f":"Sheet2!G:G","v":"Rasta Pasta"},{"$f":"Sheet2!A:A","v":7055}]
[null,null,null,null,null,null,null,null,null,null,null,{"$f":"Sheet2!G:G","v":"Red Mountain Grill Avon"},{"$f":"Sheet2!A:A","v":7056}]
[null,null,null,null,null,null,null,null,null,null,null,{"$f":"Sheet2!G:G","v":"Red Mountain Wine & Spirits"},{"$f":"Sheet2!A:A","v":7057}]
[null,null,null,null,null,null,null,null,null,null,null,{"$f":"Sheet2!G:G","v":"Redlands Liquor"},{"$f":"Sheet2!A:A","v":7058}]
[null,null,null,null,null,null,null,null,null,null,null,{"$f":"Sheet2!G:G","v":"Relish"},{"$f":"Sheet2!A:A","v":7059}]
[null,null,null,null,null,null,null,null,null,null,null,{"$f":"Sheet2!G:G","v":"Restarurant Kelly Liken"},{"$f":"Sheet2!A:A","v":7060}]
[null,null,null,null,null,null,null,null,null,null,null,{"$f":"Sheet2!G:G","v":"Rex's"},{"$f":"Sheet2!A:A","v":7061}]
[null,null,null,null,null,null,null,null,null,null,null,{"$f":"Sheet2!G:G","v":"Rhino Liquors"},{"$f":"Sheet2!A:A","v":7067}]
[null,null,null,null,null,null,null,null,null,null,null,{"$f":"Sheet2!G:G","v":"Rio Grande Mexican Restaurant"},{"$f":"Sheet2!A:A","v":7071}]
[null,null,null,null,null,null,null,null,null,null,null,{"$f":"Sheet2!G:G","v":"Ristorante Pantuso's"},{"$f":"Sheet2!A:A","v":7073}]
[null,null,null,null,null,null,null,null,null,null,null,{"$f":"Sheet2!G:G","v":"Ristorante Ti Amo"},{"$f":"Sheet2!A:A","v":7074}]
[null,null,null,null,null,null,null,null,null,null,null,{"$f":"Sheet2!G:G","v":"Riverside Spirits"},{"$f":"Sheet2!A:A","v":7075}]
[null,null,null,null,null,null,null,null,null,null,null,{"$f":"Sheet2!G:G","v":"Riverwalk Wine & Spirits"},{"$f":"Sheet2!A:A","v":7076}]
[null,null,null,null,null,null,null,null,null,null,null,{"$f":"Sheet2!G:G","v":"Roaring Fork Club"},{"$f":"Sheet2!A:A","v":7091}]
[null,null,null,null,null,null,null,null,null,null,null,{"$f":"Sheet2!G:G","v":"Roaring Fork Liquors"},{"$f":"Sheet2!A:A","v":7094}]
[null,null,null,null,null,null,null,null,null,null,null,{"$f":"Sheet2!G:G","v":"Rockin R Ranch"},{"$f":"Sheet2!A:A","v":7096}]
[null,null,null,null,null,null,null,null,null,null,null,{"$f":"Sheet2!G:G","v":"Rocky Mountain Liquors"},{"$f":"Sheet2!A:A","v":7098}]
[null,null,null,null,null,null,null,null,null,null,null,{"$f":"Sheet2!G:G","v":"Roosters"},{"$f":"Sheet2!A:A","v":7102}]
[null,null,null,null,null,null,null,null,null,null,null,{"$f":"Sheet2!G:G","v":"Russo's Pizza"},{"$f":"Sheet2!A:A","v":7103}]
[null,null,null,null,null,null,null,null,null,null,null,{"$f":"Sheet2!G:G","v":"Rusted Porch"},{"$f":"Sheet2!A:A","v":7204}]
[null,null,null,null,null,null,null,null,null,null,null,{"$f":"Sheet2!G:G","v":"Saketumi"},{"$f":"Sheet2!A:A","v":7227}]
[null,null,null,null,null,null,null,null,null,null,null,{"$f":"Sheet2!G:G","v":"Samples - Gerardo Castillo"},{"$f":"Sheet2!A:A","v":7230}]
[null,null,null,null,null,null,null,null,null,null,null,{"$f":"Sheet2!G:G","v":"Samples - JT Krizman"},{"$f":"Sheet2!A:A","v":7240}]
[null,null,null,null,null,null,null,null,null,null,null,{"$f":"Sheet2!G:G","v":"Samples - William Lodge"},{"$f":"Sheet2!A:A","v":7241}]
[null,null,null,null,null,null,null,null,null,null,null,{"$f":"Sheet2!G:G","v":"San Juan Liquors"},{"$f":"Sheet2!A:A","v":7242}]
[null,null,null,null,null,null,null,null,null,null,null,{"$f":"Sheet2!G:G","v":"Schmiggity's"},{"$f":"Sheet2!A:A","v":7243}]
[null,null,null,null,null,null,null,null,null,null,null,{"$f":"Sheet2!G:G","v":"Sevens Restaurant"},{"$f":"Sheet2!A:A","v":7244}]
[null,null,null,null,null,null,null,null,null,null,null,{"$f":"Sheet2!G:G","v":"Sheraton Steamboat Resort"},{"$f":"Sheet2!A:A","v":7245}]
[null,null,null,null,null,null,null,null,null,null,null,{"$f":"Sheet2!G:G","v":"Silt Disount Liquor"},{"$f":"Sheet2!A:A","v":7247}]
[null,null,null,null,null,null,null,null,null,null,null,{"$f":"Sheet2!G:G","v":"Silverthorne Liquors"},{"$f":"Sheet2!A:A","v":7248}]
[null,null,null,null,null,null,null,null,null,null,null,{"$f":"Sheet2!G:G","v":"Skee Vue Liquors"},{"$f":"Sheet2!A:A","v":7249}]
[null,null,null,null,null,null,null,null,null,null,null,{"$f":"Sheet2!G:G","v":"Ski Haus Liquors"},{"$f":"Sheet2!A:A","v":7250}]
[null,null,null,null,null,null,null,null,null,null,null,{"$f":"Sheet2!G:G","v":"Ski Town Liquor"},{"$f":"Sheet2!A:A","v":7300}]
[null,null,null,null,null,null,null,null,null,null,null,{"$f":"Sheet2!G:G","v":"Sky Hotel and 39 Degrees"},{"$f":"Sheet2!A:A","v":7301}]
[null,null,null,null,null,null,null,null,null,null,null,{"$f":"Sheet2!G:G","v":"Smoke"},{"$f":"Sheet2!A:A","v":7302}]
[null,null,null,null,null,null,null,null,null,null,null,{"$f":"Sheet2!G:G","v":"Smoke Modern BBQ"},{"$f":"Sheet2!A:A","v":7303}]
[null,null,null,null,null,null,null,null,null,null,null,{"$f":"Sheet2!G:G","v":"Sopris Liquors & Wine"},{"$f":"Sheet2!A:A","v":7304}]
[null,null,null,null,null,null,null,null,null,null,null,{"$f":"Sheet2!G:G","v":"South Ridge Seafood"},{"$f":"Sheet2!A:A","v":7400}]
[null,null,null,null,null,null,null,null,null,null,null,{"$f":"Sheet2!G:G","v":"South Side Liquors"},{"$f":"Sheet2!A:A","v":7401}]
[null,null,null,null,null,null,null,null,null,null,null,{"$f":"Sheet2!G:G","v":"Spike's Liquors"},{"$f":"Sheet2!A:A","v":7402}]
[null,null,null,null,null,null,null,null,null,null,null,{"$f":"Sheet2!G:G","v":"Spirits of Newcastle"},{"$f":"Sheet2!A:A","v":7403}]
[null,null,null,null,null,null,null,null,null,null,null,{"$f":"Sheet2!G:G","v":"Steamboat Golf Club"},{"$f":"Sheet2!A:A","v":7404}]
[null,null,null,null,null,null,null,null,null,null,null,{"$f":"Sheet2!G:G","v":"Steamboat Grand"},{"$f":"Sheet2!A:A","v":7405}]
[null,null,null,null,null,null,null,null,null,null,null,{"$f":"Sheet2!G:G","v":"Summit Liquors"},{"$f":"Sheet2!A:A","v":7406}]
[null,null,null,null,null,null,null,null,null,null,null,{"$f":"Sheet2!G:G","v":"Sundance"},{"$f":"Sheet2!A:A","v":7407}]
[null,null,null,null,null,null,null,null,null,null,null,{"$f":"Sheet2!G:G","v":"Sure Thing Burger"},{"$f":"Sheet2!A:A","v":7409}]
[null,null,null,null,null,null,null,null,null,null,null,{"$f":"Sheet2!G:G","v":"Sweet Basil & Mountain"},{"$f":"Sheet2!A:A","v":7410}]
[null,null,null,null,null,null,null,null,null,null,null,{"$f":"Sheet2!G:G","v":"Sweet Coloradough"},{"$f":"Sheet2!A:A","v":7427}]
[null,null,null,null,null,null,null,null,null,null,null,{"$f":"Sheet2!G:G","v":"Sweet Waters Liquor"},{"$f":"Sheet2!A:A","v":7428}]
[null,null,null,null,null,null,null,null,null,null,null,{"$f":"Sheet2!G:G","v":"Sweetwater Grill"},{"$f":"Sheet2!A:A","v":7429}]
[null,null,null,null,null,null,null,null,null,null,null,{"$f":"Sheet2!G:G","v":"Tap House Sports Grill"},{"$f":"Sheet2!A:A","v":7431}]
[null,null,null,null,null,null,null,null,null,null,null,{"$f":"Sheet2!G:G","v":"Taqueria El Nopal #1"},{"$f":"Sheet2!A:A","v":7444}]
[null,null,null,null,null,null,null,null,null,null,null,{"$f":"Sheet2!G:G","v":"Taqueria El Nopal #2"},{"$f":"Sheet2!A:A","v":7445}]
[null,null,null,null,null,null,null,null,null,null,null,{"$f":"Sheet2!G:G","v":"Teller Arms Liquor"},{"$f":"Sheet2!A:A","v":7446}]
[null,null,null,null,null,null,null,null,null,null,null,{"$f":"Sheet2!G:G","v":"Telluride Bottle Works"},{"$f":"Sheet2!A:A","v":7447}]
[null,null,null,null,null,null,null,null,null,null,null,{"$f":"Sheet2!G:G","v":"Terra Bistro"},{"$f":"Sheet2!A:A","v":7448}]
[null,null,null,null,null,null,null,null,null,null,null,{"$f":"Sheet2!G:G","v":"The Pullman"},{"$f":"Sheet2!A:A","v":7449}]
[null,null,null,null,null,null,null,null,null,null,null,{"$f":"Sheet2!G:G","v":"Three Peaks Grill"},{"$f":"Sheet2!A:A","v":7450}]
[null,null,null,null,null,null,null,null,null,null,null,{"$f":"Sheet2!G:G","v":"Ticino Italian"},{"$f":"Sheet2!A:A","v":7451}]
[null,null,null,null,null,null,null,null,null,null,null,{"$f":"Sheet2!G:G","v":"Town"},{"$f":"Sheet2!A:A","v":7452}]
[null,null,null,null,null,null,null,null,null,null,null,{"$f":"Sheet2!G:G","v":"Trattoria Dionisia"},{"$f":"Sheet2!A:A","v":7453}]
[null,null,null,null,null,null,null,null,null,null,null,{"$f":"Sheet2!G:G","v":"Tri R Liquors"},{"$f":"Sheet2!A:A","v":7454}]
[null,null,null,null,null,null,null,null,null,null,null,{"$f":"Sheet2!G:G","v":"Truffle Pig "},{"$f":"Sheet2!A:A","v":7455}]
[null,null,null,null,null,null,null,null,null,null,null,{"$f":"Sheet2!G:G","v":"Twist"},{"$f":"Sheet2!A:A","v":7456}]
[null,null,null,null,null,null,null,null,null,null,null,{"$f":"Sheet2!G:G","v":"Uncle Sid's Bottles"},{"$f":"Sheet2!A:A","v":7457}]
[null,null,null,null,null,null,null,null,null,null,null,{"$f":"Sheet2!G:G","v":"Vail Ale House"},{"$f":"Sheet2!A:A","v":7460}]
[null,null,null,null,null,null,null,null,null,null,null,{"$f":"Sheet2!G:G","v":"Vail Ampatheater Corp"},{"$f":"Sheet2!A:A","v":7462}]
[null,null,null,null,null,null,null,null,null,null,null,{"$f":"Sheet2!G:G","v":"Vail Cascade Resort"},{"$f":"Sheet2!A:A","v":7464}]
[null,null,null,null,null,null,null,null,null,null,null,{"$f":"Sheet2!G:G","v":"Vail Fine Wines"},{"$f":"Sheet2!A:A","v":7466}]
[null,null,null,null,null,null,null,null,null,null,null,{"$f":"Sheet2!G:G","v":"Vendetta"},{"$f":"Sheet2!A:A","v":7474}]
[null,null,null,null,null,null,null,null,null,null,null,{"$f":"Sheet2!G:G","v":"Village at Breckenridge Resort"},{"$f":"Sheet2!A:A","v":7475}]
[null,null,null,null,null,null,null,null,null,null,null,{"$f":"Sheet2!G:G","v":"Village Liquors"},{"$f":"Sheet2!A:A","v":7476}]
[null,null,null,null,null,null,null,null,null,null,null,{"$f":"Sheet2!G:G","v":"Village Warehouse Wine & Spirits"},{"$f":"Sheet2!A:A","v":7477}]
[null,null,null,null,null,null,null,null,null,null,null,{"$f":"Sheet2!G:G","v":"Vin 48"},{"$f":"Sheet2!A:A","v":7479}]
[null,null,null,null,null,null,null,null,null,null,null,{"$f":"Sheet2!G:G","v":"West End Liquor"},{"$f":"Sheet2!A:A","v":7480}]
[null,null,null,null,null,null,null,null,null,null,null,{"$f":"Sheet2!G:G","v":"West Side Café and Market"},{"$f":"Sheet2!A:A","v":7481}]
[null,null,null,null,null,null,null,null,null,null,null,{"$f":"Sheet2!G:G","v":"West Vail Liquors"},{"$f":"Sheet2!A:A","v":7482}]
[null,null,null,null,null,null,null,null,null,null,null,{"$f":"Sheet2!G:G","v":"Westin Riverfront Resort & Spa"},{"$f":"Sheet2!A:A","v":7483}]
[null,null,null,null,null,null,null,null,null,null,null,{"$f":"Sheet2!G:G","v":"White House Tavern"},{"$f":"Sheet2!A:A","v":7484}]
[null,null,null,null,null,null,null,null,null,null,null,{"$f":"Sheet2!G:G","v":"Wine Mine"},{"$f":"Sheet2!A:A","v":7485}]
[null,null,null,null,null,null,null,null,null,null,null,{"$f":"Sheet2!G:G","v":"Winery Restaurant, The"},{"$f":"Sheet2!A:A","v":7487}]
[null,null,null,null,null,null,null,null,null,null,null,{"$f":"Sheet2!G:G","v":"Winetime"},{"$f":"Sheet2!A:A","v":7489}]
[null,null,null,null,null,null,null,null,null,null,null,{"$f":"Sheet2!G:G","v":"Winter Park Wine & Spirits"},{"$f":"Sheet2!A:A","v":7498}]
[null,null,null,null,null,null,null,null,null,null,null,{"$f":"Sheet2!G:G","v":"WW Peppers"},{"$f":"Sheet2!A:A","v":7499}]
[null,null,null,null,null,null,null,null,null,null,null,{"$f":"Sheet2!G:G","v":"Yama"},{"$f":"Sheet2!A:A","v":7500}]
[null,null,null,null,null,null,null,null,null,null,null,{"$f":"Sheet2!G:G","v":0},{"$f":"Sheet2!A:A","v":8000}]
[null,null,null,null,null,null,null,null,null,null,null,{"$f":"Sheet2!G:G","v":0},{"$f":"Sheet2!A:A","v":8001}]
[null,null,null,null,null,null,null,null,null,null,null,{"$f":"Sheet2!G:G","v":0},{"$f":"Sheet2!A:A","v":8008}]
[null,null,null,null,null,null,null,null,null,null,null,{"$f":"Sheet2!G:G","v":0},{"$f":"Sheet2!A:A","v":8022}]
[null,null,null,null,null,null,null,null,null,null,null,{"$f":"Sheet2!G:G","v":0},{"$f":"Sheet2!A:A","v":8024}]
[null,null,null,null,null,null,null,null,null,null,null,{"$f":"Sheet2!G:G","v":0},{"$f":"Sheet2!A:A","v":8025}]
[null,null,null,null,null,null,null,null,null,null,null,{"$f":"Sheet2!G:G","v":0},{"$f":"Sheet2!A:A","v":8026}]
[null,null,null,null,null,null,null,null,null,null,null,{"$f":"Sheet2!G:G","v":0},{"$f":"Sheet2!A:A","v":8027}]
[null,null,null,null,null,null,null,null,null,null,null,{"$f":"Sheet2!G:G","v":0},{"$f":"Sheet2!A:A","v":8028}]
[null,null,null,null,null,null,null,null,null,null,null,{"$f":"Sheet2!G:G","v":0},{"$f":"Sheet2!A:A","v":8029}]
[null,null,null,null,null,null,null,null,null,null,null,{"$f":"Sheet2!G:G","v":0},{"$f":"Sheet2!A:A","v":8030}]
[null,null,null,null,null,null,null,null,null,null,null,{"$f":"Sheet2!G:G","v":0},{"$f":"Sheet2!A:A","v":8032}]
[null,null,null,null,null,null,null,null,null,null,null,{"$f":"Sheet2!G:G","v":0},{"$f":"Sheet2!A:A","v":8033}]
[null,null,null,null,null,null,null,null,null,null,null,{"$f":"Sheet2!G:G","v":0},{"$f":"Sheet2!A:A","v":8040}]
[null,null,null,null,null,null,null,null,null,null,null,{"$f":"Sheet2!G:G","v":0},{"$f":"Sheet2!A:A","v":8041}]
[null,null,null,null,null,null,null,null,null,null,null,{"$f":"Sheet2!G:G","v":0},{"$f":"Sheet2!A:A","v":8042}]
[null,null,null,null,null,null,null,null,null,null,null,{"$f":"Sheet2!G:G","v":0},{"$f":"Sheet2!A:A","v":8043}]
[null,null,null,null,null,null,null,null,null,null,null,{"$f":"Sheet2!G:G","v":0},{"$f":"Sheet2!A:A","v":8044}]
[null,null,null,null,null,null,null,null,null,null,null,{"$f":"Sheet2!G:G","v":0},{"$f":"Sheet2!A:A","v":8045}]
[null,null,null,null,null,null,null,null,null,null,null,{"$f":"Sheet2!G:G","v":0},{"$f":"Sheet2!A:A","v":8046}]
[null,null,null,null,null,null,null,null,null,null,null,{"$f":"Sheet2!G:G","v":0},{"$f":"Sheet2!A:A","v":8047}]
[null,null,null,null,null,null,null,null,null,null,null,{"$f":"Sheet2!G:G","v":0},{"$f":"Sheet2!A:A","v":8050}]
[null,null,null,null,null,null,null,null,null,null,null,{"$f":"Sheet2!G:G","v":0},{"$f":"Sheet2!A:A","v":8051}]
[null,null,null,null,null,null,null,null,null,null,null,{"$f":"Sheet2!G:G","v":0},{"$f":"Sheet2!A:A","v":8052}]
[null,null,null,null,null,null,null,null,null,null,null,{"$f":"Sheet2!G:G","v":0},{"$f":"Sheet2!A:A","v":8053}]
[null,null,null,null,null,null,null,null,null,null,null,{"$f":"Sheet2!G:G","v":0},{"$f":"Sheet2!A:A","v":9003}]
[null,null,null,null,null,null,null,null,null,null,null,{"$f":"Sheet2!G:G","v":0},{"$f":"Sheet2!A:A","v":9020}]
[null,null,null,null,null,null,null,null,null,null,null,{"$f":"Sheet2!G:G","v":0},{"$f":"Sheet2!A:A","v":9021}]
[null,null,null,null,null,null,null,null,null,null,null,{"$f":"Sheet2!G:G","v":0},{"$f":"Sheet2!A:A","v":9022}]
[null,null,null,null,null,null,null,null,null,null,null,{"$f":"Sheet2!G:G","v":0},{"$f":"Sheet2!A:A","v":9023}]
[null,null,null,null,null,null,null,null,null,null,null,{"$f":"Sheet2!G:G","v":0},{"$f":"Sheet2!A:A","v":9024}]
[null,null,null,null,null,null,null,null,null,null,null,{"$f":"Sheet2!G:G","v":0},{"$f":"Sheet2!A:A","v":9028}]
[null,null,null,null,null,null,null,null,null,null,null,{"$f":"Sheet2!G:G","v":0},{"$f":"Sheet2!A:A","v":9029}]
[null,null,null,null,null,null,null,null,null,null,null,{"$f":"Sheet2!G:G","v":0},{"$f":"Sheet2!A:A","v":9030}]
[null,null,null,null,null,null,null,null,null,null,null,{"$f":"Sheet2!G:G","v":0},{"$f":"Sheet2!A:A","v":9031}]
[null,null,null,null,null,null,null,null,null,null,null,{"$f":"Sheet2!G:G","v":0},{"$f":"Sheet2!A:A","v":9032}]
[null,null,null,null,null,null,null,null,null,null,null,{"$f":"Sheet2!G:G","v":0},{"$f":"Sheet2!A:A","v":9034}]
[null,null,null,null,null,null,null,null,null,null,null,{"$f":"Sheet2!G:G","v":0},{"$f":"Sheet2!A:A","v":9038}]
[null,null,null,null,null,null,null,null,null,null,null,{"$f":"Sheet2!G:G","v":0},{"$f":"Sheet2!A:A","v":9039}]
[null,null,null,null,null,null,null,null,null,null,null,{"$f":"Sheet2!G:G","v":0},{"$f":"Sheet2!A:A","v":9043}]
[null,null,null,null,null,null,null,null,null,null,null,{"$f":"Sheet2!G:G","v":0},{"$f":"Sheet2!A:A","v":9054}]
[null,null,null,null,null,null,null,null,null,null,null,{"$f":"Sheet2!G:G","v":0},{"$f":"Sheet2!A:A","v":9055}]
[null,null,null,null,null,null,null,null,null,null,null,{"$f":"Sheet2!G:G","v":0},{"$f":"Sheet2!A:A","v":9057}]
[null,null,null,null,null,null,null,null,null,null,null,{"$f":"Sheet2!G:G","v":0},{"$f":"Sheet2!A:A","v":9058}]
[null,null,null,null,null,null,null,null,null,null,null,{"$f":"Sheet2!G:G","v":0},{"$f":"Sheet2!A:A","v":9060}]
[null,null,null,null,null,null,null,null,null,null,null,{"$f":"Sheet2!G:G","v":0},{"$f":"Sheet2!A:A","v":9061}]
[null,null,null,null,null,null,null,null,null,null,null,{"$f":"Sheet2!G:G","v":0},{"$f":"Sheet2!A:A","v":9062}]
[null,null,null,null,null,null,null,null,null,null,null,{"$f":"Sheet2!G:G","v":0},{"$f":"Sheet2!A:A","v":9063}]
[null,null,null,null,null,null,null,null,null,null,null,{"$f":"Sheet2!G:G","v":0},{"$f":"Sheet2!A:A","v":9064}]
[null,null,null,null,null,null,null,null,null,null,null,{"$f":"Sheet2!G:G","v":0},{"$f":"Sheet2!A:A","v":9065}]
[null,null,null,null,null,null,null,null,null,null,null,{"$f":"Sheet2!G:G","v":0},{"$f":"Sheet2!A:A","v":9066}]
[null,null,null,null,null,null,null,null,null,null,null,{"$f":"Sheet2!G:G","v":0},{"$f":"Sheet2!A:A","v":9067}]
[null,null,null,null,null,null,null,null,null,null,null,{"$f":"Sheet2!G:G","v":0},{"$f":"Sheet2!A:A","v":9068}]
[null,null,null,null,null,null,null,null,null,null,null,{"$f":"Sheet2!G:G","v":0},{"$f":"Sheet2!A:A","v":9100}]
[null,null,null,null,null,null,null,null,null,null,null,{"$f":"Sheet2!G:G","v":0},{"$f":"Sheet2!A:A","v":9101}]
[null,null,null,null,null,null,null,null,null,null,null,{"$f":"Sheet2!G:G","v":0},{"$f":"Sheet2!A:A","v":9102}]
[null,null,null,null,null,null,null,null,null,null,null,{"$f":"Sheet2!G:G","v":0},{"$f":"Sheet2!A:A","v":9103}]
[null,null,null,null,null,null,null,null,null,null,null,{"$f":"Sheet2!G:G","v":0},{"$f":"Sheet2!A:A","v":9104}]
[null,null,null,null,null,null,null,null,null,null,null,{"$f":"Sheet2!G:G","v":0},{"$f":"Sheet2!A:A","v":9105}]
[null,null,null,null,null,null,null,null,null,null,null,{"$f":"Sheet2!G:G","v":0},{"$f":"Sheet2!A:A","v":9106}]
[null,null,null,null,null,null,null,null,null,null,null,{"$f":"Sheet2!G:G","v":0},{"$f":"Sheet2!A:A","v":9107}]
[null,null,null,null,null,null,null,null,null,null,null,{"$f":"Sheet2!G:G","v":0},{"$f":"Sheet2!A:A","v":9108}]
[null,null,null,null,null,null,null,null,null,null,null,{"$f":"Sheet2!G:G","v":0},{"$f":"Sheet2!A:A","v":9109}]
[null,null,null,null,null,null,null,null,null,null,null,{"$f":"Sheet2!G:G","v":0},{"$f":"Sheet2!A:A","v":9110}]
[null,null,null,null,null,null,null,null,null,null,null,{"$f":"Sheet2!G:G","v":0},{"$f":"Sheet2!A:A","v":9111}]
[null,null,null,null,null,null,null,null,null,null,null,{"$f":"Sheet2!G:G","v":0},{"$f":"Sheet2!A:A","v":9112}]
[null,null,null,null,null,null,null,null,null,null,null,{"$f":"Sheet2!G:G","v":0},{"$f":"Sheet2!A:A","v":9113}]
[null,null,null,null,null,null,null,null,null,null,null,{"$f":"Sheet2!G:G","v":0},{"$f":"Sheet2!A:A","v":9114}]
[null,null,null,null,null,null,null,null,null,null,null,{"$f":"Sheet2!G:G","v":0},{"$f":"Sheet2!A:A","v":9115}]
[null,null,null,null,null,null,null,null,null,null,null,{"$f":"Sheet2!G:G","v":0},{"$f":"Sheet2!A:A","v":9119}]
[null,null,null,null,null,null,null,null,null,null,null,{"$f":"Sheet2!G:G","v":0},{"$f":"Sheet2!A:A","v":9210}]
[null,null,null,null,null,null,null,null,null,null,null,{"$f":"Sheet2!G:G","v":0},{"$f":"Sheet2!A:A","v":9950}]
[null,null,null,null,null,null,null,null,null,null,null,{"$f":"Sheet2!G:G","v":0},{"$f":"Sheet2!A:A","v":9951}]
[null,null,null,null,null,null,null,null,null,null,null,{"$f":"Sheet2!G:G","v":0},{"$f":"Sheet2!A:A","v":9955}]
[null,null,null,null,null,null,null,null,null,null,null,{"$f":"Sheet2!G:G","v":0},{"$f":"Sheet2!A:A","v":9956}]
[null,null,null,null,null,null,null,null,null,null,null,{"$f":"Sheet2!G:G","v":0},{"$f":"Sheet2!A:A","v":9960}]
[null,null,null,null,null,null,null,null,null,null,null,{"$f":"Sheet2!G:G","v":0},{"$f":"Sheet2!A:A","v":9962}]
[null,null,null,null,null,null,null,null,null,null,null,{"$f":"Sheet2!G:G","v":0},{"$f":"Sheet2!A:A","v":9965}]
[null,null,null,null,null,null,null,null,null,null,null,{"$f":"Sheet2!G:G","v":0},{"$f":"Sheet2!A:A","v":9970}]
[null,null,null,null,null,null,null,null,null,null,null,{"$f":"Sheet2!G:G","v":0},{"$f":"Sheet2!A:A","v":9971}]
[null,null,null,null,null,null,null,null,null,null,null,{"$f":"Sheet2!G:G","v":0},{"$f":"Sheet2!A:A","v":9995}]
[null,null,null,null,null,null,null,null,null,null,null,{"$f":"Sheet2!G:G","v":0},{"$f":"Sheet2!A:A","v":0}]
[null,null,null,null,null,null,null,null,null,null,null,{"$f":"Sheet2!G:G","v":0},{"$f":"Sheet2!A:A","v":0}]
[null,null,null,null,null,null,null,null,null,null,null,{"$f":"Sheet2!G:G","v":0},{"$f":"Sheet2!A:A","v":0}]
[null,null,null,null,null,null,null,null,null,null,null,{"$f":"Sheet2!G:G","v":0},{"$f":"Sheet2!A:A","v":0}]
[null,null,null,null,null,null,null,null,null,null,null,{"$f":"Sheet2!G:G","v":0},{"$f":"Sheet2!A:A","v":0}]
[null,null,null,null,null,null,null,null,null,null,null,{"$f":"Sheet2!G:G","v":0},{"$f":"Sheet2!A:A","v":0}]
[null,null,null,null,null,null,null,null,null,null,null,{"$f":"Sheet2!G:G","v":0},{"$f":"Sheet2!A:A","v":0}]
[null,null,null,null,null,null,null,null,null,null,null,{"$f":"Sheet2!G:G","v":0},{"$f":"Sheet2!A:A","v":0}]
[null,null,null,null,null,null,null,null,null,null,null,{"$f":"Sheet2!G:G","v":0},{"$f":"Sheet2!A:A","v":0}]
[null,null,null,null,null,null,null,null,null,null,null,{"$f":"Sheet2!G:G","v":0},{"$f":"Sheet2!A:A","v":0}]
[null,null,null,null,null,null,null,null,null,null,null,{"$f":"Sheet2!G:G","v":0},{"$f":"Sheet2!A:A","v":0}]
[null,null,null,null,null,null,null,null,null,null,null,{"$f":"Sheet2!G:G","v":0},{"$f":"Sheet2!A:A","v":0}]
[null,null,null,null,null,null,null,null,null,null,null,{"$f":"Sheet2!G:G","v":0},{"$f":"Sheet2!A:A","v":0}]
[null,null,null,null,null,null,null,null,null,null,null,{"$f":"Sheet2!G:G","v":0},{"$f":"Sheet2!A:A","v":0}]
[null,null,null,null,null,null,null,null,null,null,null,{"$f":"Sheet2!G:G","v":0},{"$f":"Sheet2!A:A","v":0}]
[null,null,null,null,null,null,null,null,null,null,null,{"$f":"Sheet2!G:G","v":0},{"$f":"Sheet2!A:A","v":0}]
[null,null,null,null,null,null,null,null,null,null,null,{"$f":"Sheet2!G:G","v":0},{"$f":"Sheet2!A:A","v":0}]
[null,null,null,null,null,null,null,null,null,null,null,{"$f":"Sheet2!G:G","v":0},{"$f":"Sheet2!A:A","v":0}]
[null,null,null,null,null,null,null,null,null,null,null,{"$f":"Sheet2!G:G","v":0},{"$f":"Sheet2!A:A","v":0}]
[null,null,null,null,null,null,null,null,null,null,null,{"$f":"Sheet2!G:G","v":0},{"$f":"Sheet2!A:A","v":0}]
[null,null,null,null,null,null,null,null,null,null,null,{"$f":"Sheet2!G:G","v":0},{"$f":"Sheet2!A:A","v":0}]
[null,null,null,null,null,null,null,null,null,null,null,{"$f":"Sheet2!G:G","v":0},{"$f":"Sheet2!A:A","v":0}]
[null,null,null,null,null,null,null,null,null,null,null,{"$f":"Sheet2!G:G","v":0},{"$f":"Sheet2!A:A","v":0}]
[null,null,null,null,null,null,null,null,null,null,null,{"$f":"Sheet2!G:G","v":0},{"$f":"Sheet2!A:A","v":0}]
[null,null,null,null,null,null,null,null,null,null,null,{"$f":"Sheet2!G:G","v":0},{"$f":"Sheet2!A:A","v":0}]
[null,null,null,null,null,null,null,null,null,null,null,{"$f":"Sheet2!G:G","v":0},{"$f":"Sheet2!A:A","v":0}]
[null,null,null,null,null,null,null,null,null,null,null,{"$f":"Sheet2!G:G","v":0},{"$f":"Sheet2!A:A","v":0}]
[null,null,null,null,null,null,null,null,null,null,null,{"$f":"Sheet2!G:G","v":0},{"$f":"Sheet2!A:A","v":0}]
[null,null,null,null,null,null,null,null,null,null,null,{"$f":"Sheet2!G:G","v":0},{"$f":"Sheet2!A:A","v":0}]
[null,null,null,null,null,null,null,null,null,null,null,{"$f":"Sheet2!G:G","v":0},{"$f":"Sheet2!A:A","v":0}]
[null,null,null,null,null,null,null,null,null,null,null,{"$f":"Sheet2!G:G","v":0},{"$f":"Sheet2!A:A","v":0}]
[null,null,null,null,null,null,null,null,null,null,null,{"$f":"Sheet2!G:G","v":0},{"$f":"Sheet2!A:A","v":0}]
[null,null,null,null,null,null,null,null,null,null,null,{"$f":"Sheet2!G:G","v":0},{"$f":"Sheet2!A:A","v":0}]
[null,null,null,null,null,null,null,null,null,null,null,{"$f":"Sheet2!G:G","v":0},{"$f":"Sheet2!A:A","v":0}]
[null,null,null,null,null,null,null,null,null,null,null,{"$f":"Sheet2!G:G","v":0},{"$f":"Sheet2!A:A","v":0}]
[null,null,null,null,null,null,null,null,null,null,null,{"$f":"Sheet2!G:G","v":0},{"$f":"Sheet2!A:A","v":0}]
[null,null,null,null,null,null,null,null,null,null,null,{"$f":"Sheet2!G:G","v":0},{"$f":"Sheet2!A:A","v":0}]
[null,null,null,null,null,null,null,null,null,null,null,{"$f":"Sheet2!G:G","v":0},{"$f":"Sheet2!A:A","v":0}]
[null,null,null,null,null,null,null,null,null,null,null,{"$f":"Sheet2!G:G","v":0},{"$f":"Sheet2!A:A","v":0}]
[null,null,null,null,null,null,null,null,null,null,null,{"$f":"Sheet2!G:G","v":0},{"$f":"Sheet2!A:A","v":0}]
[null,null,null,null,null,null,null,null,null,null,null,{"$f":"Sheet2!G:G","v":0},{"$f":"Sheet2!A:A","v":0}]
[null,null,null,null,null,null,null,null,null,null,null,{"$f":"Sheet2!G:G","v":0},{"$f":"Sheet2!A:A","v":0}]
[null,null,null,null,null,null,null,null,null,null,null,{"$f":"Sheet2!G:G","v":0},{"$f":"Sheet2!A:A","v":0}]
[null,null,null,null,null,null,null,null,null,null,null,{"$f":"Sheet2!G:G","v":0},{"$f":"Sheet2!A:A","v":0}]
[null,null,null,null,null,null,null,null,null,null,null,{"$f":"Sheet2!G:G","v":0},{"$f":"Sheet2!A:A","v":0}]
[null,null,null,null,null,null,null,null,null,null,null,{"$f":"Sheet2!G:G","v":0},{"$f":"Sheet2!A:A","v":0}]
[null,null,null,null,null,null,null,null,null,null,null,{"$f":"Sheet2!G:G","v":0},{"$f":"Sheet2!A:A","v":0}]
[null,null,null,null,null,null,null,null,null,null,null,{"$f":"Sheet2!G:G","v":0},{"$f":"Sheet2!A:A","v":0}]
[null,null,null,null,null,null,null,null,null,null,null,{"$f":"Sheet2!G:G","v":0},{"$f":"Sheet2!A:A","v":0}]
[null,null,null,null,null,null,null,null,null,null,null,{"$f":"Sheet2!G:G","v":0},{"$f":"Sheet2!A:A","v":0}]
[null,null,null,null,null,null,null,null,null,null,null,{"$f":"Sheet2!G:G","v":0},{"$f":"Sheet2!A:A","v":0}]
[null,null,null,null,null,null,null,null,null,null,null,{"$f":"Sheet2!G:G","v":0},{"$f":"Sheet2!A:A","v":0}]
[null,null,null,null,null,null,null,null,null,null,null,{"$f":"Sheet2!G:G","v":0},{"$f":"Sheet2!A:A","v":0}]
[null,null,null,null,null,null,null,null,null,null,null,{"$f":"Sheet2!G:G","v":0},{"$f":"Sheet2!A:A","v":0}]
[null,null,null,null,null,null,null,null,null,null,null,{"$f":"Sheet2!G:G","v":0},{"$f":"Sheet2!A:A","v":0}]
[null,null,null,null,null,null,null,null,null,null,null,{"$f":"Sheet2!G:G","v":0},{"$f":"Sheet2!A:A","v":0}]
[null,null,null,null,null,null,null,null,null,null,null,{"$f":"Sheet2!G:G","v":0},{"$f":"Sheet2!A:A","v":0}]
[null,null,null,null,null,null,null,null,null,null,null,{"$f":"Sheet2!G:G","v":0},{"$f":"Sheet2!A:A","v":0}]
[null,null,null,null,null,null,null,null,null,null,null,{"$f":"Sheet2!G:G","v":0},{"$f":"Sheet2!A:A","v":0}]
[null,null,null,null,null,null,null,null,null,null,null,{"$f":"Sheet2!G:G","v":0},{"$f":"Sheet2!A:A","v":0}]
[null,null,null,null,null,null,null,null,null,null,null,{"$f":"Sheet2!G:G","v":0},{"$f":"Sheet2!A:A","v":0}]
[null,null,null,null,null,null,null,null,null,null,null,{"$f":"Sheet2!G:G","v":0},{"$f":"Sheet2!A:A","v":0}]
[null,null,null,null,null,null,null,null,null,null,null,{"$f":"Sheet2!G:G","v":0},{"$f":"Sheet2!A:A","v":0}]
[null,null,null,null,null,null,null,null,null,null,null,{"$f":"Sheet2!G:G","v":0},{"$f":"Sheet2!A:A","v":0}]
[null,null,null,null,null,null,null,null,null,null,null,{"$f":"Sheet2!G:G","v":0},{"$f":"Sheet2!A:A","v":0}]
[null,null,null,null,null,null,null,null,null,null,null,{"$f":"Sheet2!G:G","v":0},{"$f":"Sheet2!A:A","v":0}]
[null,null,null,null,null,null,null,null,null,null,null,{"$f":"Sheet2!G:G","v":0},{"$f":"Sheet2!A:A","v":0}]
[null,null,null,null,null,null,null,null,null,null,null,{"$f":"Sheet2!G:G","v":0},{"$f":"Sheet2!A:A","v":0}]
[null,null,null,null,null,null,null,null,null,null,null,{"$f":"Sheet2!G:G","v":0},{"$f":"Sheet2!A:A","v":0}]
[null,null,null,null,null,null,null,null,null,null,null,{"$f":"Sheet2!G:G","v":0},{"$f":"Sheet2!A:A","v":0}]
[null,null,null,null,null,null,null,null,null,null,null,{"$f":"Sheet2!G:G","v":0},{"$f":"Sheet2!A:A","v":0}]
[null,null,null,null,null,null,null,null,null,null,null,{"$f":"Sheet2!G:G","v":0},{"$f":"Sheet2!A:A","v":0}]
[null,null,null,null,null,null,null,null,null,null,null,{"$f":"Sheet2!G:G","v":0},{"$f":"Sheet2!A:A","v":0}]
[null,null,null,null,null,null,null,null,null,null,null,{"$f":"Sheet2!G:G","v":0},{"$f":"Sheet2!A:A","v":0}]
[null,null,null,null,null,null,null,null,null,null,null,{"$f":"Sheet2!G:G","v":0},{"$f":"Sheet2!A:A","v":0}]
[null,null,null,null,null,null,null,null,null,null,null,{"$f":"Sheet2!G:G","v":0},{"$f":"Sheet2!A:A","v":0}]
[null,null,null,null,null,null,null,null,null,null,null,{"$f":"Sheet2!G:G","v":0},{"$f":"Sheet2!A:A","v":0}]
[null,null,null,null,null,null,null,null,null,null,null,{"$f":"Sheet2!G:G","v":0},{"$f":"Sheet2!A:A","v":0}]
[null,null,null,null,null,null,null,null,null,null,null,{"$f":"Sheet2!G:G","v":0},{"$f":"Sheet2!A:A","v":0}]
[null,null,null,null,null,null,null,null,null,null,null,{"$f":"Sheet2!G:G","v":0},{"$f":"Sheet2!A:A","v":0}]
[null,null,null,null,null,null,null,null,null,null,null,{"$f":"Sheet2!G:G","v":0},{"$f":"Sheet2!A:A","v":0}]
[null,null,null,null,null,null,null,null,null,null,null,{"$f":"Sheet2!G:G","v":0},{"$f":"Sheet2!A:A","v":0}]
[null,null,null,null,null,null,null,null,null,null,null,{"$f":"Sheet2!G:G","v":0},{"$f":"Sheet2!A:A","v":0}]
[null,null,null,null,null,null,null,null,null,null,null,{"$f":"Sheet2!G:G","v":0},{"$f":"Sheet2!A:A","v":0}]
[null,null,null,null,null,null,null,null,null,null,null,{"$f":"Sheet2!G:G","v":0},{"$f":"Sheet2!A:A","v":0}]
[null,null,null,null,null,null,null,null,null,null,null,{"$f":"Sheet2!G:G","v":0},{"$f":"Sheet2!A:A","v":0}]
[null,null,null,null,null,null,null,null,null,null,null,{"$f":"Sheet2!G:G","v":0},{"$f":"Sheet2!A:A","v":0}]
[null,null,null,null,null,null,null,null,null,null,null,{"$f":"Sheet2!G:G","v":0},{"$f":"Sheet2!A:A","v":0}]
[null,null,null,null,null,null,null,null,null,null,null,{"$f":"Sheet2!G:G","v":0},{"$f":"Sheet2!A:A","v":0}]
[null,null,null,null,null,null,null,null,null,null,null,{"$f":"Sheet2!G:G","v":0},{"$f":"Sheet2!A:A","v":0}]
[null,null,null,null,null,null,null,null,null,null,null,{"$f":"Sheet2!G:G","v":0},{"$f":"Sheet2!A:A","v":0}]
[null,null,null,null,null,null,null,null,null,null,null,{"$f":"Sheet2!G:G","v":0},{"$f":"Sheet2!A:A","v":0}]
[null,null,null,null,null,null,null,null,null,null,null,{"$f":"Sheet2!G:G","v":0},{"$f":"Sheet2!A:A","v":0}]
[null,null,null,null,null,null,null,null,null,null,null,{"$f":"Sheet2!G:G","v":0},{"$f":"Sheet2!A:A","v":0}]
[null,null,null,null,null,null,null,null,null,null,null,{"$f":"Sheet2!G:G","v":0},{"$f":"Sheet2!A:A","v":0}]
[null,null,null,null,null,null,null,null,null,null,null,{"$f":"Sheet2!G:G","v":0},{"$f":"Sheet2!A:A","v":0}]
[null,null,null,null,null,null,null,null,null,null,null,{"$f":"Sheet2!G:G","v":0},{"$f":"Sheet2!A:A","v":0}]
[null,null,null,null,null,null,null,null,null,null,null,{"$f":"Sheet2!G:G","v":0},{"$f":"Sheet2!A:A","v":0}]
[null,null,null,null,null,null,null,null,null,null,null,{"$f":"Sheet2!G:G","v":0},{"$f":"Sheet2!A:A","v":0}]
[null,null,null,null,null,null,null,null,null,null,null,{"$f":"Sheet2!G:G","v":0},{"$f":"Sheet2!A:A","v":0}]
[null,null,null,null,null,null,null,null,null,null,null,{"$f":"Sheet2!G:G","v":0},{"$f":"Sheet2!A:A","v":0}]
[null,null,null,null,null,null,null,null,null,null,null,{"$f":"Sheet2!G:G","v":0},{"$f":"Sheet2!A:A","v":0}]
[null,null,null,null,null,null,null,null,null,null,null,{"$f":"Sheet2!G:G","v":0},{"$f":"Sheet2!A:A","v":0}]
[null,null,null,null,null,null,null,null,null,null,null,{"$f":"Sheet2!G:G","v":0},{"$f":"Sheet2!A:A","v":0}]
[null,null,null,null,null,null,null,null,null,null,null,{"$f":"Sheet2!G:G","v":0},{"$f":"Sheet2!A:A","v":0}]
[null,null,null,null,null,null,null,null,null,null,null,{"$f":"Sheet2!G:G","v":0},{"$f":"Sheet2!A:A","v":0}]
[null,null,null,null,null,null,null,null,null,null,null,{"$f":"Sheet2!G:G","v":0},{"$f":"Sheet2!A:A","v":0}]
[null,null,null,null,null,null,null,null,null,null,null,{"$f":"Sheet2!G:G","v":0},{"$f":"Sheet2!A:A","v":0}]
[null,null,null,null,null,null,null,null,null,null,null,{"$f":"Sheet2!G:G","v":0},{"$f":"Sheet2!A:A","v":0}]
[null,null,null,null,null,null,null,null,null,null,null,{"$f":"Sheet2!G:G","v":0},{"$f":"Sheet2!A:A","v":0}]
[null,null,null,null,null,null,null,null,null,null,null,{"$f":"Sheet2!G:G","v":0},{"$f":"Sheet2!A:A","v":0}]
[null,null,null,null,null,null,null,null,null,null,null,{"$f":"Sheet2!G:G","v":0},{"$f":"Sheet2!A:A","v":0}]
[null,null,null,null,null,null,null,null,null,null,null,{"$f":"Sheet2!G:G","v":0},{"$f":"Sheet2!A:A","v":0}]
[null,null,null,null,null,null,null,null,null,null,null,{"$f":"Sheet2!G:G","v":0},{"$f":"Sheet2!A:A","v":0}]
[null,null,null,null,null,null,null,null,null,null,null,{"$f":"Sheet2!G:G","v":0},{"$f":"Sheet2!A:A","v":0}]
[null,null,null,null,null,null,null,null,null,null,null,{"$f":"Sheet2!G:G","v":0},{"$f":"Sheet2!A:A","v":0}]
[null,null,null,null,null,null,null,null,null,null,null,{"$f":"Sheet2!G:G","v":0},{"$f":"Sheet2!A:A","v":0}]
[null,null,null,null,null,null,null,null,null,null,null,{"$f":"Sheet2!G:G","v":0},{"$f":"Sheet2!A:A","v":0}]
[null,null,null,null,null,null,null,null,null,null,null,{"$f":"Sheet2!G:G","v":0},{"$f":"Sheet2!A:A","v":0}]
[null,null,null,null,null,null,null,null,null,null,null,{"$f":"Sheet2!G:G","v":0},{"$f":"Sheet2!A:A","v":0}]
[null,null,null,null,null,null,null,null,null,null,null,{"$f":"Sheet2!G:G","v":0},{"$f":"Sheet2!A:A","v":0}]
[null,null,null,null,null,null,null,null,null,null,null,{"$f":"Sheet2!G:G","v":0},{"$f":"Sheet2!A:A","v":0}]
[null,null,null,null,null,null,null,null,null,null,null,{"$f":"Sheet2!G:G","v":0},{"$f":"Sheet2!A:A","v":0}]
[null,null,null,null,null,null,null,null,null,null,null,{"$f":"Sheet2!G:G","v":0},{"$f":"Sheet2!A:A","v":0}]
[null,null,null,null,null,null,null,null,null,null,null,{"$f":"Sheet2!G:G","v":0},{"$f":"Sheet2!A:A","v":0}]
[null,null,null,null,null,null,null,null,null,null,null,{"$f":"Sheet2!G:G","v":0},{"$f":"Sheet2!A:A","v":0}]
[null,null,null,null,null,null,null,null,null,null,null,{"$f":"Sheet2!G:G","v":0},{"$f":"Sheet2!A:A","v":0}]
[null,null,null,null,null,null,null,null,null,null,null,{"$f":"Sheet2!G:G","v":0},{"$f":"Sheet2!A:A","v":0}]
[null,null,null,null,null,null,null,null,null,null,null,{"$f":"Sheet2!G:G","v":0},{"$f":"Sheet2!A:A","v":0}]
[null,null,null,null,null,null,null,null,null,null,null,{"$f":"Sheet2!G:G","v":0},{"$f":"Sheet2!A:A","v":0}]
[null,null,null,null,null,null,null,null,null,null,null,{"$f":"Sheet2!G:G","v":0},{"$f":"Sheet2!A:A","v":0}]
[null,null,null,null,null,null,null,null,null,null,null,{"$f":"Sheet2!G:G","v":0},{"$f":"Sheet2!A:A","v":0}]
[null,null,null,null,null,null,null,null,null,null,null,{"$f":"Sheet2!G:G","v":0},{"$f":"Sheet2!A:A","v":0}]
[null,null,null,null,null,null,null,null,null,null,null,{"$f":"Sheet2!G:G","v":0},{"$f":"Sheet2!A:A","v":0}]
[null,null,null,null,null,null,null,null,null,null,null,{"$f":"Sheet2!G:G","v":0},{"$f":"Sheet2!A:A","v":0}]
[null,null,null,null,null,null,null,null,null,null,null,{"$f":"Sheet2!G:G","v":0},{"$f":"Sheet2!A:A","v":0}]
[null,null,null,null,null,null,null,null,null,null,null,{"$f":"Sheet2!G:G","v":0},{"$f":"Sheet2!A:A","v":0}]
[null,null,null,null,null,null,null,null,null,null,null,{"$f":"Sheet2!G:G","v":0},{"$f":"Sheet2!A:A","v":0}]
[null,null,null,null,null,null,null,null,null,null,null,{"$f":"Sheet2!G:G","v":0},{"$f":"Sheet2!A:A","v":0}]
[null,null,null,null,null,null,null,null,null,null,null,{"$f":"Sheet2!G:G","v":0},{"$f":"Sheet2!A:A","v":0}]
[null,null,null,null,null,null,null,null,null,null,null,{"$f":"Sheet2!G:G","v":0},{"$f":"Sheet2!A:A","v":0}]
[null,null,null,null,null,null,null,null,null,null,null,{"$f":"Sheet2!G:G","v":0},{"$f":"Sheet2!A:A","v":0}]
[null,null,null,null,null,null,null,null,null,null,null,{"$f":"Sheet2!G:G","v":0},{"$f":"Sheet2!A:A","v":0}]
[null,null,null,null,null,null,null,null,null,null,null,{"$f":"Sheet2!G:G","v":0},{"$f":"Sheet2!A:A","v":0}]
[null,null,null,null,null,null,null,null,null,null,null,{"$f":"Sheet2!G:G","v":0},{"$f":"Sheet2!A:A","v":0}]
[null,null,null,null,null,null,null,null,null,null,null,{"$f":"Sheet2!G:G","v":0},{"$f":"Sheet2!A:A","v":0}]
[null,null,null,null,null,null,null,null,null,null,null,{"$f":"Sheet2!G:G","v":0},{"$f":"Sheet2!A:A","v":0}]
[null,null,null,null,null,null,null,null,null,null,null,{"$f":"Sheet2!G:G","v":0},{"$f":"Sheet2!A:A","v":0}]
[null,null,null,null,null,null,null,null,null,null,null,{"$f":"Sheet2!G:G","v":0},{"$f":"Sheet2!A:A","v":0}]
[null,null,null,null,null,null,null,null,null,null,null,{"$f":"Sheet2!G:G","v":0},{"$f":"Sheet2!A:A","v":0}]
[null,null,null,null,null,null,null,null,null,null,null,{"$f":"Sheet2!G:G","v":0},{"$f":"Sheet2!A:A","v":0}]
[null,null,null,null,null,null,null,null,null,null,null,{"$f":"Sheet2!G:G","v":0},{"$f":"Sheet2!A:A","v":0}]
[null,null,null,null,null,null,null,null,null,null,null,{"$f":"Sheet2!G:G","v":0},{"$f":"Sheet2!A:A","v":0}]
[null,null,null,null,null,null,null,null,null,null,null,{"$f":"Sheet2!G:G","v":0},{"$f":"Sheet2!A:A","v":0}]
[null,null,null,null,null,null,null,null,null,null,null,{"$f":"Sheet2!G:G","v":0},{"$f":"Sheet2!A:A","v":0}]
[null,null,null,null,null,null,null,null,null,null,null,{"$f":"Sheet2!G:G","v":0},{"$f":"Sheet2!A:A","v":0}]
[null,null,null,null,null,null,null,null,null,null,null,{"$f":"Sheet2!G:G","v":0},{"$f":"Sheet2!A:A","v":0}]
[null,null,null,null,null,null,null,null,null,null,null,{"$f":"Sheet2!G:G","v":0},{"$f":"Sheet2!A:A","v":0}]
[null,null,null,null,null,null,null,null,null,null,null,{"$f":"Sheet2!G:G","v":0},{"$f":"Sheet2!A:A","v":0}]
[null,null,null,null,null,null,null,null,null,null,null,{"$f":"Sheet2!G:G","v":0},{"$f":"Sheet2!A:A","v":0}]
[null,null,null,null,null,null,null,null,null,null,null,{"$f":"Sheet2!G:G","v":0},{"$f":"Sheet2!A:A","v":0}]
[null,null,null,null,null,null,null,null,null,null,null,{"$f":"Sheet2!G:G","v":0},{"$f":"Sheet2!A:A","v":0}]
[null,null,null,null,null,null,null,null,null,null,null,{"$f":"Sheet2!G:G","v":0},{"$f":"Sheet2!A:A","v":0}]
[null,null,null,null,null,null,null,null,null,null,null,{"$f":"Sheet2!G:G","v":0},{"$f":"Sheet2!A:A","v":0}]
[null,null,null,null,null,null,null,null,null,null,null,{"$f":"Sheet2!G:G","v":0},{"$f":"Sheet2!A:A","v":0}]
[null,null,null,null,null,null,null,null,null,null,null,{"$f":"Sheet2!G:G","v":0},{"$f":"Sheet2!A:A","v":0}]
[null,null,null,null,null,null,null,null,null,null,null,{"$f":"Sheet2!G:G","v":0},{"$f":"Sheet2!A:A","v":0}]
[null,null,null,null,null,null,null,null,null,null,null,{"$f":"Sheet2!G:G","v":0},{"$f":"Sheet2!A:A","v":0}]
[null,null,null,null,null,null,null,null,null,null,null,{"$f":"Sheet2!G:G","v":0},{"$f":"Sheet2!A:A","v":0}]
[null,null,null,null,null,null,null,null,null,null,null,{"$f":"Sheet2!G:G","v":0},{"$f":"Sheet2!A:A","v":0}]
[null,null,null,null,null,null,null,null,null,null,null,{"$f":"Sheet2!G:G","v":0},{"$f":"Sheet2!A:A","v":0}]
[null,null,null,null,null,null,null,null,null,null,null,{"$f":"Sheet2!G:G","v":0},{"$f":"Sheet2!A:A","v":0}]
[null,null,null,null,null,null,null,null,null,null,null,{"$f":"Sheet2!G:G","v":0},{"$f":"Sheet2!A:A","v":0}]
[null,null,null,null,null,null,null,null,null,null,null,{"$f":"Sheet2!G:G","v":0},{"$f":"Sheet2!A:A","v":0}]
[null,null,null,null,null,null,null,null,null,null,null,{"$f":"Sheet2!G:G","v":0},{"$f":"Sheet2!A:A","v":0}]
[null,null,null,null,null,null,null,null,null,null,null,{"$f":"Sheet2!G:G","v":0},{"$f":"Sheet2!A:A","v":0}]
[null,null,null,null,null,null,null,null,null,null,null,{"$f":"Sheet2!G:G","v":0},{"$f":"Sheet2!A:A","v":0}]
[null,null,null,null,null,null,null,null,null,null,null,{"$f":"Sheet2!G:G","v":0},{"$f":"Sheet2!A:A","v":0}]
[null,null,null,null,null,null,null,null,null,null,null,{"$f":"Sheet2!G:G","v":0},{"$f":"Sheet2!A:A","v":0}]
[null,null,null,null,null,null,null,null,null,null,null,{"$f":"Sheet2!G:G","v":0},{"$f":"Sheet2!A:A","v":0}]
[null,null,null,null,null,null,null,null,null,null,null,{"$f":"Sheet2!G:G","v":0},{"$f":"Sheet2!A:A","v":0}]
[null,null,null,null,null,null,null,null,null,null,null,{"$f":"Sheet2!G:G","v":0},{"$f":"Sheet2!A:A","v":0}]
[null,null,null,null,null,null,null,null,null,null,null,{"$f":"Sheet2!G:G","v":0},{"$f":"Sheet2!A:A","v":0}]
[null,null,null,null,null,null,null,null,null,null,null,{"$f":"Sheet2!G:G","v":0},{"$f":"Sheet2!A:A","v":0}]
[null,null,null,null,null,null,null,null,null,null,null,{"$f":"Sheet2!G:G","v":0},{"$f":"Sheet2!A:A","v":0}]
[null,null,null,null,null,null,null,null,null,null,null,{"$f":"Sheet2!G:G","v":0},{"$f":"Sheet2!A:A","v":0}]
[null,null,null,null,null,null,null,null,null,null,null,{"$f":"Sheet2!G:G","v":0},{"$f":"Sheet2!A:A","v":0}]
[null,null,null,null,null,null,null,null,null,null,null,{"$f":"Sheet2!G:G","v":0},{"$f":"Sheet2!A:A","v":0}]
[null,null,null,null,null,null,null,null,null,null,null,{"$f":"Sheet2!G:G","v":0},{"$f":"Sheet2!A:A","v":0}]
[null,null,null,null,null,null,null,null,null,null,null,{"$f":"Sheet2!G:G","v":0},{"$f":"Sheet2!A:A","v":0}]
[null,null,null,null,null,null,null,null,null,null,null,{"$f":"Sheet2!G:G","v":0},{"$f":"Sheet2!A:A","v":0}]
[null,null,null,null,null,null,null,null,null,null,null,{"$f":"Sheet2!G:G","v":0},{"$f":"Sheet2!A:A","v":0}]
[null,null,null,null,null,null,null,null,null,null,null,{"$f":"Sheet2!G:G","v":0},{"$f":"Sheet2!A:A","v":0}]
[null,null,null,null,null,null,null,null,null,null,null,{"$f":"Sheet2!G:G","v":0},{"$f":"Sheet2!A:A","v":0}]
[null,null,null,null,null,null,null,null,null,null,null,{"$f":"Sheet2!G:G","v":0},{"$f":"Sheet2!A:A","v":0}]
[null,null,null,null,null,null,null,null,null,null,null,{"$f":"Sheet2!G:G","v":0},{"$f":"Sheet2!A:A","v":0}]
[null,null,null,null,null,null,null,null,null,null,null,{"$f":"Sheet2!G:G","v":0},{"$f":"Sheet2!A:A","v":0}]
[null,null,null,null,null,null,null,null,null,null,null,{"$f":"Sheet2!G:G","v":0},{"$f":"Sheet2!A:A","v":0}]
[null,null,null,null,null,null,null,null,null,null,null,{"$f":"Sheet2!G:G","v":0},{"$f":"Sheet2!A:A","v":0}]
[null,null,null,null,null,null,null,null,null,null,null,{"$f":"Sheet2!G:G","v":0},{"$f":"Sheet2!A:A","v":0}]
[null,null,null,null,null,null,null,null,null,null,null,{"$f":"Sheet2!G:G","v":0},{"$f":"Sheet2!A:A","v":0}]
[null,null,null,null,null,null,null,null,null,null,null,{"$f":"Sheet2!G:G","v":0},{"$f":"Sheet2!A:A","v":0}]
[null,null,null,null,null,null,null,null,null,null,null,{"$f":"Sheet2!G:G","v":0},{"$f":"Sheet2!A:A","v":0}]
[null,null,null,null,null,null,null,null,null,null,null,{"$f":"Sheet2!G:G","v":0},{"$f":"Sheet2!A:A","v":0}]
[null,null,null,null,null,null,null,null,null,null,null,{"$f":"Sheet2!G:G","v":0},{"$f":"Sheet2!A:A","v":0}]
[null,null,null,null,null,null,null,null,null,null,null,{"$f":"Sheet2!G:G","v":0},{"$f":"Sheet2!A:A","v":0}]
[null,null,null,null,null,null,null,null,null,null,null,{"$f":"Sheet2!G:G","v":0},{"$f":"Sheet2!A:A","v":0}]
[null,null,null,null,null,null,null,null,null,null,null,{"$f":"Sheet2!G:G","v":0},{"$f":"Sheet2!A:A","v":0}]
[null,null,null,null,null,null,null,null,null,null,null,{"$f":"Sheet2!G:G","v":0},{"$f":"Sheet2!A:A","v":0}]
[null,null,null,null,null,null,null,null,null,null,null,{"$f":"Sheet2!G:G","v":0},{"$f":"Sheet2!A:A","v":0}]
[null,null,null,null,null,null,null,null,null,null,null,{"$f":"Sheet2!G:G","v":0},{"$f":"Sheet2!A:A","v":0}]
[null,null,null,null,null,null,null,null,null,null,null,{"$f":"Sheet2!G:G","v":0},{"$f":"Sheet2!A:A","v":0}]
[null,null,null,null,null,null,null,null,null,null,null,{"$f":"Sheet2!G:G","v":0},{"$f":"Sheet2!A:A","v":0}]
[null,null,null,null,null,null,null,null,null,null,null,{"$f":"Sheet2!G:G","v":0},{"$f":"Sheet2!A:A","v":0}]
[null,null,null,null,null,null,null,null,null,null,null,{"$f":"Sheet2!G:G","v":0},{"$f":"Sheet2!A:A","v":0}]
[null,null,null,null,null,null,null,null,null,null,null,{"$f":"Sheet2!G:G","v":0},{"$f":"Sheet2!A:A","v":0}]
[null,null,null,null,null,null,null,null,null,null,null,{"$f":"Sheet2!G:G","v":0},{"$f":"Sheet2!A:A","v":0}]
[null,null,null,null,null,null,null,null,null,null,null,{"$f":"Sheet2!G:G","v":0},{"$f":"Sheet2!A:A","v":0}]
[null,null,null,null,null,null,null,null,null,null,null,{"$f":"Sheet2!G:G","v":0},{"$f":"Sheet2!A:A","v":0}]
[null,null,null,null,null,null,null,null,null,null,null,{"$f":"Sheet2!G:G","v":0},{"$f":"Sheet2!A:A","v":0}]
[null,null,null,null,null,null,null,null,null,null,null,{"$f":"Sheet2!G:G","v":0},{"$f":"Sheet2!A:A","v":0}]
[null,null,null,null,null,null,null,null,null,null,null,{"$f":"Sheet2!G:G","v":0},{"$f":"Sheet2!A:A","v":0}]
[null,null,null,null,null,null,null,null,null,null,null,{"$f":"Sheet2!G:G","v":0},{"$f":"Sheet2!A:A","v":0}]
[null,null,null,null,null,null,null,null,null,null,null,{"$f":"Sheet2!G:G","v":0},{"$f":"Sheet2!A:A","v":0}]
[null,null,null,null,null,null,null,null,null,null,null,{"$f":"Sheet2!G:G","v":0},{"$f":"Sheet2!A:A","v":0}]
[null,null,null,null,null,null,null,null,null,null,null,{"$f":"Sheet2!G:G","v":0},{"$f":"Sheet2!A:A","v":0}]
[null,null,null,null,null,null,null,null,null,null,null,{"$f":"Sheet2!G:G","v":0},{"$f":"Sheet2!A:A","v":0}]
[null,null,null,null,null,null,null,null,null,null,null,{"$f":"Sheet2!G:G","v":0},{"$f":"Sheet2!A:A","v":0}]
[null,null,null,null,null,null,null,null,null,null,null,{"$f":"Sheet2!G:G","v":0},{"$f":"Sheet2!A:A","v":0}]
[null,null,null,null,null,null,null,null,null,null,null,{"$f":"Sheet2!G:G","v":0},{"$f":"Sheet2!A:A","v":0}]
[null,null,null,null,null,null,null,null,null,null,null,{"$f":"Sheet2!G:G","v":0},{"$f":"Sheet2!A:A","v":0}]
[null,null,null,null,null,null,null,null,null,null,null,{"$f":"Sheet2!G:G","v":0},{"$f":"Sheet2!A:A","v":0}]
[null,null,null,null,null,null,null,null,null,null,null,{"$f":"Sheet2!G:G","v":0},{"$f":"Sheet2!A:A","v":0}]
[null,null,null,null,null,null,null,null,null,null,null,{"$f":"Sheet2!G:G","v":0},{"$f":"Sheet2!A:A","v":0}]
[null,null,null,null,null,null,null,null,null,null,null,{"$f":"Sheet2!G:G","v":0},{"$f":"Sheet2!A:A","v":0}]
[null,null,null,null,null,null,null,null,null,null,null,{"$f":"Sheet2!G:G","v":0},{"$f":"Sheet2!A:A","v":0}]
[null,null,null,null,null,null,null,null,null,null,null,{"$f":"Sheet2!G:G","v":0},{"$f":"Sheet2!A:A","v":0}]
[null,null,null,null,null,null,null,null,null,null,null,{"$f":"Sheet2!G:G","v":0},{"$f":"Sheet2!A:A","v":0}]
[null,null,null,null,null,null,null,null,null,null,null,{"$f":"Sheet2!G:G","v":0},{"$f":"Sheet2!A:A","v":0}]
[null,null,null,null,null,null,null,null,null,null,null,{"$f":"Sheet2!G:G","v":0},{"$f":"Sheet2!A:A","v":0}]
[null,null,null,null,null,null,null,null,null,null,null,{"$f":"Sheet2!G:G","v":0},{"$f":"Sheet2!A:A","v":0}]
[null,null,null,null,null,null,null,null,null,null,null,{"$f":"Sheet2!G:G","v":0},{"$f":"Sheet2!A:A","v":0}]
[null,null,null,null,null,null,null,null,null,null,null,{"$f":"Sheet2!G:G","v":0},{"$f":"Sheet2!A:A","v":0}]
[null,null,null,null,null,null,null,null,null,null,null,{"$f":"Sheet2!G:G","v":0},{"$f":"Sheet2!A:A","v":0}]
[null,null,null,null,null,null,null,null,null,null,null,{"$f":"Sheet2!G:G","v":0},{"$f":"Sheet2!A:A","v":0}]
[null,null,null,null,null,null,null,null,null,null,null,{"$f":"Sheet2!G:G","v":0},{"$f":"Sheet2!A:A","v":0}]
[null,null,null,null,null,null,null,null,null,null,null,{"$f":"Sheet2!G:G","v":0},{"$f":"Sheet2!A:A","v":0}]
[null,null,null,null,null,null,null,null,null,null,null,{"$f":"Sheet2!G:G","v":0},{"$f":"Sheet2!A:A","v":0}]
[null,null,null,null,null,null,null,null,null,null,null,{"$f":"Sheet2!G:G","v":0},{"$f":"Sheet2!A:A","v":0}]
[null,null,null,null,null,null,null,null,null,null,null,{"$f":"Sheet2!G:G","v":0},{"$f":"Sheet2!A:A","v":0}]
[null,null,null,null,null,null,null,null,null,null,null,{"$f":"Sheet2!G:G","v":0},{"$f":"Sheet2!A:A","v":0}]
[null,null,null,null,null,null,null,null,null,null,null,{"$f":"Sheet2!G:G","v":0},{"$f":"Sheet2!A:A","v":0}]
[null,null,null,null,null,null,null,null,null,null,null,{"$f":"Sheet2!G:G","v":0},{"$f":"Sheet2!A:A","v":0}]
[null,null,null,null,null,null,null,null,null,null,null,{"$f":"Sheet2!G:G","v":0},{"$f":"Sheet2!A:A","v":0}]
[null,null,null,null,null,null,null,null,null,null,null,{"$f":"Sheet2!G:G","v":0},{"$f":"Sheet2!A:A","v":0}]
[null,null,null,null,null,null,null,null,null,null,null,{"$f":"Sheet2!G:G","v":0},{"$f":"Sheet2!A:A","v":0}]
[null,null,null,null,null,null,null,null,null,null,null,{"$f":"Sheet2!G:G","v":0},{"$f":"Sheet2!A:A","v":0}]
[null,null,null,null,null,null,null,null,null,null,null,{"$f":"Sheet2!G:G","v":0},{"$f":"Sheet2!A:A","v":0}]
[null,null,null,null,null,null,null,null,null,null,null,{"$f":"Sheet2!G:G","v":0},{"$f":"Sheet2!A:A","v":0}]
[null,null,null,null,null,null,null,null,null,null,null,{"$f":"Sheet2!G:G","v":0},{"$f":"Sheet2!A:A","v":0}]
[null,null,null,null,null,null,null,null,null,null,null,{"$f":"Sheet2!G:G","v":0},{"$f":"Sheet2!A:A","v":0}]
[null,null,null,null,null,null,null,null,null,null,null,{"$f":"Sheet2!G:G","v":0},{"$f":"Sheet2!A:A","v":0}]
[null,null,null,null,null,null,null,null,null,null,null,{"$f":"Sheet2!G:G","v":0},{"$f":"Sheet2!A:A","v":0}]
[null,null,null,null,null,null,null,null,null,null,null,{"$f":"Sheet2!G:G","v":0},{"$f":"Sheet2!A:A","v":0}]
[null,null,null,null,null,null,null,null,null,null,null,{"$f":"Sheet2!G:G","v":0},{"$f":"Sheet2!A:A","v":0}]
[null,null,null,null,null,null,null,null,null,null,null,{"$f":"Sheet2!G:G","v":0},{"$f":"Sheet2!A:A","v":0}]
[null,null,null,null,null,null,null,null,null,null,null,{"$f":"Sheet2!G:G","v":0},{"$f":"Sheet2!A:A","v":0}]
[null,null,null,null,null,null,null,null,null,null,null,{"$f":"Sheet2!G:G","v":0},{"$f":"Sheet2!A:A","v":0}]
[null,null,null,null,null,null,null,null,null,null,null,{"$f":"Sheet2!G:G","v":0},{"$f":"Sheet2!A:A","v":0}]

{"sheet":"Sheet2","index":2,"n_rows":321,"n_cols":11,"rows_kept":321,"cut":false,"hidden":false,"merged":[]}
[null,null,"Denver","Mountain",null,null,"626 On Rood",70082,"626 On Rood",null,"Grand Junction"]
[1000,"La Famiglia Chardonnay 12/750m",{"$f":"VLOOKUP(A2,'[1]October 2011'!$A:$T,20,FALSE)","v":75.48},{"$f":"VLOOKUP(A2,'[1]Mountain Pricing'!$A:$T,20,FALSE)","v":88.32},{"$f":"VLOOKUP(A2,'[1]October 2011'!$A:$C,3,FALSE)","v":12},null,"7 Hermits Brewing Co",70208,"717 Sylvan Lake Rd",null,"Eagle"]
[1001,"La Famiglia Cabernet 12/750ml",{"$f":"VLOOKUP(A3,'[1]October 2011'!$A:$T,20,FALSE)","v":75.48},{"$f":"VLOOKUP(A3,'[1]Mountain Pricing'!$A:$T,20,FALSE)","v":88.32},{"$f":"VLOOKUP(A3,'[1]October 2011'!$A:$C,3,FALSE)","v":12},null,"All Pro Liquors",70000,"2914 F Rd. Unit 104","","Grand Junction"]
[1002,"La Famiglia Merlot 12/750ml",{"$f":"VLOOKUP(A4,'[1]October 2011'!$A:$T,20,FALSE)","v":75.48},{"$f":"VLOOKUP(A4,'[1]Mountain Pricing'!$A:$T,20,FALSE)","v":88.32},{"$f":"VLOOKUP(A4,'[1]October 2011'!$A:$C,3,FALSE)","v":12},null,"Allegria",70153,"335 Main St.",null,"Carbondale"]
[1003,"La Famiglia Pinot Grigio 12/75",{"$f":"VLOOKUP(A5,'[1]October 2011'!$A:$T,20,FALSE)","v":75.48},{"$f":"VLOOKUP(A5,'[1]Mountain Pricing'!$A:$T,20,FALSE)","v":88.32},{"$f":"VLOOKUP(A5,'[1]October 2011'!$A:$C,3,FALSE)","v":12},null,"Alpine Wine & Spirit",70117,"2109 N Frontage Rd",null,"Vail"]
[1004,"La Famiglia Petite Sirah 12/75",{"$f":"VLOOKUP(A6,'[1]October 2011'!$A:$T,20,FALSE)","v":75.48},{"$f":"VLOOKUP(A6,'[1]Mountain Pricing'!$A:$T,20,FALSE)","v":88.32},{"$f":"VLOOKUP(A6,'[1]October 2011'!$A:$C,3,FALSE)","v":12},null,"Andy's Liquor Mart",70001,"922 N First St.","","Grand Junction"]
[1005,"La Famiglia Pinot Noir 12/750m",{"$f":"VLOOKUP(A7,'[1]October 2011'!$A:$T,20,FALSE)","v":92.28},{"$f":"VLOOKUP(A7,'[1]Mountain Pricing'!$A:$T,20,FALSE)","v":104.4},{"$f":"VLOOKUP(A7,'[1]October 2011'!$A:$C,3,FALSE)","v":12},null,"Antlers Discount Liquors",70205,"842 N Summit Blvd",null,"Frisco"]
[1007,"La Famiglia Rosso 12/750ml",{"$f":"VLOOKUP(A8,'[1]October 2011'!$A:$T,20,FALSE)","v":75.48},{"$f":"VLOOKUP(A8,'[1]Mountain Pricing'!$A:$T,20,FALSE)","v":88.32},{"$f":"VLOOKUP(A8,'[1]October 2011'!$A:$C,3,FALSE)","v":12},null,"Apres",70200,"130 S. Main St.",null,"Breckenridge"]
[1008,"La Famiglia Rosso Dolce 12/750ml",{"$f":"VLOOKUP(A9,'[1]October 2011'!$A:$T,20,FALSE)","v":75.48},{"$f":"VLOOKUP(A9,'[1]Mountain Pricing'!$A:$T,20,FALSE)","v":88.32},{"$f":"VLOOKUP(A9,'[1]October 2011'!$A:$C,3,FALSE)","v":12},null,"Arapahoe Basin Ski Area",70135,"28194 US Hwy 6",null,"Keystone"]
[1009,"La Famiglia Sauvignon Blanc 12/750ml",{"$f":"VLOOKUP(A10,'[1]October 2011'!$A:$T,20,FALSE)","v":75.48},{"$f":"VLOOKUP(A10,'[1]Mountain Pricing'!$A:$T,20,FALSE)","v":88.32},{"$f":"VLOOKUP(A10,'[1]October 2011'!$A:$C,3,FALSE)","v":12},null,"Arctic Liquors","70101","2093 Curve Plaza C-104",null,"Steamboat Springs"]
[1010,"La Famiglia Zinfandel 12/750ml",{"$f":"VLOOKUP(A11,'[1]October 2011'!$A:$T,20,FALSE)","v":75.48},{"$f":"VLOOKUP(A11,'[1]Mountain Pricing'!$A:$T,20,FALSE)","v":88.32},{"$f":"VLOOKUP(A11,'[1]October 2011'!$A:$C,3,FALSE)","v":12},null,"Aspen Wine and Spirits",70002,"300 Puppy Smith Rd.","","Aspen"]
[1020,"Black Diamond Merlot 12/750 ml",{"$f":"VLOOKUP(A12,'[1]October 2011'!$A:$T,20,FALSE)","v":159.47999999999999},{"$f":"VLOOKUP(A12,'[1]Mountain Pricing'!$A:$T,20,FALSE)","v":160.68},{"$f":"VLOOKUP(A12,'[1]October 2011'!$A:$C,3,FALSE)","v":12},null,"Aspen Wine Guild",70121,"319 Hopkins Ave.",null,"Aspen"]
[1021,"Black Diamond DC Cab 12/750ml",{"$f":"VLOOKUP(A13,'[1]October 2011'!$A:$T,20,FALSE)","v":159.47999999999999},{"$f":"VLOOKUP(A13,'[1]Mountain Pricing'!$A:$T,20,FALSE)","v":160.68},{"$f":"VLOOKUP(A13,'[1]October 2011'!$A:$C,3,FALSE)","v":12},null,"Avon Liquors",70003,"PO Box 1487","100 W Beaver Creek Blvd.","Avon"]
[1022,"Black Diamond Pinot Noir 12/750ml",{"$f":"VLOOKUP(A14,'[1]October 2011'!$A:$T,20,FALSE)","v":159.47999999999999},{"$f":"VLOOKUP(A14,'[1]Mountain Pricing'!$A:$T,20,FALSE)","v":160.68},{"$f":"VLOOKUP(A14,'[1]October 2011'!$A:$C,3,FALSE)","v":12},null,"Barley, The",70241,"635 Lincoln Ave.",null,"Steamboat Springs"]
[1023,"Black Diamond Zinfandel 12/750ml",{"$f":"VLOOKUP(A15,'[1]October 2011'!$A:$T,20,FALSE)","v":159.47999999999999},{"$f":"VLOOKUP(A15,'[1]Mountain Pricing'!$A:$T,20,FALSE)","v":160.68},{"$f":"VLOOKUP(A15,'[1]October 2011'!$A:$C,3,FALSE)","v":12},null,"Bart & Yeti's",70090,"551 E. Lionshead Cr.",null,"Vail"]
[1024,"Black Diamond Chardonnay 12/750 ml",{"$f":"VLOOKUP(A16,'[1]October 2011'!$A:$T,20,FALSE)","v":142.68},{"$f":"VLOOKUP(A16,'[1]Mountain Pricing'!$A:$T,20,FALSE)","v":144.72},{"$f":"VLOOKUP(A16,'[1]October 2011'!$A:$C,3,FALSE)","v":12},null,"Beaver Liquors",70004,"PO Box 488","110 E Bever Creek Blvd.","Avon"]
[1109,"Guadagni Chianti 12/750ml",{"$f":"VLOOKUP(A17,'[1]October 2011'!$A:$T,20,FALSE)","v":100.68},{"$f":"VLOOKUP(A17,'[1]Mountain Pricing'!$A:$T,20,FALSE)","v":104.4},{"$f":"VLOOKUP(A17,'[1]October 2011'!$A:$C,3,FALSE)","v":12},null,"Big House Burgers",70188,"2093 Curve Plaza C-101",null,"Steamboat Springs"]
[1209,"Guadagni Chianti Straw 09 12/7",{"$f":"VLOOKUP(A18,'[1]October 2011'!$A:$T,20,FALSE)","v":117.48},{"$f":"VLOOKUP(A18,'[1]Mountain Pricing'!$A:$T,20,FALSE)","v":120.48},{"$f":"VLOOKUP(A18,'[1]October 2011'!$A:$C,3,FALSE)","v":12},null,"Bistro CV",70108,"345 Lincoln Ave",null,"Steamboat Springs"]
[1220,"Guadagni Chianti Classico 12/750 ml",{"$f":"VLOOKUP(A19,'[1]October 2011'!$A:$T,20,FALSE)","v":125.88},{"$f":"VLOOKUP(A19,'[1]Mountain Pricing'!$A:$T,20,FALSE)","v":128.56},{"$f":"VLOOKUP(A19,'[1]October 2011'!$A:$C,3,FALSE)","v":12},null,"Black Diamond Bistro",70119,"120 Offerson Rd.",null,"Avon"]
[1406,"Guadagni Arielle 12/750ml",{"$f":"VLOOKUP(A20,'[1]October 2011'!$A:$T,20,FALSE)","v":134.28},{"$f":"VLOOKUP(A20,'[1]Mountain Pricing'!$A:$T,20,FALSE)","v":136.56},{"$f":"VLOOKUP(A20,'[1]October 2011'!$A:$C,3,FALSE)","v":12},null,"Blu's",70005,"193 E Gore Creek Dr.","","Vail"]
[1450,"Guadagni Rose 12/750ml",{"$f":"VLOOKUP(A21,'[1]October 2011'!$A:$T,20,FALSE)","v":109.08},{"$f":"VLOOKUP(A21,'[1]Mountain Pricing'!$A:$T,20,FALSE)","v":112.44},{"$f":"VLOOKUP(A21,'[1]October 2011'!$A:$C,3,FALSE)","v":12},null,"Bookcliff Country Club",70075,"2730 G Road",null,"Grand Junction"]
[1510,"Guadagni Orvieto 12/750ml",{"$f":"VLOOKUP(A22,'[1]October 2011'!$A:$T,20,FALSE)","v":92.28},{"$f":"VLOOKUP(A22,'[1]Mountain Pricing'!$A:$T,20,FALSE)","v":96.36},{"$f":"VLOOKUP(A22,'[1]October 2011'!$A:$C,3,FALSE)","v":12},null,"Bookcliff Liquors",70068,"3026 Patterson Rd.",null,"Grand Junction"]
[1515,"Guadagni Lago di Corbara",{"$f":"VLOOKUP(A23,'[1]October 2011'!$A:$T,20,FALSE)","v":159.47999999999999},{"$f":"VLOOKUP(A23,'[1]Mountain Pricing'!$A:$T,20,FALSE)","v":160.72},{"$f":"VLOOKUP(A23,'[1]October 2011'!$A:$C,3,FALSE)","v":12},null,"Bottle Pass Liquors",70231,"35 county Rd 804 Unit 1A",null,"Fraser"]
[1550,"Palazzo Sangiovese",{"$f":"VLOOKUP(A24,'[1]October 2011'!$A:$T,20,FALSE)","v":109.2},{"$f":"VLOOKUP(A24,'[1]Mountain Pricing'!$A:$T,20,FALSE)","v":112.44},{"$f":"VLOOKUP(A24,'[1]October 2011'!$A:$C,3,FALSE)","v":12},null,"Bottle Shop Liquor",70214,"40 Cove Blvd Unit C1",null,"Dillon"]
[1551,"Palazzo Pinot Grigio",{"$f":"VLOOKUP(A25,'[1]October 2011'!$A:$T,20,FALSE)","v":109.2},{"$f":"VLOOKUP(A25,'[1]Mountain Pricing'!$A:$T,20,FALSE)","v":112.44},{"$f":"VLOOKUP(A25,'[1]October 2011'!$A:$C,3,FALSE)","v":12},null,"Breckenridge Ale House",70006,"2531 N 12th St.","","Grand Junction"]
[2006,"Torre di Ciardo 12/750ml",{"$f":"VLOOKUP(A26,'[1]October 2011'!$A:$T,20,FALSE)","v":159.47999999999999},{"$f":"VLOOKUP(A26,'[1]Mountain Pricing'!$A:$T,20,FALSE)","v":160.72},{"$f":"VLOOKUP(A26,'[1]October 2011'!$A:$C,3,FALSE)","v":12},null,"Broadway Liquors",70055,"PO Box 391","403 Broadway","Eagle"]
[2058,"Torrigiani Chianti 12/750ml",{"$f":"VLOOKUP(A27,'[1]October 2011'!$A:$T,20,FALSE)","v":125.88},{"$f":"VLOOKUP(A27,'[1]Mountain Pricing'!$A:$T,20,FALSE)","v":144.6},{"$f":"VLOOKUP(A27,'[1]October 2011'!$A:$C,3,FALSE)","v":12},null,"C&H Spirit Solutions",70074,"1 Willow Bridge Rd",null,"Vail"]
[3008,"Guidaccio  6/750ml",{"$f":"VLOOKUP(A28,'[1]October 2011'!$A:$T,20,FALSE)","v":159.6},{"$f":"VLOOKUP(A28,'[1]Mountain Pricing'!$A:$T,20,FALSE)","v":168.84},{"$f":"VLOOKUP(A28,'[1]October 2011'!$A:$C,3,FALSE)","v":6},null,"Carelli's Pizzeria",70130,"465 Yampa Ave.",null,"Craig"]
[3081,"Magnifico Lavender Honey 12/750 ml",243.6,243.6,{"$f":"VLOOKUP(A29,'[1]October 2011'!$A:$C,3,FALSE)","v":12},null,"Carl's Pharmacy",70133,"306 E. Main",null,"Aspen"]
[3082,"Magnifico Ginger Peche 12/750 ml",243.6,243.6,{"$f":"VLOOKUP(A30,'[1]October 2011'!$A:$C,3,FALSE)","v":12},null,"Carl's Tavern",70163,"700 Yampa St. #103",null,"Steamboat Springs"]
[3083,"Magnifico Grapefruit Blanc 12/750ml",243.6,243.6,{"$f":"VLOOKUP(A31,'[1]October 2011'!$A:$C,3,FALSE)","v":12},null,"Cellar Liquors",70007,"PO Box 771745","730 Lincoln Ave.","Steamboat Springs"]
[3091,"Magnifico Lavender Honey 12/375 ml",159.6,159.6,{"$f":"VLOOKUP(A32,'[1]October 2011'!$A:$C,3,FALSE)","v":12},null,"Center Town Liquors",70008,"136 S Mesa","","Fruita"]
[3092,"Magnifico Ginger Peche 12/375 ml",159.6,159.6,{"$f":"VLOOKUP(A33,'[1]October 2011'!$A:$C,3,FALSE)","v":12},null,"Central Park Liquors",70009,"PO Box 880609","1835 Central Park Place","Steamboat Springs"]
[3093,"Magnifico Grapefruit Blanc 12/375ml",159.6,159.6,{"$f":"VLOOKUP(A34,'[1]October 2011'!$A:$C,3,FALSE)","v":12},null,"Cheeky Monk",70106,"130 Parry Peak Way",null,"Winter Park"]
[4001,"Duemani 6/750ml",{"$f":"VLOOKUP(A35,'[1]October 2011'!$A:$T,20,FALSE)","v":251.94},{"$f":"VLOOKUP(A35,'[1]Mountain Pricing'!$A:$T,20,FALSE)","v":302.27999999999997},{"$f":"VLOOKUP(A35,'[1]October 2011'!$A:$C,3,FALSE)","v":6},null,"Choice Liquor",70059,"680 Wapiti Ct.",null,"Rifle"]
[4002,"Suisassi 6/750ml",{"$f":"VLOOKUP(A36,'[1]October 2011'!$A:$T,20,FALSE)","v":335.94},{"$f":"VLOOKUP(A36,'[1]Mountain Pricing'!$A:$T,20,FALSE)","v":503.94},{"$f":"VLOOKUP(A36,'[1]October 2011'!$A:$C,3,FALSE)","v":6},null,"Circle R Bar",70218,"202 S Sharp St.",null,"Oak Creek"]
[4003,"Altrovino 12/750ml",{"$f":"VLOOKUP(A37,'[1]October 2011'!$A:$T,20,FALSE)","v":285.52999999999997},{"$f":"VLOOKUP(A37,'[1]Mountain Pricing'!$A:$T,20,FALSE)","v":302.27999999999997},{"$f":"VLOOKUP(A37,'[1]October 2011'!$A:$C,3,FALSE)","v":12},null,"Citrolas Italian Grill & Bar",70175,"624 Rae Lynn St",null,"Grand Junction"]
[4025,"Tenuta S.Anna Prosecco 12/750ml",{"$f":"VLOOKUP(A38,'[1]October 2011'!$A:$T,20,FALSE)","v":142.68},{"$f":"VLOOKUP(A38,'[1]Mountain Pricing'!$A:$T,20,FALSE)","v":144.68},{"$f":"VLOOKUP(A38,'[1]October 2011'!$A:$C,3,FALSE)","v":12},null,"City Liquors",70144,"400 N. Park",null,"Breckenridge"]
[4051,"Moshin Merlot 12/750ml",{"$f":"VLOOKUP(A39,'[1]October 2011'!$A:$T,20,FALSE)","v":268.68},{"$f":"VLOOKUP(A39,'[1]Mountain Pricing'!$A:$T,20,FALSE)","v":268.68},{"$f":"VLOOKUP(A39,'[1]October 2011'!$A:$C,3,FALSE)","v":12},null,"Clifton Liquors",70010,"PO Box 98","3255 F Road","Clifton"]
[4052,"Moshin Zinfandel 12/750ml",{"$f":"VLOOKUP(A40,'[1]October 2011'!$A:$T,20,FALSE)","v":293.88},{"$f":"VLOOKUP(A40,'[1]Mountain Pricing'!$A:$T,20,FALSE)","v":293.88},{"$f":"VLOOKUP(A40,'[1]October 2011'!$A:$C,3,FALSE)","v":12},null,"College Liquors",70078,"1133 Patterson #9",null,"Grand Junction"]
[4053,"Moshin Petite Sirah 12/750ml",{"$f":"VLOOKUP(A41,'[1]October 2011'!$A:$T,20,FALSE)","v":344.28},{"$f":"VLOOKUP(A41,'[1]Mountain Pricing'!$A:$T,20,FALSE)","v":344.28},{"$f":"VLOOKUP(A41,'[1]October 2011'!$A:$C,3,FALSE)","v":12},null,"Cooper Wine & Spirits",70201,"732 Cooper Ave.",null,"Glenwood Springs"]
[4055,"Moshin P Noir Molinary 12/750m",{"$f":"VLOOKUP(A42,'[1]October 2011'!$A:$T,20,FALSE)","v":260.27999999999997},{"$f":"VLOOKUP(A42,'[1]Mountain Pricing'!$A:$T,20,FALSE)","v":260.27999999999997},{"$f":"VLOOKUP(A42,'[1]October 2011'!$A:$C,3,FALSE)","v":12},null,"Cork's Fine Wines",70011,"16420 S. Townsend","","Montrose"]
[4056,"Moshin P Noir Russian Estate 12/750ml",{"$f":"VLOOKUP(A43,'[1]October 2011'!$A:$T,20,FALSE)","v":335.88},{"$f":"VLOOKUP(A43,'[1]Mountain Pricing'!$A:$T,20,FALSE)","v":335.88},{"$f":"VLOOKUP(A43,'[1]October 2011'!$A:$C,3,FALSE)","v":12},null,"Coronado Liquors",70012,"569 32 Rd #3","","Grand Junction"]
[4057,"Moshin P Noir Sonoma 12/750ml",{"$f":"VLOOKUP(A44,'[1]October 2011'!$A:$T,20,FALSE)","v":377.88},{"$f":"VLOOKUP(A44,'[1]Mountain Pricing'!$A:$T,20,FALSE)","v":377.88},{"$f":"VLOOKUP(A44,'[1]October 2011'!$A:$C,3,FALSE)","v":12},null,"Cottonwood Liquors",70013,"2513 Hwy 6 & 50","","Grand Junction"]
[4058,"Moshin Sauv Blanc 12/750ml",{"$f":"VLOOKUP(A45,'[1]October 2011'!$A:$T,20,FALSE)","v":218.28},{"$f":"VLOOKUP(A45,'[1]Mountain Pricing'!$A:$T,20,FALSE)","v":218.28},{"$f":"VLOOKUP(A45,'[1]October 2011'!$A:$C,3,FALSE)","v":12},null,"Country Club liquors",70056,"683 Horizon Dr suite 105",null,"Grand Junction"]
[4059,"Moshin Chardonnay 12/750ml",{"$f":"VLOOKUP(A46,'[1]October 2011'!$A:$T,20,FALSE)","v":285.48},{"$f":"VLOOKUP(A46,'[1]Mountain Pricing'!$A:$T,20,FALSE)","v":285.48},{"$f":"VLOOKUP(A46,'[1]October 2011'!$A:$C,3,FALSE)","v":12},null,"Coyote Café",70102,"210 The Plaza",null,"Beaver Creek"]
[4060,"Moshin Potion 12/375ml",{"$f":"VLOOKUP(A47,'[1]October 2011'!$A:$T,20,FALSE)","v":335.88},{"$f":"VLOOKUP(A47,'[1]Mountain Pricing'!$A:$T,20,FALSE)","v":335.88},{"$f":"VLOOKUP(A47,'[1]October 2011'!$A:$C,3,FALSE)","v":12},null,"Crossroads Wine & Spirit",70071,"611 24 Road",null,"Grand Junction"]
[4061,"Moshin Napa Cab 12/750ml",{"$f":"VLOOKUP(A48,'[1]October 2011'!$A:$T,20,FALSE)","v":344.28},{"$f":"VLOOKUP(A48,'[1]Mountain Pricing'!$A:$T,20,FALSE)","v":344.28},{"$f":"VLOOKUP(A48,'[1]October 2011'!$A:$C,3,FALSE)","v":12},null,"Davetos Italian Restaurant",70076,"520 Main St. ",null,"Delta"]
[4062,"Moshin Pinot Gris 12/750ml",{"$f":"VLOOKUP(A49,'[1]October 2011'!$A:$T,20,FALSE)","v":226.68},{"$f":"VLOOKUP(A49,'[1]Mountain Pricing'!$A:$T,20,FALSE)","v":226.68},{"$f":"VLOOKUP(A49,'[1]October 2011'!$A:$C,3,FALSE)","v":12},null,"Devil's Thumb Ranch",70234,"3530 County rd 83",null,"Tabernash"]
[4063,"Moshin Est. Rr Pinot Noir 12/375ml",{"$f":"VLOOKUP(A50,'[1]October 2011'!$A:$T,20,FALSE)","v":209.88},{"$f":"VLOOKUP(A50,'[1]Mountain Pricing'!$A:$T,20,FALSE)","v":209.88},{"$f":"VLOOKUP(A50,'[1]October 2011'!$A:$C,3,FALSE)","v":12},null,"Dillon Ridge Liquors",70015,"PO Box 4551","294 US HWY 6 Unit B","Dillon"]
[4064,"Moshin RR Pinot (On Prem) 12/750",{"$f":"VLOOKUP(A51,'[1]October 2011'!$A:$T,20,FALSE)","v":200.04},{"$f":"VLOOKUP(A51,'[1]Mountain Pricing'!$A:$T,20,FALSE)","v":200.04},{"$f":"VLOOKUP(A51,'[1]October 2011'!$A:$C,3,FALSE)","v":12},null,"Dolce Vita",70016,"336 Main St #101-104","","Grand Junction"]
[4065,"Moshin Vin Gris of P.N. 12/750",{"$f":"VLOOKUP(A52,'[1]October 2011'!$A:$T,20,FALSE)","v":167.88},{"$f":"VLOOKUP(A52,'[1]Mountain Pricing'!$A:$T,20,FALSE)","v":167.88},{"$f":"VLOOKUP(A52,'[1]October 2011'!$A:$C,3,FALSE)","v":12},null,"Double Diamonds Bar",70203,"2300 Mt. Werner Cr.",null,"Steamboat Springs"]
[4090,"Fritz Charsonnay 12/750 ml",{"$f":"VLOOKUP(A53,'[1]October 2011'!$A:$T,20,FALSE)","v":226.68},{"$f":"VLOOKUP(A53,'[1]Mountain Pricing'!$A:$T,20,FALSE)","v":226.68},{"$f":"VLOOKUP(A53,'[1]October 2011'!$A:$C,3,FALSE)","v":12},null,"Eagle liiquor Mart",70251,"65 Market Dr",null,"Eagle"]
[4091,"Fritz Zinfandel 12/750 ml",{"$f":"VLOOKUP(A54,'[1]October 2011'!$A:$T,20,FALSE)","v":218.28},{"$f":"VLOOKUP(A54,'[1]Mountain Pricing'!$A:$T,20,FALSE)","v":218.28},{"$f":"VLOOKUP(A54,'[1]October 2011'!$A:$C,3,FALSE)","v":12},null,"Eagle Ranch Wine & Spirits",70017,"PO Box 5290","1143 Capital St.","Eagle"]
[4092,"Fritz Pinot Noir 12/750 ml",{"$f":"VLOOKUP(A55,'[1]October 2011'!$A:$T,20,FALSE)","v":285.48},{"$f":"VLOOKUP(A55,'[1]Mountain Pricing'!$A:$T,20,FALSE)","v":285.48},{"$f":"VLOOKUP(A55,'[1]October 2011'!$A:$C,3,FALSE)","v":12},null,"East Valley Liquors",70018,"422 32nd Rd","","Clifton"]
[4095,"Lost Canyon Pinot Noir 12/750 ml",{"$f":"VLOOKUP(A56,'[1]October 2011'!$A:$T,20,FALSE)","v":419.88},{"$f":"VLOOKUP(A56,'[1]Mountain Pricing'!$A:$T,20,FALSE)","v":419.88},{"$f":"VLOOKUP(A56,'[1]October 2011'!$A:$C,3,FALSE)","v":12},null,"Eastside Liquor",70128,"539 E Victory Wy",null,"Craig"]
[5000,"La Chertosa Winemaker 12/750",{"$f":"VLOOKUP(A57,'[1]October 2011'!$A:$T,20,FALSE)","v":587.88},{"$f":"VLOOKUP(A57,'[1]Mountain Pricing'!$A:$T,20,FALSE)","v":587.88},{"$f":"VLOOKUP(A57,'[1]October 2011'!$A:$C,3,FALSE)","v":12},null,"El Horizonte",70150,"0908 Hwy 133",null,"Carbondale"]
[5001,"Conserva Napa Cab 12/750ml",{"$f":"VLOOKUP(A58,'[1]October 2011'!$A:$T,20,FALSE)","v":503.88},{"$f":"VLOOKUP(A58,'[1]Mountain Pricing'!$A:$T,20,FALSE)","v":503.88},{"$f":"VLOOKUP(A58,'[1]October 2011'!$A:$C,3,FALSE)","v":12},null,"El Jebeverage",70019,"300 E Valley Rd.","","Carbondale"]
[5002,"La Chertosa Chardonnay12/750ml",{"$f":"VLOOKUP(A59,'[1]October 2011'!$A:$T,20,FALSE)","v":209.88},{"$f":"VLOOKUP(A59,'[1]Mountain Pricing'!$A:$T,20,FALSE)","v":209.88},{"$f":"VLOOKUP(A59,'[1]October 2011'!$A:$C,3,FALSE)","v":12},null,"Elk Camp Restaurant",70140,"001.9 E Snowmass Summer Rd.",null,"Snowmass Village"]
[5003,"La Chertosa Sangiovese 12/750",{"$f":"VLOOKUP(A60,'[1]October 2011'!$A:$T,20,FALSE)","v":302.27999999999997},{"$f":"VLOOKUP(A60,'[1]Mountain Pricing'!$A:$T,20,FALSE)","v":302.27999999999997},{"$f":"VLOOKUP(A60,'[1]October 2011'!$A:$C,3,FALSE)","v":12},null,"Elmer Suds Liquor",70167,"820 Castle Valley Blvd",null,"New Castle"]
[5004,"La Chertosa Zinfandel 12/750ml",{"$f":"VLOOKUP(A61,'[1]October 2011'!$A:$T,20,FALSE)","v":302.27999999999997},{"$f":"VLOOKUP(A61,'[1]Mountain Pricing'!$A:$T,20,FALSE)","v":302.27999999999997},{"$f":"VLOOKUP(A61,'[1]October 2011'!$A:$C,3,FALSE)","v":12},null,"Elway's",70096,"174 E. Gore Creek Dr",null,"Vail"]
[5009,"The Winemaker Napa Cab 6/1.5L",{"$f":"VLOOKUP(A62,'[1]October 2011'!$A:$T,20,FALSE)","v":587.88},{"$f":"VLOOKUP(A62,'[1]Mountain Pricing'!$A:$T,20,FALSE)","v":587.88},{"$f":"VLOOKUP(A62,'[1]October 2011'!$A:$C,3,FALSE)","v":6},null,"Ember",70125,"106 adams ave",null,"Breckenridge"]
[5040,"Geo. Rafael Cab 12/750",{"$f":"VLOOKUP(A63,'[1]October 2011'!$A:$T,20,FALSE)","v":377.88},{"$f":"VLOOKUP(A63,'[1]Mountain Pricing'!$A:$T,20,FALSE)","v":377.88},{"$f":"VLOOKUP(A63,'[1]October 2011'!$A:$C,3,FALSE)","v":12},null,"Enterprize Liquor",70066,"2923 North Ave.",null,"Grand Junction"]
[5041,"Geo. Rafael Chard 12/750",{"$f":"VLOOKUP(A64,'[1]October 2011'!$A:$T,20,FALSE)","v":251.88},{"$f":"VLOOKUP(A64,'[1]Mountain Pricing'!$A:$T,20,FALSE)","v":251.88},{"$f":"VLOOKUP(A64,'[1]October 2011'!$A:$C,3,FALSE)","v":12},null,"Enzo's",70067,"759 Horizon Dr",null,"Grand Junction"]
[5051,"Buon OPC 12/750ml",{"$f":"VLOOKUP(A65,'[1]October 2011'!$A:$T,20,FALSE)","v":335.88},{"$f":"VLOOKUP(A65,'[1]Mountain Pricing'!$A:$T,20,FALSE)","v":337.56},{"$f":"VLOOKUP(A65,'[1]October 2011'!$A:$C,3,FALSE)","v":12},null,"Enzo's Pizza Shack",70162,"3235 I-70 Business Loop",null,"Clifton"]
[5052,"Buon Rosato 12/750ml",{"$f":"VLOOKUP(A66,'[1]October 2011'!$A:$T,20,FALSE)","v":209.88},{"$f":"VLOOKUP(A66,'[1]Mountain Pricing'!$A:$T,20,FALSE)","v":216.96},{"$f":"VLOOKUP(A66,'[1]October 2011'!$A:$C,3,FALSE)","v":12},null,"Eureka Mediterranean Street Food",70226,"700 Yampa St. #101",null,"Steamboat Springs"]
[5053,"Buon Sauv Bl 12/750ml",{"$f":"VLOOKUP(A67,'[1]October 2011'!$A:$T,20,FALSE)","v":327.48},{"$f":"VLOOKUP(A67,'[1]Mountain Pricing'!$A:$T,20,FALSE)","v":329.52},{"$f":"VLOOKUP(A67,'[1]October 2011'!$A:$C,3,FALSE)","v":12},null,"Fariground Wine & Liquor",70060,"2771 B1/2 Rd.",null,"Grand Junction"]
[5054,"Buon Chard 12/750ml",{"$f":"VLOOKUP(A68,'[1]October 2011'!$A:$T,20,FALSE)","v":461.88},{"$f":"VLOOKUP(A68,'[1]Mountain Pricing'!$A:$T,20,FALSE)","v":466.2},{"$f":"VLOOKUP(A68,'[1]October 2011'!$A:$C,3,FALSE)","v":12},null,"Finbarr's",70227,"415 E. Hyman Ave unit 16",null,"Aspen"]
[5055,"Buon Dolcetto 12/750ml",{"$f":"VLOOKUP(A69,'[1]October 2011'!$A:$T,20,FALSE)","v":411.48},{"$f":"VLOOKUP(A69,'[1]Mountain Pricing'!$A:$T,20,FALSE)","v":409.92},{"$f":"VLOOKUP(A69,'[1]October 2011'!$A:$C,3,FALSE)","v":12},null,"Finbarr's Irish Pub and Kitchen",70225,"303 River Valley Ranch Dr.",null,"Carbondale"]
[5056,"Buon Syrah 12/750ml",{"$f":"VLOOKUP(A70,'[1]October 2011'!$A:$T,20,FALSE)","v":613.08000000000004},{"$f":"VLOOKUP(A70,'[1]Mountain Pricing'!$A:$T,20,FALSE)","v":618.96},{"$f":"VLOOKUP(A70,'[1]October 2011'!$A:$C,3,FALSE)","v":12},null,"Fisher's Liquor Barn",70020,"2438 F Rd.","","Grand Junction"]
[5057,"Buon Malbec 12/750ml",{"$f":"VLOOKUP(A71,'[1]October 2011'!$A:$T,20,FALSE)","v":613.08000000000004},{"$f":"VLOOKUP(A71,'[1]Mountain Pricing'!$A:$T,20,FALSE)","v":618.96},{"$f":"VLOOKUP(A71,'[1]October 2011'!$A:$C,3,FALSE)","v":12},null,"Flights & Pints Tasting Room",70193,"150 Cooley Mesa Rd",null,"Gypsum"]
[5058,"Buon Cab CL 12/750ml",{"$f":"VLOOKUP(A72,'[1]October 2011'!$A:$T,20,FALSE)","v":907.08},{"$f":"VLOOKUP(A72,'[1]Mountain Pricing'!$A:$T,20,FALSE)","v":908.4},{"$f":"VLOOKUP(A72,'[1]October 2011'!$A:$C,3,FALSE)","v":12},null,"Fly-N-Roosters",70021,"200 W Grand","","Grand Junction"]
[5059,"Buon Triad Blanc 12/750ml",{"$f":"VLOOKUP(A73,'[1]October 2011'!$A:$T,20,FALSE)","v":209.88},{"$f":"VLOOKUP(A73,'[1]Mountain Pricing'!$A:$T,20,FALSE)","v":257.16000000000003},{"$f":"VLOOKUP(A73,'[1]October 2011'!$A:$C,3,FALSE)","v":12},null,"Four Dogs Wine & Spirits",70147,"350 Reed St.",null,"Basalt"]
[5070,"Blue Mountain Cherry Cider 1/6 BBL",{"$f":"VLOOKUP(A74,'[1]October 2011'!$A:$T,20,FALSE)","v":117},{"$f":"VLOOKUP(A74,'[1]Mountain Pricing'!$A:$T,20,FALSE)","v":117},{"$f":"VLOOKUP(A74,'[1]October 2011'!$A:$C,3,FALSE)","v":1},null,"Four Seasons Vail",70212,"One Vail Road",null,"Vail"]
[5071,"Blue Mountain Eden R Cider 1/6 BBL",{"$f":"VLOOKUP(A75,'[1]October 2011'!$A:$T,20,FALSE)","v":83},{"$f":"VLOOKUP(A75,'[1]Mountain Pricing'!$A:$T,20,FALSE)","v":83},{"$f":"VLOOKUP(A75,'[1]October 2011'!$A:$C,3,FALSE)","v":1},null,"Frisco Liquors",70063,"PO Box 100","416 Main St. Unit 5","Frisco"]
[5072,"Blue Mountain Dry Creek Cider 1/6 BBL",{"$f":"VLOOKUP(A76,'[1]October 2011'!$A:$T,20,FALSE)","v":83},{"$f":"VLOOKUP(A76,'[1]Mountain Pricing'!$A:$T,20,FALSE)","v":83},{"$f":"VLOOKUP(A76,'[1]October 2011'!$A:$C,3,FALSE)","v":1},null,"Frisco Wine Merchant",70094,"401 Main st Unit D",null,"Frisco"]
[5076,"Blue Mountain Cranberry Cider 12/22 nr",{"$f":"VLOOKUP(A77,'[1]October 2011'!$A:$T,20,FALSE)","v":75.48},{"$f":"VLOOKUP(A77,'[1]Mountain Pricing'!$A:$T,20,FALSE)","v":75.48},{"$f":"VLOOKUP(A77,'[1]October 2011'!$A:$C,3,FALSE)","v":12},null,"Fruita Liquor Mart",70061,"423 E. Hwy 6 & 50",null,"Fruita"]
[5077,"Blue Mountain Dry Creek Cider 12/22 nr",{"$f":"VLOOKUP(A78,'[1]October 2011'!$A:$T,20,FALSE)","v":75.48},{"$f":"VLOOKUP(A78,'[1]Mountain Pricing'!$A:$T,20,FALSE)","v":75.48},{"$f":"VLOOKUP(A78,'[1]October 2011'!$A:$C,3,FALSE)","v":12},null,"Fun Junction Liquors",70152,"510 28 3/4 rd",null,"Grand Junction"]
[5078,"Blue Mountain Eden R Cider 12/22 nr",{"$f":"VLOOKUP(A79,'[1]October 2011'!$A:$T,20,FALSE)","v":75.48},{"$f":"VLOOKUP(A79,'[1]Mountain Pricing'!$A:$T,20,FALSE)","v":75.48},{"$f":"VLOOKUP(A79,'[1]October 2011'!$A:$C,3,FALSE)","v":12},null,"Geno's",70062,"23 Mel-Rey Rd",null,"Glenwood Springs"]
[5079,"Blue Mountain Cherry Cider 12/22 nr",{"$f":"VLOOKUP(A80,'[1]October 2011'!$A:$T,20,FALSE)","v":75.48},{"$f":"VLOOKUP(A80,'[1]Mountain Pricing'!$A:$T,20,FALSE)","v":75.48},{"$f":"VLOOKUP(A80,'[1]October 2011'!$A:$C,3,FALSE)","v":12},null,"Glenwood Canyon Brew Pub",70023,"PO Box 2214","402 7th St.","Glenwood Springs"]
[5080,"Chances R Red 12/750 ml",{"$f":"VLOOKUP(A81,'[1]October 2011'!$A:$T,20,FALSE)","v":151.08000000000001},{"$f":"VLOOKUP(A81,'[1]Mountain Pricing'!$A:$T,20,FALSE)","v":151.08000000000001},{"$f":"VLOOKUP(A81,'[1]October 2011'!$A:$C,3,FALSE)","v":12},null,"Grand Avenue Liquors",70024,"1512 Grand Ave.","","Glenwood Springs"]
[5081,"Watermill Tempranillo 12/750 ml",{"$f":"VLOOKUP(A82,'[1]October 2011'!$A:$T,20,FALSE)","v":285.48},{"$f":"VLOOKUP(A82,'[1]Mountain Pricing'!$A:$T,20,FALSE)","v":285.48},{"$f":"VLOOKUP(A82,'[1]October 2011'!$A:$C,3,FALSE)","v":12},null,"Grappa",70025,"100 E. Meadow Dr.","","Vail"]
[5082,"Watermill Cab Franc 12/750ml",{"$f":"VLOOKUP(A83,'[1]October 2011'!$A:$T,20,FALSE)","v":285.48},{"$f":"VLOOKUP(A83,'[1]Mountain Pricing'!$A:$T,20,FALSE)","v":285.48},{"$f":"VLOOKUP(A83,'[1]October 2011'!$A:$C,3,FALSE)","v":12},null,"Great Western Grog Shop",70026,"710 E. Durant Ave.","","Aspen"]
[5083,"Watermill Malbec 12/750 ml",{"$f":"VLOOKUP(A84,'[1]October 2011'!$A:$T,20,FALSE)","v":310.68},{"$f":"VLOOKUP(A84,'[1]Mountain Pricing'!$A:$T,20,FALSE)","v":310.68},{"$f":"VLOOKUP(A84,'[1]October 2011'!$A:$C,3,FALSE)","v":12},null,"Greco's",70224,"311 Main St.",null,"Frisco"]
[5084,"Watermill Cab Sauv 12/750 ml",{"$f":"VLOOKUP(A85,'[1]October 2011'!$A:$T,20,FALSE)","v":235.2},{"$f":"VLOOKUP(A85,'[1]Mountain Pricing'!$A:$T,20,FALSE)","v":235.2},{"$f":"VLOOKUP(A85,'[1]October 2011'!$A:$C,3,FALSE)","v":12},null,"Grouse Montain Grill",70089,"141 Scott Hill Rd",null,"Edwards"]
[5086,"Watermill Merlot 12/750 ml",{"$f":"VLOOKUP(A86,'[1]October 2011'!$A:$T,20,FALSE)","v":235.2},{"$f":"VLOOKUP(A86,'[1]Mountain Pricing'!$A:$T,20,FALSE)","v":235.2},{"$f":"VLOOKUP(A86,'[1]October 2011'!$A:$C,3,FALSE)","v":12},null,"Gypsum Liquors",70139,"800 Hwy 6",null,"Gypsum"]
[5087,"Watermill Viognier 12/750ml",{"$f":"VLOOKUP(A87,'[1]October 2011'!$A:$T,20,FALSE)","v":159.47999999999999},{"$f":"VLOOKUP(A87,'[1]Mountain Pricing'!$A:$T,20,FALSE)","v":159.47999999999999},{"$f":"VLOOKUP(A87,'[1]October 2011'!$A:$C,3,FALSE)","v":12},null,"Hooked",70199,"122 the plaza unit23b",null,"avon"]
[5088,"Watermill LH Gewur 12/375ml",{"$f":"VLOOKUP(A88,'[1]October 2011'!$A:$T,20,FALSE)","v":159.47999999999999},{"$f":"VLOOKUP(A88,'[1]Mountain Pricing'!$A:$T,20,FALSE)","v":159.47999999999999},{"$f":"VLOOKUP(A88,'[1]October 2011'!$A:$C,3,FALSE)","v":12},null,"Hooters (Grand Jct.)",70235,"2880 north ave",null,"Grand Junction"]
[6000,"El Llano Red 12/750ml",{"$f":"VLOOKUP(A89,'[1]October 2011'!$A:$T,20,FALSE)","v":411.48},{"$f":"VLOOKUP(A89,'[1]Mountain Pricing'!$A:$T,20,FALSE)","v":411.48},{"$f":"VLOOKUP(A89,'[1]October 2011'!$A:$C,3,FALSE)","v":12},null,"Hops Culture",70221,"414 E. Hyman Ave",null,"Aspen"]
[6001,"Mi Sueno Chard Los Carneros 12/750 ml",{"$f":"VLOOKUP(A90,'[1]October 2011'!$A:$T,20,FALSE)","v":386.28},{"$f":"VLOOKUP(A90,'[1]Mountain Pricing'!$A:$T,20,FALSE)","v":386.28},{"$f":"VLOOKUP(A90,'[1]October 2011'!$A:$C,3,FALSE)","v":12},null,"Horizon Liquors",70080,"715 Horizon Dr.",null,"Grand Junction"]
[6002,"Mi Sueno Cabernet 12/750ml",{"$f":"VLOOKUP(A91,'[1]October 2011'!$A:$T,20,FALSE)","v":663.48},{"$f":"VLOOKUP(A91,'[1]Mountain Pricing'!$A:$T,20,FALSE)","v":663.48},{"$f":"VLOOKUP(A91,'[1]October 2011'!$A:$C,3,FALSE)","v":12},null,"Hotel Jerome",70228,"330 E. Main St.",null,"Aspen"]
[6003,"Mi Sueno P Noir Russian 12/750ml",{"$f":"VLOOKUP(A92,'[1]October 2011'!$A:$T,20,FALSE)","v":487.08},{"$f":"VLOOKUP(A92,'[1]Mountain Pricing'!$A:$T,20,FALSE)","v":487.08},{"$f":"VLOOKUP(A92,'[1]October 2011'!$A:$C,3,FALSE)","v":12},null,"In the Middle Liquors","70079","303 US HWY 6 & 50",null,"Fruita"]
[6005,"Mi Sueno P Noir Carneros 12/750ml",{"$f":"VLOOKUP(A93,'[1]October 2011'!$A:$T,20,FALSE)","v":386.28},{"$f":"VLOOKUP(A93,'[1]Mountain Pricing'!$A:$T,20,FALSE)","v":386.28},{"$f":"VLOOKUP(A93,'[1]October 2011'!$A:$C,3,FALSE)","v":12},null,"Italian Underground",70118,"715 Grand Ave",null,"Glenwood Springs"]
[6020,"COHO Headwaters 6/750 ml",{"$f":"VLOOKUP(A94,'[1]October 2011'!$A:$T,20,FALSE)","v":226.74},{"$f":"VLOOKUP(A94,'[1]Mountain Pricing'!$A:$T,20,FALSE)","v":226.74},{"$f":"VLOOKUP(A94,'[1]October 2011'!$A:$C,3,FALSE)","v":6},null,"Jackalope Liquors",70143,"404 Jurassic Ave",null,"Fruita"]
[6021,"COHO P Noir Stanley 6/750 ml",{"$f":"VLOOKUP(A95,'[1]October 2011'!$A:$T,20,FALSE)","v":230.94},{"$f":"VLOOKUP(A95,'[1]Mountain Pricing'!$A:$T,20,FALSE)","v":230.94},{"$f":"VLOOKUP(A95,'[1]October 2011'!$A:$C,3,FALSE)","v":6},null,"Jake's Liquor",70027,"170 Cooley Mesa Rd. Ste B","","Gypsum"]
[6023,"COHO Canernet Summit 6/750 ml",{"$f":"VLOOKUP(A96,'[1]October 2011'!$A:$T,20,FALSE)","v":298.14},{"$f":"VLOOKUP(A96,'[1]Mountain Pricing'!$A:$T,20,FALSE)","v":298.14},{"$f":"VLOOKUP(A96,'[1]October 2011'!$A:$C,3,FALSE)","v":6},null,"Jimbo's Liquors",70123,"128 Basalt center cir",null,"Basalt"]
[6024,"COHO Michel Merlot 12/750ml",{"$f":"VLOOKUP(A97,'[1]October 2011'!$A:$T,20,FALSE)","v":281.33999999999997},{"$f":"VLOOKUP(A97,'[1]Mountain Pricing'!$A:$T,20,FALSE)","v":281.33999999999997},{"$f":"VLOOKUP(A97,'[1]October 2011'!$A:$C,3,FALSE)","v":6},null,"Jimmy's Resaturant",70028,"205 S. Mill St.","","Aspen"]
[6048,"Saviah Cabernet Sauv 12/750ml",{"$f":"VLOOKUP(A98,'[1]October 2011'!$A:$T,20,FALSE)","v":251.88},{"$f":"VLOOKUP(A98,'[1]Mountain Pricing'!$A:$T,20,FALSE)","v":251.88},{"$f":"VLOOKUP(A98,'[1]October 2011'!$A:$C,3,FALSE)","v":12},null,"Joe's Liquors",70165,"1060 W. Beaver Creek Blvd",null,"Avon"]
[6049,"Saviah Syrah 12/750ml",{"$f":"VLOOKUP(A99,'[1]October 2011'!$A:$T,20,FALSE)","v":302.27999999999997},{"$f":"VLOOKUP(A99,'[1]Mountain Pricing'!$A:$T,20,FALSE)","v":302.27999999999997},{"$f":"VLOOKUP(A99,'[1]October 2011'!$A:$C,3,FALSE)","v":12},null,"Juniper",70092,"97 Main st Unit E101",null,"Edwards"]
[6051,"The Jack Red 12/750ml",{"$f":"VLOOKUP(A100,'[1]October 2011'!$A:$T,20,FALSE)","v":142.68},{"$f":"VLOOKUP(A100,'[1]Mountain Pricing'!$A:$T,20,FALSE)","v":144.6},{"$f":"VLOOKUP(A100,'[1]October 2011'!$A:$C,3,FALSE)","v":12},null,"Karma Bar and Lounge",70215,"373 Lincoln Ave #1",null,"Steamboat Springs"]
[6052,"The Jack Syrah 12/750ml",{"$f":"VLOOKUP(A101,'[1]October 2011'!$A:$T,20,FALSE)","v":142.68},{"$f":"VLOOKUP(A101,'[1]Mountain Pricing'!$A:$T,20,FALSE)","v":144.6},{"$f":"VLOOKUP(A101,'[1]October 2011'!$A:$C,3,FALSE)","v":12},null,"Kenosha Steakhouse",70161,"301 s main st",null,"Breckenridge"]
[6053,"The Jack Cabernet Sauvignon 12/750ml",{"$f":"VLOOKUP(A102,'[1]October 2011'!$A:$T,20,FALSE)","v":142.68},{"$f":"VLOOKUP(A102,'[1]Mountain Pricing'!$A:$T,20,FALSE)","v":144.6},{"$f":"VLOOKUP(A102,'[1]October 2011'!$A:$C,3,FALSE)","v":12},null,"Kokopelli Liquor",70065,"2996 D road",null,"Grand Junction"]
[6054,"The Jack Riesling 12/750ml",{"$f":"VLOOKUP(A103,'[1]October 2011'!$A:$T,20,FALSE)","v":117.48},{"$f":"VLOOKUP(A103,'[1]Mountain Pricing'!$A:$T,20,FALSE)","v":120.48},{"$f":"VLOOKUP(A103,'[1]October 2011'!$A:$C,3,FALSE)","v":12},null,"L Apogee",70210,"911 Lincoln Ave.",null,"Steamboat Springs"]
[6058,"Big Sky Cuvée, Columbia Valley 12/750ml",{"$f":"VLOOKUP(A104,'[1]October 2011'!$A:$T,20,FALSE)","v":310.68},{"$f":"VLOOKUP(A104,'[1]Mountain Pricing'!$A:$T,20,FALSE)","v":313.44},{"$f":"VLOOKUP(A104,'[1]October 2011'!$A:$C,3,FALSE)","v":12},null,"La Tour Resturant",70110,"122 E. Meadow Dr.",null,"Vail"]
[6071,"Wolf 7 12/750ml",{"$f":"VLOOKUP(A105,'[1]October 2011'!$A:$T,20,FALSE)","v":94.2},{"$f":"VLOOKUP(A105,'[1]Mountain Pricing'!$A:$T,20,FALSE)","v":94.2},{"$f":"VLOOKUP(A105,'[1]October 2011'!$A:$C,3,FALSE)","v":12},null,"Lake Dillon Discount Liquors",70185,"149 Tenderfoot",null,"Dillon"]
[6073,"Lupus 9 Wolf 12/750 ml",{"$f":"VLOOKUP(A106,'[1]October 2011'!$A:$T,20,FALSE)","v":94.2},{"$f":"VLOOKUP(A106,'[1]Mountain Pricing'!$A:$T,20,FALSE)","v":94.2},{"$f":"VLOOKUP(A106,'[1]October 2011'!$A:$C,3,FALSE)","v":12},null,"Lakeside Bowl",70204,"135 Main st",null,"Dillon"]
[6074,"Ter Dolen Kreik 24/11.2 nr",{"$f":"VLOOKUP(A107,'[1]October 2011'!$A:$T,20,FALSE)","v":79.92},{"$f":"VLOOKUP(A107,'[1]Mountain Pricing'!$A:$T,20,FALSE)","v":79.92},{"$f":"VLOOKUP(A107,'[1]October 2011'!$A:$C,3,FALSE)","v":24},null,"Larkspur Restaurant",70250,"458 Vail Valley Dr",null,"Vail"]
[6075,"Ter Dolen Kreik 20L",{"$f":"VLOOKUP(A108,'[1]October 2011'!$A:$T,20,FALSE)","v":175},{"$f":"VLOOKUP(A108,'[1]Mountain Pricing'!$A:$T,20,FALSE)","v":175},{"$f":"VLOOKUP(A108,'[1]October 2011'!$A:$C,3,FALSE)","v":1},null,"Laundry, The",70109,"127 11th St.",null,"Steamboat Springs"]
[6077,"Verzet Oud Bruin 15/375ml",{"$f":"VLOOKUP(A109,'[1]October 2011'!$A:$T,20,FALSE)","v":94.2},{"$f":"VLOOKUP(A109,'[1]Mountain Pricing'!$A:$T,20,FALSE)","v":94.2},{"$f":"VLOOKUP(A109,'[1]October 2011'!$A:$C,3,FALSE)","v":12},null,"Lionshead Liquor",70029,"641 W. Lionshead Cir.","","Vail"]
[6078,"Old Tom 12/11.2 nr",{"$f":"VLOOKUP(A110,'[1]October 2011'!$A:$T,20,FALSE)","v":47.04},{"$f":"VLOOKUP(A110,'[1]Mountain Pricing'!$A:$T,20,FALSE)","v":47.04},{"$f":"VLOOKUP(A110,'[1]October 2011'!$A:$C,3,FALSE)","v":12},null,"Liquor Shed, The",70115,"116 North Main St.",null,"Breckenridge"]
[6079,"Old Tom Chocolate 12/11.2 nr",{"$f":"VLOOKUP(A111,'[1]October 2011'!$A:$T,20,FALSE)","v":47.04},{"$f":"VLOOKUP(A111,'[1]Mountain Pricing'!$A:$T,20,FALSE)","v":47.04},{"$f":"VLOOKUP(A111,'[1]October 2011'!$A:$C,3,FALSE)","v":12},null,"Liquor Shop",70155,"600 Bertroch Ln",null,"Gypsum"]
[6080,"Old Tom Ginger 12/11.2 nr",{"$f":"VLOOKUP(A112,'[1]October 2011'!$A:$T,20,FALSE)","v":47.04},{"$f":"VLOOKUP(A112,'[1]Mountain Pricing'!$A:$T,20,FALSE)","v":47.04},{"$f":"VLOOKUP(A112,'[1]October 2011'!$A:$C,3,FALSE)","v":12},null,"Liquor Store, The",70030,"1601 Oxbow Dr.","","Montrose"]
[6081,"Trooper 8/16.9 nr",{"$f":"VLOOKUP(A113,'[1]October 2011'!$A:$T,20,FALSE)","v":39.92},{"$f":"VLOOKUP(A113,'[1]Mountain Pricing'!$A:$T,20,FALSE)","v":39.92},{"$f":"VLOOKUP(A113,'[1]October 2011'!$A:$C,3,FALSE)","v":8},null,"Little Nell",70191,"675 E Durant Ave",null,"Aspen"]
[6082,"Trooper 20L BBL",{"$f":"VLOOKUP(A114,'[1]October 2011'!$A:$T,20,FALSE)","v":130},{"$f":"VLOOKUP(A114,'[1]Mountain Pricing'!$A:$T,20,FALSE)","v":130},{"$f":"VLOOKUP(A114,'[1]October 2011'!$A:$C,3,FALSE)","v":1},null,"Loadout Liquors",70136,"1800 W. Victory Way",null,"Craig"]
[6084,"Prearis Quadrupel 20L BBL",{"$f":"VLOOKUP(A115,'[1]October 2011'!$A:$T,20,FALSE)","v":163},{"$f":"VLOOKUP(A115,'[1]Mountain Pricing'!$A:$T,20,FALSE)","v":163},{"$f":"VLOOKUP(A115,'[1]October 2011'!$A:$C,3,FALSE)","v":1},null,"Local Liquors",70141,"358 Blue Pkwy",null,"Silverthorne"]
[6085,"Prearis Quadrupel 6/750 ml",{"$f":"VLOOKUP(A116,'[1]October 2011'!$A:$T,20,FALSE)","v":55.62},{"$f":"VLOOKUP(A116,'[1]Mountain Pricing'!$A:$T,20,FALSE)","v":55.62},{"$f":"VLOOKUP(A116,'[1]October 2011'!$A:$C,3,FALSE)","v":6},null,"Local Spirits",70031,"435 E. Main","","Aspen"]
[6086,"Prearis Quadarcinno 12/375 ml",{"$f":"VLOOKUP(A117,'[1]October 2011'!$A:$T,20,FALSE)","v":72},72,{"$f":"VLOOKUP(A117,'[1]October 2011'!$A:$C,3,FALSE)","v":12},null,"Loveland Pass Liquors",70134,"101 Mountain View",null,"Keystone"]
[6087,"Prearis Saison 6/750 ml",{"$f":"VLOOKUP(A118,'[1]October 2011'!$A:$T,20,FALSE)","v":51.36},{"$f":"VLOOKUP(A118,'[1]Mountain Pricing'!$A:$T,20,FALSE)","v":51.36},{"$f":"VLOOKUP(A118,'[1]October 2011'!$A:$C,3,FALSE)","v":6},null,"Low Country Kitchen","70219","435 Lincoln Ave.",null,"Steamboat Springs"]
[6088,"Lupulus 12/750 ml",{"$f":"VLOOKUP(A119,'[1]October 2011'!$A:$T,20,FALSE)","v":94.2},{"$f":"VLOOKUP(A119,'[1]Mountain Pricing'!$A:$T,20,FALSE)","v":94.2},{"$f":"VLOOKUP(A119,'[1]October 2011'!$A:$C,3,FALSE)","v":12},null,"Mac's Liquor",70032,"PO Box 534","106 Oak Ridge Dr.","Gypsum"]
[6089,"Kortrijk-Dustel 6/750 ml",{"$f":"VLOOKUP(A120,'[1]October 2011'!$A:$T,20,FALSE)","v":79.319999999999993},{"$f":"VLOOKUP(A120,'[1]Mountain Pricing'!$A:$T,20,FALSE)","v":79.319999999999993},{"$f":"VLOOKUP(A120,'[1]October 2011'!$A:$C,3,FALSE)","v":6},null,"Marc's Chicago Pizza","70120","1031 F So. Frontage Rd.",null,"Vail"]
[6090,"Ter Dolen Armand 6/750 ml",{"$f":"VLOOKUP(A121,'[1]October 2011'!$A:$T,20,FALSE)","v":55.68},{"$f":"VLOOKUP(A121,'[1]Mountain Pricing'!$A:$T,20,FALSE)","v":55.68},{"$f":"VLOOKUP(A121,'[1]October 2011'!$A:$C,3,FALSE)","v":6},null,"Market Wine & Spirits",70084,"210 Offerson Rd.",null,"Avon"]
[6091,"Triporteur Heaven 20L BBL",{"$f":"VLOOKUP(A122,'[1]October 2011'!$A:$T,20,FALSE)","v":156},{"$f":"VLOOKUP(A122,'[1]Mountain Pricing'!$A:$T,20,FALSE)","v":156},{"$f":"VLOOKUP(A122,'[1]October 2011'!$A:$C,3,FALSE)","v":1},null,"Mary's Main Street Spirits",70229,"389 Main St.",null,"Carbondale"]
[6091,"Triporteur Hell 20L BBL",{"$f":"VLOOKUP(A123,'[1]October 2011'!$A:$T,20,FALSE)","v":156},{"$f":"VLOOKUP(A123,'[1]Mountain Pricing'!$A:$T,20,FALSE)","v":156},{"$f":"VLOOKUP(A123,'[1]October 2011'!$A:$C,3,FALSE)","v":1},null,"Mazzola's Italian",70197,"917 Lincoln ave",null,"Steamboat Springs"]
[7000,"D Dock Amber 4/6/12 CN",29.04,30,{"$f":"VLOOKUP(A124,'[1]October 2011'!$A:$C,3,FALSE)","v":4},null,"Metropolitan, The",70113,"210 Offerson Rd.",null,"Avon"]
[7001,"D Dock Apricot 4/6/12 CN",29.04,30,{"$f":"VLOOKUP(A125,'[1]October 2011'!$A:$C,3,FALSE)","v":4},null,"Minturn Mile",70033,"PO Box 1603","341 Hwy 6 & 24","Minturn"]
[7002,"D Dock Hop Abom 4/6/12 CN",29.04,30,{"$f":"VLOOKUP(A126,'[1]October 2011'!$A:$C,3,FALSE)","v":4},null,"Moe's BBQ",70164,"616 W Lionshead cir",null,"Vail"]
[7003,"D Dock Heffew 4/6/12 CN",29.04,30,{"$f":"VLOOKUP(A127,'[1]October 2011'!$A:$C,3,FALSE)","v":4},null,"Moe's Original - Breckenridge",70194,"110 S. Ridge St.",null,"Breckenridge"]
[7004,"D Dock Bty Box 2/12 CN",29.04,30,{"$f":"VLOOKUP(A128,'[1]October 2011'!$A:$C,3,FALSE)","v":2},null,"Moe's Original BBQ",70142,"630 Grand Ave",null,"Eagle"]
[7005,"D Dock Apricot 2/12 CN",29.04,30,2,null,"Montauk Seafood Grill",70034,"549 W. Lionshead Mall","","Vail"]
[7021,"D Dock Tripel 12/22 NR",{"$f":"VLOOKUP(A130,'[1]October 2011'!$A:$T,20,FALSE)","v":66},{"$f":"VLOOKUP(A130,'[1]Mountain Pricing'!$A:$T,20,FALSE)","v":67.92},{"$f":"VLOOKUP(A130,'[1]October 2011'!$A:$C,3,FALSE)","v":12},null,"Monument Village Liquor",70064,"2148 Broadway #C1",null,"Grand Junction"]
[7022,"D Dock Van Port 12/22 NR",{"$f":"VLOOKUP(A131,'[1]October 2011'!$A:$T,20,FALSE)","v":54},{"$f":"VLOOKUP(A131,'[1]Mountain Pricing'!$A:$T,20,FALSE)","v":55.92},{"$f":"VLOOKUP(A131,'[1]October 2011'!$A:$C,3,FALSE)","v":12},null,"Moonshine Liquors",70035,"268 Hwy 92","","Delta"]
[7023,"D Dock Enterprise IPA 12/22 NR",{"$f":"VLOOKUP(A132,'[1]October 2011'!$A:$T,20,FALSE)","v":54},{"$f":"VLOOKUP(A132,'[1]Mountain Pricing'!$A:$T,20,FALSE)","v":55.92},{"$f":"VLOOKUP(A132,'[1]October 2011'!$A:$C,3,FALSE)","v":12},null,"Nancy McGees Irish Pub",70213,"359 Colorad Ave. 102-104",null,"Grand Junction"]
[7024,"D Dock Wee Heavy 12/22 NR",{"$f":"VLOOKUP(A133,'[1]October 2011'!$A:$T,20,FALSE)","v":66},{"$f":"VLOOKUP(A133,'[1]Mountain Pricing'!$A:$T,20,FALSE)","v":67.92},{"$f":"VLOOKUP(A133,'[1]October 2011'!$A:$C,3,FALSE)","v":12},null,"Northside",70168,"315 N Main St. ",null,"Breckenridge"]
[7025,"D Dock Pumpkin 12/22 NR",{"$f":"VLOOKUP(A134,'[1]October 2011'!$A:$T,20,FALSE)","v":77.040000000000006},{"$f":"VLOOKUP(A134,'[1]Mountain Pricing'!$A:$T,20,FALSE)","v":79.92},{"$f":"VLOOKUP(A134,'[1]October 2011'!$A:$C,3,FALSE)","v":12},null,"Old Chicago GJ",70149,"120 North Ave",null,"Grand Junction"]
[7026,"D Dock Bligh's Barley Wine 12/22 NR",{"$f":"VLOOKUP(A135,'[1]October 2011'!$A:$T,20,FALSE)","v":171},{"$f":"VLOOKUP(A135,'[1]Mountain Pricing'!$A:$T,20,FALSE)","v":171},{"$f":"VLOOKUP(A135,'[1]October 2011'!$A:$C,3,FALSE)","v":12},null,"Old Chicago Silverthorne",70148,"560 Silverthorne Ln.",null,"Silverthorne"]
[7027,"D Dock Colo Frdm Blnd 12/22 NR",54,55.92,12,null,"Old Forge Pizza Co. -  Frontage",70104,"2161 N Frontage Rd.",null,"Vail"]
[7028,"D Dock Imp Stout 12/22 NR",{"$f":"VLOOKUP(A137,'[1]October 2011'!$A:$T,20,FALSE)","v":111},{"$f":"VLOOKUP(A137,'[1]Mountain Pricing'!$A:$T,20,FALSE)","v":111},{"$f":"VLOOKUP(A137,'[1]October 2011'!$A:$C,3,FALSE)","v":12},null,"Old Forge Pizza Co. -  Lionshead",70103,"520 E. Lionshead Cir.",null,"Vail"]
[7030,"D Dock Amber 1/2 BBL",{"$f":"VLOOKUP(A138,'[1]October 2011'!$A:$T,20,FALSE)","v":125},{"$f":"VLOOKUP(A138,'[1]Mountain Pricing'!$A:$T,20,FALSE)","v":125},{"$f":"VLOOKUP(A138,'[1]October 2011'!$A:$C,3,FALSE)","v":1},null,"Old Forge Pizza Co. - Edwards",70105,"34295 Highway 6 # C113",null,"Edwards"]
[7031,"D Dock Apricot 1/2 BBL",{"$f":"VLOOKUP(A139,'[1]October 2011'!$A:$T,20,FALSE)","v":125},{"$f":"VLOOKUP(A139,'[1]Mountain Pricing'!$A:$T,20,FALSE)","v":125},{"$f":"VLOOKUP(A139,'[1]October 2011'!$A:$C,3,FALSE)","v":1},null,"Old Town Pub",70187,"601 Lincoln Ave",null,"Steamboat Springs"]
[7032,"D Dock Hop Abom 1/2 BBL",{"$f":"VLOOKUP(A140,'[1]October 2011'!$A:$T,20,FALSE)","v":125},{"$f":"VLOOKUP(A140,'[1]Mountain Pricing'!$A:$T,20,FALSE)","v":125},{"$f":"VLOOKUP(A140,'[1]October 2011'!$A:$C,3,FALSE)","v":1},null,"Ollie's Pub and Grub",70159,"401 S. Main St.",null,"Breckenridge"]
[7033,"D Dock Heffew 1/2 BBL",{"$f":"VLOOKUP(A141,'[1]October 2011'!$A:$T,20,FALSE)","v":125},{"$f":"VLOOKUP(A141,'[1]Mountain Pricing'!$A:$T,20,FALSE)","v":125},{"$f":"VLOOKUP(A141,'[1]October 2011'!$A:$C,3,FALSE)","v":1},null,"One Ski Hill Place",70207,"1521 Ski Hill Rd.",null,"Breckenridge"]
[7034,"D Dock Van Porter 1/2 BBL",{"$f":"VLOOKUP(A142,'[1]October 2011'!$A:$T,20,FALSE)","v":125},{"$f":"VLOOKUP(A142,'[1]Mountain Pricing'!$A:$T,20,FALSE)","v":125},{"$f":"VLOOKUP(A142,'[1]October 2011'!$A:$C,3,FALSE)","v":1},null,"Orehouse at the Pine Grove",70186,"1465 Pine Grove Rd",null,"Steamboat Springs"]
[7035,"D Dock USS IPA 1/2 BBL",{"$f":"VLOOKUP(A143,'[1]October 2011'!$A:$T,20,FALSE)","v":125},{"$f":"VLOOKUP(A143,'[1]Mountain Pricing'!$A:$T,20,FALSE)","v":125},{"$f":"VLOOKUP(A143,'[1]October 2011'!$A:$C,3,FALSE)","v":1},null,"Ouray Liquors",70173,"738 Main St.",null,"Ouray"]
[7036,"D Dock Pale 1/2 BBL",{"$f":"VLOOKUP(A144,'[1]October 2011'!$A:$T,20,FALSE)","v":125},{"$f":"VLOOKUP(A144,'[1]Mountain Pricing'!$A:$T,20,FALSE)","v":125},{"$f":"VLOOKUP(A144,'[1]October 2011'!$A:$C,3,FALSE)","v":1},null,"Pahgre's",70220,"1541 Oxbow Dr Unit 1800",null,"Montrose"]
[7037,"D Dock Old Ale 1/2 BBL",{"$f":"VLOOKUP(A145,'[1]October 2011'!$A:$T,20,FALSE)","v":125},{"$f":"VLOOKUP(A145,'[1]Mountain Pricing'!$A:$T,20,FALSE)","v":125},{"$f":"VLOOKUP(A145,'[1]October 2011'!$A:$C,3,FALSE)","v":1},null,"Paonia Liquors",70036,"PO Box 652","4 Third St.","Paonia"]
[7038,"D Dock Pumpkin 1/2 BBL",{"$f":"VLOOKUP(A146,'[1]October 2011'!$A:$T,20,FALSE)","v":145},{"$f":"VLOOKUP(A146,'[1]Mountain Pricing'!$A:$T,20,FALSE)","v":145},{"$f":"VLOOKUP(A146,'[1]October 2011'!$A:$C,3,FALSE)","v":1},null,"Pastatively Inc.",70053,"PO Box 4468","94 Market St","Eagle"]
[7039,"D Dock DIPA 1/2 BBL",{"$f":"VLOOKUP(A147,'[1]October 2011'!$A:$T,20,FALSE)","v":175},{"$f":"VLOOKUP(A147,'[1]Mountain Pricing'!$A:$T,20,FALSE)","v":175},{"$f":"VLOOKUP(A147,'[1]October 2011'!$A:$C,3,FALSE)","v":1},null,"Pazzo's Pizzeria",70099,"50 Chambers Ave.",null,"Eagle"]
[7040,"D Dock Wee Heavy 1/2 BBL",{"$f":"VLOOKUP(A148,'[1]October 2011'!$A:$T,20,FALSE)","v":175},{"$f":"VLOOKUP(A148,'[1]Mountain Pricing'!$A:$T,20,FALSE)","v":175},{"$f":"VLOOKUP(A148,'[1]October 2011'!$A:$C,3,FALSE)","v":1},null,"Peachwood Liquor",70145,"309 W. 8th St. Unit 2",null,"Palasade"]
[7041,"D Dock Tripel 1/2 BBL",{"$f":"VLOOKUP(A149,'[1]October 2011'!$A:$T,20,FALSE)","v":175},{"$f":"VLOOKUP(A149,'[1]Mountain Pricing'!$A:$T,20,FALSE)","v":175},{"$f":"VLOOKUP(A149,'[1]October 2011'!$A:$C,3,FALSE)","v":1},null,"Peppinos Pizza of Carbondale",70183,"524 Main St.",null,"Carbondale"]
[7049,"D Dock Rus Imp stout 1/2 BBL",175,175,1,null,"Pete's House Of Spirits",70057,"1560 North Ave",null,"Grand Junction"]
[7050,"D Dock Amber 1/6 BBL",{"$f":"VLOOKUP(A151,'[1]October 2011'!$A:$T,20,FALSE)","v":45},{"$f":"VLOOKUP(A151,'[1]Mountain Pricing'!$A:$T,20,FALSE)","v":48},{"$f":"VLOOKUP(A151,'[1]October 2011'!$A:$C,3,FALSE)","v":1},null,"Phat Thai",70037,"0302 Escalante","","Carbondale"]
[7051,"D Dock Apricot 1/6 BBL",{"$f":"VLOOKUP(A152,'[1]October 2011'!$A:$T,20,FALSE)","v":45},{"$f":"VLOOKUP(A152,'[1]Mountain Pricing'!$A:$T,20,FALSE)","v":48},{"$f":"VLOOKUP(A152,'[1]October 2011'!$A:$C,3,FALSE)","v":1},null,"Pier 13 Liquor",70097,"41131 US Hwy 6 & 24",null,"Avon"]
[7052,"D Dock Hop Abom 1/6 BBL",{"$f":"VLOOKUP(A153,'[1]October 2011'!$A:$T,20,FALSE)","v":45},{"$f":"VLOOKUP(A153,'[1]Mountain Pricing'!$A:$T,20,FALSE)","v":48},{"$f":"VLOOKUP(A153,'[1]October 2011'!$A:$C,3,FALSE)","v":1},null,"Pizza on the Plaza",70122,"22080 hwy 6",null,"Keystone"]
[7053,"D Dock Heffew 1/6 BBL",{"$f":"VLOOKUP(A154,'[1]October 2011'!$A:$T,20,FALSE)","v":45},{"$f":"VLOOKUP(A154,'[1]Mountain Pricing'!$A:$T,20,FALSE)","v":48},{"$f":"VLOOKUP(A154,'[1]October 2011'!$A:$C,3,FALSE)","v":1},null,"Plaza Liquors",70151,"2000 Railroad ave",null,"Rifle"]
[7054,"D Dock Van Porter 1/6 BBL",{"$f":"VLOOKUP(A155,'[1]October 2011'!$A:$T,20,FALSE)","v":45},{"$f":"VLOOKUP(A155,'[1]Mountain Pricing'!$A:$T,20,FALSE)","v":48},{"$f":"VLOOKUP(A155,'[1]October 2011'!$A:$C,3,FALSE)","v":1},null,"Primavera Liquors",70127,"448 Grand Ave",null,"Eagle"]
[7055,"D Dock USS IPA 1/6 BBL",{"$f":"VLOOKUP(A156,'[1]October 2011'!$A:$T,20,FALSE)","v":45},{"$f":"VLOOKUP(A156,'[1]Mountain Pricing'!$A:$T,20,FALSE)","v":48},{"$f":"VLOOKUP(A156,'[1]October 2011'!$A:$C,3,FALSE)","v":1},null,"Rasta Pasta",70116,"411 S. Main St.",null,"Breckenridge"]
[7056,"D Dock Pale 1/6 BBL",{"$f":"VLOOKUP(A157,'[1]October 2011'!$A:$T,20,FALSE)","v":45},{"$f":"VLOOKUP(A157,'[1]Mountain Pricing'!$A:$T,20,FALSE)","v":48},{"$f":"VLOOKUP(A157,'[1]October 2011'!$A:$C,3,FALSE)","v":1},null,"Red Mountain Grill Avon",70171,"240 Chapel Place Unit B123",null,"Avon"]
[7057,"D Dock Old Ale 1/6 BBL",{"$f":"VLOOKUP(A158,'[1]October 2011'!$A:$T,20,FALSE)","v":45},{"$f":"VLOOKUP(A158,'[1]Mountain Pricing'!$A:$T,20,FALSE)","v":48},{"$f":"VLOOKUP(A158,'[1]October 2011'!$A:$C,3,FALSE)","v":1},null,"Red Mountain Wine & Spirits",70038,"45 Market St. Unit D","","Glenwood Springs"]
[7058,"D Dock Pumpkin 1/6 BBL",{"$f":"VLOOKUP(A159,'[1]October 2011'!$A:$T,20,FALSE)","v":65},{"$f":"VLOOKUP(A159,'[1]Mountain Pricing'!$A:$T,20,FALSE)","v":65},{"$f":"VLOOKUP(A159,'[1]October 2011'!$A:$C,3,FALSE)","v":1},null,"Redlands Liquor",70039,"2500 Broadway Suite AB","","Grand Junction"]
[7059,"D Dock DIPA 1/6 BBL",{"$f":"VLOOKUP(A160,'[1]October 2011'!$A:$T,20,FALSE)","v":65},{"$f":"VLOOKUP(A160,'[1]Mountain Pricing'!$A:$T,20,FALSE)","v":65},{"$f":"VLOOKUP(A160,'[1]October 2011'!$A:$C,3,FALSE)","v":1},null,"Relish",70177,"137 S. Main St.",null,"Breckenridge"]
[7060,"D Dock Wee Heavy 1/6 BBL",{"$f":"VLOOKUP(A161,'[1]October 2011'!$A:$T,20,FALSE)","v":65},{"$f":"VLOOKUP(A161,'[1]Mountain Pricing'!$A:$T,20,FALSE)","v":65},{"$f":"VLOOKUP(A161,'[1]October 2011'!$A:$C,3,FALSE)","v":1},null,"Restarurant Kelly Liken",70069,"12 Vail Rd. Ste. 10",null,"Vail"]
[7061,"D Dock Tripel 1/6 BBL",{"$f":"VLOOKUP(A162,'[1]October 2011'!$A:$T,20,FALSE)","v":65},{"$f":"VLOOKUP(A162,'[1]Mountain Pricing'!$A:$T,20,FALSE)","v":65},{"$f":"VLOOKUP(A162,'[1]October 2011'!$A:$C,3,FALSE)","v":1},null,"Rex's",70114,"3190 S Lincoln Ave.",null,"Steamboat Springs"]
[7067,"D Dock Milk Stout 1/6 BBL",45,48,1,null,"Rhino Liquors",70040,"6820 Hwy 82","","Glenwood Springs"]
[7071,"Eddyline IPA 4/6/16 CN",{"$f":"VLOOKUP(A164,'[1]October 2011'!$A:$T,20,FALSE)","v":35.520000000000003},{"$f":"VLOOKUP(A164,'[1]Mountain Pricing'!$A:$T,20,FALSE)","v":38.5},{"$f":"VLOOKUP(A164,'[1]October 2011'!$A:$C,3,FALSE)","v":4},null,"Rio Grande Mexican Restaurant",70237,"182 Lusher Ct.",null,"Frisco"]
[7073,"Eddyline Pumpkin 4/6/16 cn",35.520000000000003,38.5,4,null,"Ristorante Pantuso's",70100,"755 Horizon Dr.",null,"Grand Junction"]
[7074,"Eddyline Pale 4/6/16 CN",{"$f":"VLOOKUP(A166,'[1]October 2011'!$A:$T,20,FALSE)","v":35.520000000000003},{"$f":"VLOOKUP(A166,'[1]Mountain Pricing'!$A:$T,20,FALSE)","v":38.5},{"$f":"VLOOKUP(A166,'[1]October 2011'!$A:$C,3,FALSE)","v":4},null,"Ristorante Ti Amo",70083,"PO Box 19198","4928 Hwy 6","Avon"]
[7075,"Eddyline Java Stout 6/4/16 CN",{"$f":"VLOOKUP(A167,'[1]October 2011'!$A:$T,20,FALSE)","v":62.16},{"$f":"VLOOKUP(A167,'[1]Mountain Pricing'!$A:$T,20,FALSE)","v":62.16},{"$f":"VLOOKUP(A167,'[1]October 2011'!$A:$C,3,FALSE)","v":6},null,"Riverside Spirits",70196,"2001 Zephyr Way",null,"Winter Park"]
[7076,"Eddyline Black Lager 6/4/16 CN",{"$f":"VLOOKUP(A168,'[1]October 2011'!$A:$T,20,FALSE)","v":35.520000000000003},{"$f":"VLOOKUP(A168,'[1]Mountain Pricing'!$A:$T,20,FALSE)","v":38.5},{"$f":"VLOOKUP(A168,'[1]October 2011'!$A:$C,3,FALSE)","v":4},null,"Riverwalk Wine & Spirits",70041,"PO Box 1717","34295 Hwy 6 Bldg. 6","Edwards"]
[7091,"Eddyline IPA 1/2 BBL",{"$f":"VLOOKUP(A169,'[1]October 2011'!$A:$T,20,FALSE)","v":130},{"$f":"VLOOKUP(A169,'[1]Mountain Pricing'!$A:$T,20,FALSE)","v":130},{"$f":"VLOOKUP(A169,'[1]October 2011'!$A:$C,3,FALSE)","v":1},null,"Roaring Fork Club",70166,"100 Arbaney Ranch Rd",null,"Basalt"]
[7094,"Eddyline Pale 1/2 BBL",{"$f":"VLOOKUP(A170,'[1]October 2011'!$A:$T,20,FALSE)","v":130},{"$f":"VLOOKUP(A170,'[1]Mountain Pricing'!$A:$T,20,FALSE)","v":130},{"$f":"VLOOKUP(A170,'[1]October 2011'!$A:$C,3,FALSE)","v":1},null,"Roaring Fork Liquors",70042,"3120 C Blake Ave","","Glenwood Springs"]
[7096,"Eddyline IPA 1/6 BBL",{"$f":"VLOOKUP(A171,'[1]October 2011'!$A:$T,20,FALSE)","v":47},{"$f":"VLOOKUP(A171,'[1]Mountain Pricing'!$A:$T,20,FALSE)","v":48},1,null,"Rockin R Ranch",70111,"0091 River Run Rd.",null,"Keystone"]
[7098,"Eddyline Pale 1/6 BBL",{"$f":"VLOOKUP(A172,'[1]October 2011'!$A:$T,20,FALSE)","v":47},{"$f":"VLOOKUP(A172,'[1]Mountain Pricing'!$A:$T,20,FALSE)","v":48},{"$f":"VLOOKUP(A172,'[1]October 2011'!$A:$C,3,FALSE)","v":1},null,"Rocky Mountain Liquors",70043,"1735 Railroad Ave","","Rifle"]
[7102,"Eddyline Black Lager 1/2 BBL",{"$f":"VLOOKUP(A173,'[1]October 2011'!$A:$T,20,FALSE)","v":130},{"$f":"VLOOKUP(A173,'[1]Mountain Pricing'!$A:$T,20,FALSE)","v":130},{"$f":"VLOOKUP(A173,'[1]October 2011'!$A:$C,3,FALSE)","v":1},null,"Roosters",70044,"569 32 Rd. Unit 14","","Grand Junction"]
[7103,"Eddyline Black Lager 1/6 BBL",{"$f":"VLOOKUP(A174,'[1]October 2011'!$A:$T,20,FALSE)","v":47},{"$f":"VLOOKUP(A174,'[1]Mountain Pricing'!$A:$T,20,FALSE)","v":48},{"$f":"VLOOKUP(A174,'[1]October 2011'!$A:$C,3,FALSE)","v":1},null,"Russo's Pizza",70077,"40 Market St",null,"Glenwood Springs"]
[7204,"D Dock Rus Imp stout 1/6 BBL",125,125,1,null,"Rusted Porch",70156,"690 Marketplace Plaza",null,"Steamboat Springs"]
[7227,"D Dock Cool Lime 1/2 BBL",{"$f":"VLOOKUP(A176,'[1]October 2011'!$A:$T,20,FALSE)","v":125},{"$f":"VLOOKUP(A176,'[1]Mountain Pricing'!$A:$T,20,FALSE)","v":125},1,null,"Saketumi",70048,"PO Box 775225","1875 Ski Time Square","Steamboat Springs"]
[7230,"D Dock Milk Stout 1/2 BBL",125,125,1,null,"Samples - Gerardo Castillo","10024","4955 N Bannock St",null,"Denver"]
[7240,"D Dock Specialty 1/2 BBL",125,125,1,null,"Samples - JT Krizman",10017,"4955 N Bannock St",null,"Denver"]
[7241,"D Dock Specialty 1/6 BBL",45,48,1,null,"Samples - William Lodge",10016,"4955 N Bannock St",null,"Denver"]
[7242,"D Dock Specialty High End 1/2 BBL",175,175,1,null,"San Juan Liquors",70222,"177 Sherman St",null,"Ridgeway"]
[7243,"D Dock Specialty High End 1/6 BBL",175,175,1,null,"Schmiggity's",70217,"821 Lincoln Ave",null,"Steamboat Springs"]
[7244,"D Dock Rye Zing Saison 1/2 BBL",125,125,1,null,"Sevens Restaurant",70209,"1979 Ski Hill Rd.",null,"Breckenridge"]
[7245,"D Dock Rye Zing Saison 1/6 BBL",45,48,1,null,"Sheraton Steamboat Resort",70239,"2200 Village Inn Ct.",null,"Steamboat Springs"]
[7247,"D Dock Dbl Brown Ale 1/6 BBl",125,125,1,null,"Silt Disount Liquor",70049,"710 Main St.","","Silt"]
[7248,"D Dock Dbl Hazel Brn 1/6 BBL",125,125,1,null,"Silverthorne Liquors",70131,"1161 Blue River Pkwy",null,"Silverthorne"]
[7249,"D Dock Dbl Van Port 1/6 BBL",125,125,1,null,"Skee Vue Liquors",70124,"311 s Ridge",null,"Breckenridge"]
[7250,"D Dock Dbl Coffee Port 1/6 BBL",125,125,1,null,"Ski Haus Liquors",70085,"PO Box 770488","1450 S. lincoln Ave","Steamboat Springs"]
[7300,"D Dock Dbl Brown Ale 12/22 NR",{"$f":"VLOOKUP(A188,'[1]October 2011'!$A:$T,20,FALSE)","v":111},111,12,null,"Ski Town Liquor",70058,"2300 Mt. Werner Cr.",null,"Steamboat Springs"]
[7301,"D Dock Dbl Hazel Brn 12/22 NR",111,111,12,null,"Sky Hotel and 39 Degrees",70192,"709 E Durant Ave",null,"Aspen"]
[7302,"D Dock Dbl Van Port 12/22 NR",{"$f":"VLOOKUP(A190,'[1]October 2011'!$A:$T,20,FALSE)","v":111},111,{"$f":"VLOOKUP(A190,'[1]October 2011'!$A:$C,3,FALSE)","v":12},null,"Smoke",70236,"713 Grand Ave.",null,"Glenwood Springs"]
[7303,"D Dock Dbl Coffee Port 12/22 NR",111,111,12,null,"Smoke Modern BBQ",70195,"241 Harris St.",null,"Basalt"]
[7304,"D Dock Bligh's 1/2 BBL",225,225,{"$f":"VLOOKUP(A192,'[1]October 2011'!$A:$C,3,FALSE)","v":1},null,"Sopris Liquors & Wine",70050,"1026 Hwy 133","","Carbondale"]
[7400,"BF Brush Creek Blonde 4/6/12 cn",{"$f":"VLOOKUP(A193,'[1]October 2011'!$A:$T,20,FALSE)","v":27.6},{"$f":"VLOOKUP(A193,'[1]Mountain Pricing'!$A:$T,20,FALSE)","v":29.48},{"$f":"VLOOKUP(A193,'[1]October 2011'!$A:$C,3,FALSE)","v":4},null,"South Ridge Seafood",70190,"215 Ridge St.",null,"Breckenridge"]
[7401,"BF Demshitz Brown 4/6/12 cn",{"$f":"VLOOKUP(A194,'[1]October 2011'!$A:$T,20,FALSE)","v":27.6},{"$f":"VLOOKUP(A194,'[1]Mountain Pricing'!$A:$T,20,FALSE)","v":29.48},{"$f":"VLOOKUP(A194,'[1]October 2011'!$A:$C,3,FALSE)","v":4},null,"South Side Liquors",70107,"905 Weiss Drive",null,"Steamboat Springs"]
[7402,"BF Gyptoberfest 4/6/12 cn",{"$f":"VLOOKUP(A195,'[1]October 2011'!$A:$T,20,FALSE)","v":30.72},{"$f":"VLOOKUP(A195,'[1]Mountain Pricing'!$A:$T,20,FALSE)","v":32.4},{"$f":"VLOOKUP(A195,'[1]October 2011'!$A:$C,3,FALSE)","v":4},null,"Spike's Liquors",70138,"0971 Bighorn Rd",null,"Vail"]
[7403,"BF Kindler Pale Ale 4/6/12 cn",{"$f":"VLOOKUP(A196,'[1]October 2011'!$A:$T,20,FALSE)","v":30.72},{"$f":"VLOOKUP(A196,'[1]Mountain Pricing'!$A:$T,20,FALSE)","v":32.4},4,null,"Spirits of Newcastle",70157,"302 W. Main St",null,"New Castle"]
[7404,"BF Mistress Wheat 4/6/12 cn",{"$f":"VLOOKUP(A197,'[1]October 2011'!$A:$T,20,FALSE)","v":30.72},{"$f":"VLOOKUP(A197,'[1]Mountain Pricing'!$A:$T,20,FALSE)","v":32.4},4,null,"Steamboat Golf Club",70216,"26815 US Hwy 40",null,"Steamboat Springs"]
[7405,"BF Moe's Golden 4/6/12 cn",30.72,32.4,4,null,"Steamboat Grand",70093,"2300 Mount Werner Cr.",null,"Steamboat Springs"]
[7406,"BF Red 4/6/12 CN",{"$f":"VLOOKUP(A199,'[1]October 2011'!$A:$T,20,FALSE)","v":30.72},{"$f":"VLOOKUP(A199,'[1]Mountain Pricing'!$A:$T,20,FALSE)","v":32.4},{"$f":"VLOOKUP(A199,'[1]October 2011'!$A:$C,3,FALSE)","v":4},null,"Summit Liquors",70211,"21801 Hwy 6",null,"Keystone"]
[7407,"BF ESB 4/6/12 CN",30.72,32.4,4,null,"Sundance",70112,"16 Kearns Rd.",null,"Snowmass Village"]
[7409,"BF Firestarter IPA 4/6/12 cn",27.6,29.48,{"$f":"VLOOKUP(A201,'[1]October 2011'!$A:$C,3,FALSE)","v":4},null,"Sure Thing Burger",70198,"729 Valley Road",null,"Basalt"]
[7410,"BF Farmer Wirtz IPA 4/6/12 CN",30.72,32.4,{"$f":"VLOOKUP(A202,'[1]October 2011'!$A:$C,3,FALSE)","v":4},null,"Sweet Basil & Mountain",70172,"193 E. Gore Creed Dr",null,"Vail"]
[7427,"BF Pink I IPA 6/4/16 CN",{"$f":"VLOOKUP(A203,'[1]October 2011'!$A:$T,20,FALSE)","v":46.08},{"$f":"VLOOKUP(A203,'[1]Mountain Pricing'!$A:$T,20,FALSE)","v":48.48},{"$f":"VLOOKUP(A203,'[1]October 2011'!$A:$C,3,FALSE)","v":6},null,"Sweet Coloradough",70238,"2430 S. Glen Ave.",null,"Glenwood Springs"]
[7428,"BF Tent Pole VP 6/4/16 cn",{"$f":"VLOOKUP(A204,'[1]October 2011'!$A:$T,20,FALSE)","v":46.08},{"$f":"VLOOKUP(A204,'[1]Mountain Pricing'!$A:$T,20,FALSE)","v":48.48},6,null,"Sweet Waters Liquor",70051,"PO Box 1200","","Eagle"]
[7429,"BF Kilt Droper 6/4/16 cn",{"$f":"VLOOKUP(A205,'[1]October 2011'!$A:$T,20,FALSE)","v":46.08},{"$f":"VLOOKUP(A205,'[1]Mountain Pricing'!$A:$T,20,FALSE)","v":48.48},12,null,"Sweetwater Grill",70189,"811 Yampa St.",null,"Steamboat Springs"]
[7431,"BF Dunkel 6/4/16 CN",46.08,{"$f":"VLOOKUP(A206,'[1]Mountain Pricing'!$A:$T,20,FALSE)","v":48.48},12,null,"Tap House Sports Grill",70184,"729 Lincoln Ave",null,"Steamboat Springs"]
[7444,"BF IPL 12/22 NR",69,69,12,null,"Taqueria El Nopal #1",70132,"22826 Two Rivers Rd.",null,"Basalt"]
[7445,"BF Ras Glutart 12/22 nr",60,60,{"$f":"VLOOKUP(A208,'[1]October 2011'!$A:$C,3,FALSE)","v":12},null,"Taqueria El Nopal #2",70126,"2902 Glen ave",null,"Glenwood Springs"]
[7446,"BF Black IPA 12/22 nr",{"$f":"VLOOKUP(A209,'[1]October 2011'!$A:$T,20,FALSE)","v":69},{"$f":"VLOOKUP(A209,'[1]Mountain Pricing'!$A:$T,20,FALSE)","v":69},{"$f":"VLOOKUP(A209,'[1]October 2011'!$A:$C,3,FALSE)","v":12},null,"Teller Arms Liquor",70202,"2353 Belford Ave.",null,"Grand Junction"]
[7447,"BF Whiskey Porter 12/22 nr",{"$f":"VLOOKUP(A210,'[1]October 2011'!$A:$T,20,FALSE)","v":75},{"$f":"VLOOKUP(A210,'[1]Mountain Pricing'!$A:$T,20,FALSE)","v":75},{"$f":"VLOOKUP(A210,'[1]October 2011'!$A:$C,3,FALSE)","v":12},null,"Telluride Bottle Works",70054,"129 San Juan",null,"Telluride"]
[7448,"BF Tent Pole VP 12/22 NR",{"$f":"VLOOKUP(A211,'[1]October 2011'!$A:$T,20,FALSE)","v":51.24},{"$f":"VLOOKUP(A211,'[1]Mountain Pricing'!$A:$T,20,FALSE)","v":51.24},{"$f":"VLOOKUP(A211,'[1]October 2011'!$A:$C,3,FALSE)","v":12},null,"Terra Bistro",70072,"352 East Meadow Dr",null,"Vail"]
[7449,"BF Rye Pale 12/22 NR",{"$f":"VLOOKUP(A212,'[1]October 2011'!$A:$T,20,FALSE)","v":51.24},{"$f":"VLOOKUP(A212,'[1]Mountain Pricing'!$A:$T,20,FALSE)","v":51.24},{"$f":"VLOOKUP(A212,'[1]October 2011'!$A:$C,3,FALSE)","v":12},null,"The Pullman",70160,"330 7th St",null,"Glenwood Springs"]
[7450,"BF Brush Creek Blonde 1/2 BBL",{"$f":"VLOOKUP(A213,'[1]October 2011'!$A:$T,20,FALSE)","v":125},{"$f":"VLOOKUP(A213,'[1]Mountain Pricing'!$A:$T,20,FALSE)","v":125},{"$f":"VLOOKUP(A213,'[1]October 2011'!$A:$C,3,FALSE)","v":1},null,"Three Peaks Grill",70087,"2165 Poine Grove Rd",null,"Steamboat Springs"]
[7451,"BF Demshitz Brown 1/2 BBL",{"$f":"VLOOKUP(A214,'[1]October 2011'!$A:$T,20,FALSE)","v":125},{"$f":"VLOOKUP(A214,'[1]Mountain Pricing'!$A:$T,20,FALSE)","v":125},{"$f":"VLOOKUP(A214,'[1]October 2011'!$A:$C,3,FALSE)","v":1},null,"Ticino Italian",70088,"PO box 749","100 W Beaver Creek Blvd.","Avon"]
[7452,"BF Firestarter IPA 1/2 BBL",{"$f":"VLOOKUP(A215,'[1]October 2011'!$A:$T,20,FALSE)","v":135},{"$f":"VLOOKUP(A215,'[1]Mountain Pricing'!$A:$T,20,FALSE)","v":135},{"$f":"VLOOKUP(A215,'[1]October 2011'!$A:$C,3,FALSE)","v":1},null,"Town",70181,"348 Main St.",null,"Carbondale"]
[7453,"BF Pink-I Raspberry IPA 1/2 BBL",{"$f":"VLOOKUP(A216,'[1]October 2011'!$A:$T,20,FALSE)","v":135},{"$f":"VLOOKUP(A216,'[1]Mountain Pricing'!$A:$T,20,FALSE)","v":135},{"$f":"VLOOKUP(A216,'[1]October 2011'!$A:$C,3,FALSE)","v":1},null,"Trattoria Dionisia",70232,"809 Grand Ave. # 4",null,"Glenwood Springs"]
[7454,"BF Farmer Wirtz IPA 1/2 BBL",{"$f":"VLOOKUP(A217,'[1]October 2011'!$A:$T,20,FALSE)","v":135},{"$f":"VLOOKUP(A217,'[1]Mountain Pricing'!$A:$T,20,FALSE)","v":135},{"$f":"VLOOKUP(A217,'[1]October 2011'!$A:$C,3,FALSE)","v":1},null,"Tri R Liquors",70052,"620 E. Bridge St.","","Hotchkiss"]
[7455,"BF Tent Pole VP 1/2 BBL",{"$f":"VLOOKUP(A218,'[1]October 2011'!$A:$T,20,FALSE)","v":135},{"$f":"VLOOKUP(A218,'[1]Mountain Pricing'!$A:$T,20,FALSE)","v":135},{"$f":"VLOOKUP(A218,'[1]October 2011'!$A:$C,3,FALSE)","v":1},null,"Truffle Pig ",70170,"2250 Apres Ski Way",null,"Steamboat Springs"]
[7456,"BF Eagle ESB 1/2 BBL",{"$f":"VLOOKUP(A219,'[1]October 2011'!$A:$T,20,FALSE)","v":135},{"$f":"VLOOKUP(A219,'[1]Mountain Pricing'!$A:$T,20,FALSE)","v":135},{"$f":"VLOOKUP(A219,'[1]October 2011'!$A:$C,3,FALSE)","v":1},null,"Twist",70178,"200 S. Ridge St.",null,"Breckenridge"]
[7457,"BF Mistress Wheat 1/2 BBL",{"$f":"VLOOKUP(A220,'[1]October 2011'!$A:$T,20,FALSE)","v":135},{"$f":"VLOOKUP(A220,'[1]Mountain Pricing'!$A:$T,20,FALSE)","v":135},{"$f":"VLOOKUP(A220,'[1]October 2011'!$A:$C,3,FALSE)","v":1},null,"Uncle Sid's Bottles",70095,"2306 Glen Ave",null,"Glenwood Springs"]
[7460,"BF Whiskey Porter 1/2 BBL",{"$f":"VLOOKUP(A221,'[1]October 2011'!$A:$T,20,FALSE)","v":150},{"$f":"VLOOKUP(A221,'[1]Mountain Pricing'!$A:$T,20,FALSE)","v":150},1,null,"Vail Ale House",70158,"2161 North Frontage rd west",null,"Vail"]
[7462,"BF Red 1/2 BBL",{"$f":"VLOOKUP(A222,'[1]October 2011'!$A:$T,20,FALSE)","v":135},{"$f":"VLOOKUP(A222,'[1]Mountain Pricing'!$A:$T,20,FALSE)","v":135},{"$f":"VLOOKUP(A222,'[1]October 2011'!$A:$C,3,FALSE)","v":1},null,"Vail Ampatheater Corp",70086,null,"530 s frontage rd","Vail"]
[7464,"BF Gyptober 1/2 BBL",135,135,1,null,"Vail Cascade Resort",70129,"1300 Westhaven Dr",null,"Vail"]
[7466,"BF Glutart 1/2 BBL",145,145,{"$f":"VLOOKUP(A224,'[1]October 2011'!$A:$C,3,FALSE)","v":1},null,"Vail Fine Wines",70070,"196 Gore Creek Trail # 164",null,"Vail"]
[7474,"BF Specialty 1/2 BBL",{"$f":"VLOOKUP(A225,'[1]October 2011'!$A:$T,20,FALSE)","v":135},{"$f":"VLOOKUP(A225,'[1]Mountain Pricing'!$A:$T,20,FALSE)","v":135},{"$f":"VLOOKUP(A225,'[1]October 2011'!$A:$C,3,FALSE)","v":1},null,"Vendetta",70098,"219 Bridge St",null,"Vail"]
[7475,"BF Brush Creek Blonde 1/6 BBL",{"$f":"VLOOKUP(A226,'[1]October 2011'!$A:$T,20,FALSE)","v":54},{"$f":"VLOOKUP(A226,'[1]Mountain Pricing'!$A:$T,20,FALSE)","v":54},{"$f":"VLOOKUP(A226,'[1]October 2011'!$A:$C,3,FALSE)","v":1},null,"Village at Breckenridge Resort",70206,"605 S. Park",null,"Breckenridge"]
[7476,"BF Demshitz Brown 1/6 BBL",{"$f":"VLOOKUP(A227,'[1]October 2011'!$A:$T,20,FALSE)","v":54},{"$f":"VLOOKUP(A227,'[1]Mountain Pricing'!$A:$T,20,FALSE)","v":54},{"$f":"VLOOKUP(A227,'[1]October 2011'!$A:$C,3,FALSE)","v":1},null,"Village Liquors",70014,"PO Box 5899","Snowmass Village Mall","Snowmass Village"]
[7477,"BF Firestarter IPA 1/6 BBL",{"$f":"VLOOKUP(A228,'[1]October 2011'!$A:$T,20,FALSE)","v":62},{"$f":"VLOOKUP(A228,'[1]Mountain Pricing'!$A:$T,20,FALSE)","v":62},{"$f":"VLOOKUP(A228,'[1]October 2011'!$A:$C,3,FALSE)","v":1},null,"Village Warehouse Wine & Spirits",70073,"PO Box 8889","0101 Fawcett Rd # 130","Avon"]
[7479,"Farmer Wirtz IPA 1/6 BBL",{"$f":"VLOOKUP(A229,'[1]October 2011'!$A:$T,20,FALSE)","v":62},{"$f":"VLOOKUP(A229,'[1]Mountain Pricing'!$A:$T,20,FALSE)","v":62},{"$f":"VLOOKUP(A229,'[1]October 2011'!$A:$C,3,FALSE)","v":1},null,"Vin 48",70137,"48 E Beaver Creek Bl.",null,"Avon"]
[7480,"BF Mistress Wheat 1/6 BBL",{"$f":"VLOOKUP(A230,'[1]October 2011'!$A:$T,20,FALSE)","v":62},{"$f":"VLOOKUP(A230,'[1]Mountain Pricing'!$A:$T,20,FALSE)","v":62},{"$f":"VLOOKUP(A230,'[1]October 2011'!$A:$C,3,FALSE)","v":1},null,"West End Liquor",70223,"2432 Lincoln Ave",null,"Steamboat Springs"]
[7481,"BF Tent Pole 1/6 BBL",{"$f":"VLOOKUP(A231,'[1]October 2011'!$A:$T,20,FALSE)","v":62},{"$f":"VLOOKUP(A231,'[1]Mountain Pricing'!$A:$T,20,FALSE)","v":62},{"$f":"VLOOKUP(A231,'[1]October 2011'!$A:$C,3,FALSE)","v":1},null,"West Side Café and Market",70230,"2211 N Frontage Rd W 101",null,"Vail"]
[7482,"Ry Pale 1/6 BBL",{"$f":"VLOOKUP(A232,'[1]October 2011'!$A:$T,20,FALSE)","v":62},{"$f":"VLOOKUP(A232,'[1]Mountain Pricing'!$A:$T,20,FALSE)","v":62},{"$f":"VLOOKUP(A232,'[1]October 2011'!$A:$C,3,FALSE)","v":1},null,"West Vail Liquors",70046,"2151 N Frontage Rd.","","Vail"]
[7483,"BF Whiskey Porter  1/6 BBL",{"$f":"VLOOKUP(A233,'[1]October 2011'!$A:$T,20,FALSE)","v":85},{"$f":"VLOOKUP(A233,'[1]Mountain Pricing'!$A:$T,20,FALSE)","v":85},1,null,"Westin Riverfront Resort & Spa",70176,"330 Riverfront Ln",null,"Avon"]
[7484,"BF Red 1/6 BBL",{"$f":"VLOOKUP(A234,'[1]October 2011'!$A:$T,20,FALSE)","v":62},{"$f":"VLOOKUP(A234,'[1]Mountain Pricing'!$A:$T,20,FALSE)","v":62},1,null,"White House Tavern",70146,"302 E. Hopkins Ave",null,"Aspen"]
[7485,"BF Dunkel 1/6 BBL",{"$f":"VLOOKUP(A235,'[1]October 2011'!$A:$T,20,FALSE)","v":62},{"$f":"VLOOKUP(A235,'[1]Mountain Pricing'!$A:$T,20,FALSE)","v":62},1,null,"Wine Mine",70233,"220 s davis",null,"Telluride"]
[7487,"BF Pink IPA 1/6 BBL",62,62,1,null,"Winery Restaurant, The",70091,"642 Main St",null,"Grand Junction"]
[7489,"BF Glutart 1/6 BBL",{"$f":"VLOOKUP(A237,'[1]October 2011'!$A:$T,20,FALSE)","v":65},{"$f":"VLOOKUP(A237,'[1]Mountain Pricing'!$A:$T,20,FALSE)","v":65},1,null,"Winetime",70047,"PO Box 2049","798 Hwy 131","Carbondale"]
[7498,"BF Specialty High End 1/6 BBL",90,90,1,null,"Winter Park Wine & Spirits",70174,"78878 US Hwy 40",null,"Winter Park"]
[7499,"BF Specialty 1/6 BBL",{"$f":"VLOOKUP(A239,'[1]October 2011'!$A:$T,20,FALSE)","v":62},{"$f":"VLOOKUP(A239,'[1]Mountain Pricing'!$A:$T,20,FALSE)","v":62},{"$f":"VLOOKUP(A239,'[1]October 2011'!$A:$C,3,FALSE)","v":1},null,"WW Peppers",70045,"753 Horizon Ct.","","Grand Junction"]
[7500,"BF Man of the Cliff Pils 12/22 nr",{"$f":"VLOOKUP(A240,'[1]October 2011'!$A:$T,20,FALSE)","v":51.24},51.24,{"$f":"VLOOKUP(A240,'[1]October 2011'!$A:$C,3,FALSE)","v":12},null,"Yama",70081,"168 E. Gore Creek Trail",null,"Vail"]
[8000,"ONE ROQ Standard 12/750 ML",{"$f":"VLOOKUP(A241,'[1]October 2011'!$A:$T,20,FALSE)","v":249.12},{"$f":"VLOOKUP(A241,'[1]Mountain Pricing'!$A:$T,20,FALSE)","v":249.12},{"$f":"VLOOKUP(A241,'[1]October 2011'!$A:$C,3,FALSE)","v":12}]
[8001,"ONE ROQ Raspberry 12/750 ML",{"$f":"VLOOKUP(A242,'[1]October 2011'!$A:$T,20,FALSE)","v":249.12},{"$f":"VLOOKUP(A242,'[1]Mountain Pricing'!$A:$T,20,FALSE)","v":249.12},{"$f":"VLOOKUP(A242,'[1]October 2011'!$A:$C,3,FALSE)","v":12}]
[8008,"ONE ROQ Reserved 12/750 ML",{"$f":"VLOOKUP(A243,'[1]October 2011'!$A:$T,20,FALSE)","v":295.32},{"$f":"VLOOKUP(A243,'[1]Mountain Pricing'!$A:$T,20,FALSE)","v":295.32},{"$f":"VLOOKUP(A243,'[1]October 2011'!$A:$C,3,FALSE)","v":12}]
[8022,"Votan 12/1.0 L",{"$f":"VLOOKUP(A244,'[1]October 2011'!$A:$T,20,FALSE)","v":230.4},{"$f":"VLOOKUP(A244,'[1]Mountain Pricing'!$A:$T,20,FALSE)","v":230.4},{"$f":"VLOOKUP(A244,'[1]October 2011'!$A:$C,3,FALSE)","v":12}]
[8024,"Votan 12/750 ml",{"$f":"VLOOKUP(A245,'[1]October 2011'!$A:$T,20,FALSE)","v":199.8},{"$f":"VLOOKUP(A245,'[1]Mountain Pricing'!$A:$T,20,FALSE)","v":199.8},{"$f":"VLOOKUP(A245,'[1]October 2011'!$A:$C,3,FALSE)","v":12}]
[8025,"Votan 6/375 ml",{"$f":"VLOOKUP(A246,'[1]October 2011'!$A:$T,20,FALSE)","v":55.08},{"$f":"VLOOKUP(A246,'[1]Mountain Pricing'!$A:$T,20,FALSE)","v":55.08},{"$f":"VLOOKUP(A246,'[1]October 2011'!$A:$C,3,FALSE)","v":6}]
[8026,"Dude 6/1.75 L",{"$f":"VLOOKUP(A247,'[1]October 2011'!$A:$T,20,FALSE)","v":159},{"$f":"VLOOKUP(A247,'[1]Mountain Pricing'!$A:$T,20,FALSE)","v":159},{"$f":"VLOOKUP(A247,'[1]October 2011'!$A:$C,3,FALSE)","v":6}]
[8027,"Dude 6/1.0 L",{"$f":"VLOOKUP(A248,'[1]October 2011'!$A:$T,20,FALSE)","v":100.74},{"$f":"VLOOKUP(A248,'[1]Mountain Pricing'!$A:$T,20,FALSE)","v":100.74},{"$f":"VLOOKUP(A248,'[1]October 2011'!$A:$C,3,FALSE)","v":6}]
[8028,"Dude 6/750 ml",{"$f":"VLOOKUP(A249,'[1]October 2011'!$A:$T,20,FALSE)","v":94.98},{"$f":"VLOOKUP(A249,'[1]Mountain Pricing'!$A:$T,20,FALSE)","v":94.98},{"$f":"VLOOKUP(A249,'[1]October 2011'!$A:$C,3,FALSE)","v":6}]
[8029,"Dude 6/375 ml",{"$f":"VLOOKUP(A250,'[1]October 2011'!$A:$T,20,FALSE)","v":46.14},{"$f":"VLOOKUP(A250,'[1]Mountain Pricing'!$A:$T,20,FALSE)","v":46.14},{"$f":"VLOOKUP(A250,'[1]October 2011'!$A:$C,3,FALSE)","v":6}]
[8030,"Dude Bacon 6/1.75 L",{"$f":"VLOOKUP(A251,'[1]October 2011'!$A:$T,20,FALSE)","v":159},{"$f":"VLOOKUP(A251,'[1]Mountain Pricing'!$A:$T,20,FALSE)","v":159},{"$f":"VLOOKUP(A251,'[1]October 2011'!$A:$C,3,FALSE)","v":6}]
[8032,"Dude Bacon 6/750 ml",{"$f":"VLOOKUP(A252,'[1]October 2011'!$A:$T,20,FALSE)","v":94.98},{"$f":"VLOOKUP(A252,'[1]Mountain Pricing'!$A:$T,20,FALSE)","v":94.98},{"$f":"VLOOKUP(A252,'[1]October 2011'!$A:$C,3,FALSE)","v":6}]
[8033,"Dude Bacon 6/375 ml",{"$f":"VLOOKUP(A253,'[1]October 2011'!$A:$T,20,FALSE)","v":46.14},{"$f":"VLOOKUP(A253,'[1]Mountain Pricing'!$A:$T,20,FALSE)","v":46.14},{"$f":"VLOOKUP(A253,'[1]October 2011'!$A:$C,3,FALSE)","v":6}]
[8040,"Mystt Pom 6/750 ml",{"$f":"VLOOKUP(A254,'[1]October 2011'!$A:$T,20,FALSE)","v":94.98},{"$f":"VLOOKUP(A254,'[1]Mountain Pricing'!$A:$T,20,FALSE)","v":94.98},{"$f":"VLOOKUP(A254,'[1]October 2011'!$A:$C,3,FALSE)","v":6}]
[8041,"Mystt Mojito 6/750 ml",{"$f":"VLOOKUP(A255,'[1]October 2011'!$A:$T,20,FALSE)","v":94.98},{"$f":"VLOOKUP(A255,'[1]Mountain Pricing'!$A:$T,20,FALSE)","v":94.98},{"$f":"VLOOKUP(A255,'[1]October 2011'!$A:$C,3,FALSE)","v":6}]
[8042,"Mystt Carmel 6/750 ml",{"$f":"VLOOKUP(A256,'[1]October 2011'!$A:$T,20,FALSE)","v":94.98},{"$f":"VLOOKUP(A256,'[1]Mountain Pricing'!$A:$T,20,FALSE)","v":94.98},{"$f":"VLOOKUP(A256,'[1]October 2011'!$A:$C,3,FALSE)","v":6}]
[8043,"Mystt Rasp 6/750 ml",{"$f":"VLOOKUP(A257,'[1]October 2011'!$A:$T,20,FALSE)","v":94.98},{"$f":"VLOOKUP(A257,'[1]Mountain Pricing'!$A:$T,20,FALSE)","v":94.98},{"$f":"VLOOKUP(A257,'[1]October 2011'!$A:$C,3,FALSE)","v":6}]
[8044,"Mystt Vanilla 6/750 ml",{"$f":"VLOOKUP(A258,'[1]October 2011'!$A:$T,20,FALSE)","v":94.98},{"$f":"VLOOKUP(A258,'[1]Mountain Pricing'!$A:$T,20,FALSE)","v":94.98},{"$f":"VLOOKUP(A258,'[1]October 2011'!$A:$C,3,FALSE)","v":6}]
[8045,"Mystt Citrus 6/750 ml",{"$f":"VLOOKUP(A259,'[1]October 2011'!$A:$T,20,FALSE)","v":94.98},{"$f":"VLOOKUP(A259,'[1]Mountain Pricing'!$A:$T,20,FALSE)","v":94.98},{"$f":"VLOOKUP(A259,'[1]October 2011'!$A:$C,3,FALSE)","v":6}]
[8046,"Mystt Pom 6/375 ml",{"$f":"VLOOKUP(A260,'[1]October 2011'!$A:$T,20,FALSE)","v":46.14},{"$f":"VLOOKUP(A260,'[1]Mountain Pricing'!$A:$T,20,FALSE)","v":46.14},{"$f":"VLOOKUP(A260,'[1]October 2011'!$A:$C,3,FALSE)","v":6}]
[8047,"Mystt Carmel 6/375 ml",{"$f":"VLOOKUP(A261,'[1]October 2011'!$A:$T,20,FALSE)","v":46.14},{"$f":"VLOOKUP(A261,'[1]Mountain Pricing'!$A:$T,20,FALSE)","v":46.14},{"$f":"VLOOKUP(A261,'[1]October 2011'!$A:$C,3,FALSE)","v":6}]
[8050,"Biercee Eau De Villee 6/750ml",{"$f":"VLOOKUP(A262,'[1]October 2011'!$A:$T,20,FALSE)","v":210},{"$f":"VLOOKUP(A262,'[1]Mountain Pricing'!$A:$T,20,FALSE)","v":210},{"$f":"VLOOKUP(A262,'[1]October 2011'!$A:$C,3,FALSE)","v":6}]
[8051,"Biercee Noir d'Ivoire 6/750ml",{"$f":"VLOOKUP(A263,'[1]October 2011'!$A:$T,20,FALSE)","v":159.6},{"$f":"VLOOKUP(A263,'[1]Mountain Pricing'!$A:$T,20,FALSE)","v":159.6},{"$f":"VLOOKUP(A263,'[1]October 2011'!$A:$C,3,FALSE)","v":6}]
[8052,"Biercee Pekit de Houyeu 6/750ml",{"$f":"VLOOKUP(A264,'[1]October 2011'!$A:$T,20,FALSE)","v":138.54},{"$f":"VLOOKUP(A264,'[1]Mountain Pricing'!$A:$T,20,FALSE)","v":138.54},{"$f":"VLOOKUP(A264,'[1]October 2011'!$A:$C,3,FALSE)","v":6}]
[8053,"Biercee Griotte 6/750 ml",{"$f":"VLOOKUP(A265,'[1]October 2011'!$A:$T,20,FALSE)","v":180.6},180.6,{"$f":"VLOOKUP(A265,'[1]October 2011'!$A:$C,3,FALSE)","v":6}]
[9003,"Le Capitaine 12/750 ml",{"$f":"VLOOKUP(A266,'[1]October 2011'!$A:$T,20,FALSE)","v":142.19999999999999},{"$f":"VLOOKUP(A266,'[1]Mountain Pricing'!$A:$T,20,FALSE)","v":142.19999999999999},{"$f":"VLOOKUP(A266,'[1]October 2011'!$A:$C,3,FALSE)","v":12}]
[9020,"3 Flowers 1/2 BBL",{"$f":"VLOOKUP(A267,'[1]October 2011'!$A:$T,20,FALSE)","v":139},{"$f":"VLOOKUP(A267,'[1]Mountain Pricing'!$A:$T,20,FALSE)","v":139},{"$f":"VLOOKUP(A267,'[1]October 2011'!$A:$C,3,FALSE)","v":1}]
[9021,"Farmhouse Du Tomme 1/2 BBL",{"$f":"VLOOKUP(A268,'[1]October 2011'!$A:$T,20,FALSE)","v":139},{"$f":"VLOOKUP(A268,'[1]Mountain Pricing'!$A:$T,20,FALSE)","v":139},{"$f":"VLOOKUP(A268,'[1]October 2011'!$A:$C,3,FALSE)","v":1}]
[9022,"Chilly Water 1/2 BBL",{"$f":"VLOOKUP(A269,'[1]October 2011'!$A:$T,20,FALSE)","v":159},{"$f":"VLOOKUP(A269,'[1]Mountain Pricing'!$A:$T,20,FALSE)","v":159},{"$f":"VLOOKUP(A269,'[1]October 2011'!$A:$C,3,FALSE)","v":1}]
[9023,"Slap Yer Mammy 1/2 BBL",{"$f":"VLOOKUP(A270,'[1]October 2011'!$A:$T,20,FALSE)","v":179},{"$f":"VLOOKUP(A270,'[1]Mountain Pricing'!$A:$T,20,FALSE)","v":179},{"$f":"VLOOKUP(A270,'[1]October 2011'!$A:$C,3,FALSE)","v":1}]
[9024,"Elektrick Cukumbahh 1/2BBL",{"$f":"VLOOKUP(A271,'[1]October 2011'!$A:$T,20,FALSE)","v":149},{"$f":"VLOOKUP(A271,'[1]Mountain Pricing'!$A:$T,20,FALSE)","v":149},{"$f":"VLOOKUP(A271,'[1]October 2011'!$A:$C,3,FALSE)","v":1}]
[9028,"Flo 1/2 BBl",{"$f":"VLOOKUP(A272,'[1]October 2011'!$A:$T,20,FALSE)","v":119},{"$f":"VLOOKUP(A272,'[1]Mountain Pricing'!$A:$T,20,FALSE)","v":119},{"$f":"VLOOKUP(A272,'[1]October 2011'!$A:$C,3,FALSE)","v":1}]
[9029,"7 Day Sour 1/2 BBL",{"$f":"VLOOKUP(A273,'[1]October 2011'!$A:$T,20,FALSE)","v":159},{"$f":"VLOOKUP(A273,'[1]Mountain Pricing'!$A:$T,20,FALSE)","v":159},{"$f":"VLOOKUP(A273,'[1]October 2011'!$A:$C,3,FALSE)","v":1}]
[9030,"Saison Man 1/2 BBL",{"$f":"VLOOKUP(A274,'[1]October 2011'!$A:$T,20,FALSE)","v":129},{"$f":"VLOOKUP(A274,'[1]Mountain Pricing'!$A:$T,20,FALSE)","v":129},{"$f":"VLOOKUP(A274,'[1]October 2011'!$A:$C,3,FALSE)","v":1}]
[9031,"Sunna 1/2 BBL",{"$f":"VLOOKUP(A275,'[1]October 2011'!$A:$T,20,FALSE)","v":110},{"$f":"VLOOKUP(A275,'[1]Mountain Pricing'!$A:$T,20,FALSE)","v":110},{"$f":"VLOOKUP(A275,'[1]October 2011'!$A:$C,3,FALSE)","v":1}]
[9032,"Emma's Pumpkin 1/2 BBL",{"$f":"VLOOKUP(A276,'[1]October 2011'!$A:$T,20,FALSE)","v":159},{"$f":"VLOOKUP(A276,'[1]Mountain Pricing'!$A:$T,20,FALSE)","v":159},{"$f":"VLOOKUP(A276,'[1]October 2011'!$A:$C,3,FALSE)","v":1}]
[9034,"Houdini Hopper 1/2 BBL",{"$f":"VLOOKUP(A277,'[1]October 2011'!$A:$T,20,FALSE)","v":139},{"$f":"VLOOKUP(A277,'[1]Mountain Pricing'!$A:$T,20,FALSE)","v":139},1]
[9038,"Merle 1/2 BBL",{"$f":"VLOOKUP(A278,'[1]October 2011'!$A:$T,20,FALSE)","v":169},{"$f":"VLOOKUP(A278,'[1]Mountain Pricing'!$A:$T,20,FALSE)","v":169},1]
[9039,"Farmhouse Waloon 1/2 BBL",{"$f":"VLOOKUP(A279,'[1]October 2011'!$A:$T,20,FALSE)","v":139},{"$f":"VLOOKUP(A279,'[1]Mountain Pricing'!$A:$T,20,FALSE)","v":139},1]
[9043,"TB Blow up your TV 1/2 BBL",{"$f":"VLOOKUP(A280,'[1]October 2011'!$A:$T,20,FALSE)","v":129},{"$f":"VLOOKUP(A280,'[1]Mountain Pricing'!$A:$T,20,FALSE)","v":129},1]
[9054,"TB Super Juice 1/2 BBL",159,159,1]
[9055,"TB Layer Cake 1/2 BBL",139,139,1]
[9057,"TB Sour Threads 1/2 BBL",179,179,1]
[9058,"TB Gangsta 1/2 BBL",239,239,1]
[9060,"Guadagni Arielle 1/1.5L",34,34,1]
[9061,"Guadagni Arielle 1/3.0L",66,66,1]
[9062,"Guadagni Arielle 1/5.0L",104,104,1]
[9063,"Torre di Ciardo 1/1.5L",38,38,1]
[9064,"Torre di Ciardo 1/3.0L",74,74,1]
[9065,"Torre di Ciardo 1/5.0L",113,113,1]
[9066,"Guidaccio 1/1.5L",66,66,1]
[9067,"Guidaccio 1/3.0L",119,119,1]
[9068,"Guidaccio 1/5.0L",183,183,1]
[9100,"TB TPS Report 12/375 ml",{"$f":"VLOOKUP(A294,'[1]October 2011'!$A:$T,20,FALSE)","v":80.040000000000006},{"$f":"VLOOKUP(A294,'[1]Mountain Pricing'!$A:$T,20,FALSE)","v":80.040000000000006},{"$f":"VLOOKUP(A294,'[1]October 2011'!$A:$C,3,FALSE)","v":12}]
[9101,"TB Gangsta 12/375 ml",{"$f":"VLOOKUP(A295,'[1]October 2011'!$A:$T,20,FALSE)","v":87.96},{"$f":"VLOOKUP(A295,'[1]Mountain Pricing'!$A:$T,20,FALSE)","v":87.96},{"$f":"VLOOKUP(A295,'[1]October 2011'!$A:$C,3,FALSE)","v":12}]
[9102,"TB 7 Day Sour 12/375 ml",{"$f":"VLOOKUP(A296,'[1]October 2011'!$A:$T,20,FALSE)","v":62.04},{"$f":"VLOOKUP(A296,'[1]Mountain Pricing'!$A:$T,20,FALSE)","v":62.04},{"$f":"VLOOKUP(A296,'[1]October 2011'!$A:$C,3,FALSE)","v":12}]
[9103,"TB Blow Up Your TV 12/375 ml",{"$f":"VLOOKUP(A297,'[1]October 2011'!$A:$T,20,FALSE)","v":62.04},{"$f":"VLOOKUP(A297,'[1]Mountain Pricing'!$A:$T,20,FALSE)","v":62.04},{"$f":"VLOOKUP(A297,'[1]October 2011'!$A:$C,3,FALSE)","v":12}]
[9104,"TB Old Growth 12/375 ml",{"$f":"VLOOKUP(A298,'[1]October 2011'!$A:$T,20,FALSE)","v":105.96},{"$f":"VLOOKUP(A298,'[1]Mountain Pricing'!$A:$T,20,FALSE)","v":105.96},{"$f":"VLOOKUP(A298,'[1]October 2011'!$A:$C,3,FALSE)","v":12}]
[9105,"TB Red Swingline 12/375 ml",{"$f":"VLOOKUP(A299,'[1]October 2011'!$A:$T,20,FALSE)","v":87.96},{"$f":"VLOOKUP(A299,'[1]Mountain Pricing'!$A:$T,20,FALSE)","v":87.96},{"$f":"VLOOKUP(A299,'[1]October 2011'!$A:$C,3,FALSE)","v":12}]
[9106,"TB Mr. Saison 12/375 ml",{"$f":"VLOOKUP(A300,'[1]October 2011'!$A:$T,20,FALSE)","v":62.04},{"$f":"VLOOKUP(A300,'[1]Mountain Pricing'!$A:$T,20,FALSE)","v":62.04},12]
[9107,"TB Saison Man 12/375 ml",{"$f":"VLOOKUP(A301,'[1]October 2011'!$A:$T,20,FALSE)","v":62.04},{"$f":"VLOOKUP(A301,'[1]Mountain Pricing'!$A:$T,20,FALSE)","v":62.04},12]
[9108,"TB Le Capitaine 12/375 ml",{"$f":"VLOOKUP(A302,'[1]October 2011'!$A:$T,20,FALSE)","v":87.96},{"$f":"VLOOKUP(A302,'[1]Mountain Pricing'!$A:$T,20,FALSE)","v":87.96},12]
[9109,"TB Three Flowers 12/375 ml",62.04,62.04,12]
[9110,"TB Elektrick Cukumbahh 12/375",69.86,69.86,12]
[9111,"TB Session Swingline 12/375 ml",39.96,39.96,12]
[9112,"TB Passion Swingline 12/375 ml",95.04,95.04,12]
[9113,"TB Easy Swinger 12/375 ml",87.96,87.96,1]
[9114,"TB Swing Se Pliser 12/375 ml ",87.96,87.96,1]
[9115,"TB Double Swingline 12/375 ml",114.96,114.96,1]
[9119,"TB Merle 12/375 ml",80.040000000000006,80.040000000000006,12]
[9210,"TB Hopped Toddy",114.96,114.96,12]
[9950,"Eddyline 1/2 BBL Deposit",30,30,1]
[9951,"Eddyline 1/6 BBL Deposit",30,30,1]
[9955,"Dry Dock 1/2 BBL Deposit",30,30,1]
[9956,"Dry Dock 1/6 BBL Deposit",30,30,1]
[9960,"Trinity 1/2 bbl Deposit",30,30,1]
[9962,"Trinity Tap Handle",15,15,1]
[9965,"Blue Mtn 1/6 BBL Deposit",30,30,1]
[9970,"Bonfire 1/2 BBL Deposit",30,30,1]
[9971,"Bonfire 1/6 BBL Deposit",30,30,1]
[9995,"Key Keg Coupler",55,55,1]

{"sheet":"Sheet3","index":3,"n_rows":0,"n_cols":0,"rows_kept":0,"cut":false,"hidden":false,"merged":[]}